Service,Expense Subtype,Merchant Name,Expense Invoice Date,Total Expense
ADULTS WITH MENTAL HEALTH NEEDS,Travel/Subsistence,SE BRIXTON TO,01-Apr-2019,33.00
BUSINESS SUPPORT,Taxi Fares,MS MICHEAL POWELL FINA,01-Apr-2019,375.00
BUSINESS SUPPORT,Travel/Subsistence,OYSTER ONLINE,01-Apr-2019,25.00
BUSINESS SUPPORT,Taxi Fares,SW16 TO SE11,01-Apr-2019,30.00
BUSINESS SUPPORT,Travel/Subsistence,OYSTER AUTO-TOP UP,01-Apr-2019,60.00
BUSINESS SUPPORT,Travel/Subsistence,OYSTER AUTO-TOP UP,01-Apr-2019,20.00
BUSINESS SUPPORT,Travel/Subsistence,OYSTER AUTO-TOP UP,01-Apr-2019,20.00
DAY SERVICES,Catering Food & Drink,TESCO STORE 2764,01-Apr-2019,72.97
DAY SERVICES,Catering Food & Drink,TESCO STORE 2764,01-Apr-2019,99.27
DAY SERVICES,Catering Food & Drink,ICELAND,01-Apr-2019,166.57
DAY SERVICES,Catering Food & Drink,M N NORWOOD HALAL BUTCHER,01-Apr-2019,82.37
DEMOCRATIC SERVICES,Domestic Goods-Other,WWW.REGENCYHAMPERS.COM,01-Apr-2019,44.40
EVENTS & FILMING,Facilities-Advertising,CANVAS EVENTS LTD,01-Apr-2019,72.00
FINANCIAL TRANSACTION SERVICES,Travel/Subsistence,OYSTER AUTO-TOP UP,01-Apr-2019,20.00
HOUSING MANAGEMENT SERVICES,IT Software-Customised,INTELLISOFTWARE LTD,01-Apr-2019,52.80
HOUSING OPTIONS - GF,Furniture-Domestic Furniture,WWW.JOHNLEWIS.COM,01-Apr-2019,-229.00
HOUSING OPTIONS - GF,Furniture-Domestic Furniture,WAYFAIR #2664136618,01-Apr-2019,-94.99
HOUSING OPTIONS - GF,Furniture-Domestic Furniture,WAYFAIR #2664136618,01-Apr-2019,94.99
HOUSING OPTIONS - GF,Furniture-Domestic Furniture,WWW.ARGOS.CO.UK,01-Apr-2019,143.94
LIBRARIES & ARCHIVES,Domestic Goods-Other,AMAZON.CO.UK,01-Apr-2019,26.99
LIBRARIES & ARCHIVES,Education-Library Books,AMZNMktplace,01-Apr-2019,14.30
SPECIALIST YOUTH,Travel/Subsistence,OYSTER AUTO-TOP UP,01-Apr-2019,20.00
SPECIALIST YOUTH,Travel/Subsistence,OYSTER ONLINE,01-Apr-2019,30.00
ADULTS WITH MENTAL HEALTH NEEDS,Legal Services-Other,HMCOURTS-SERVICE.G,02-Apr-2019,150.00
BUSINESS SUPPORT,Accommodation,WWW.EDGCUMBE-HOTEL.CO.,02-Apr-2019,67.50
BUSINESS SUPPORT,Facilities-Advertising,EXPRESS NEWS,02-Apr-2019,30.00
BUSINESS SUPPORT,IT Software-Customised,SA IMAGE REC. INEGRATE,02-Apr-2019,139.00
BUSINESS SUPPORT,Facilities-Market Research,GOOGLE,02-Apr-2019,159.64
CLIENT,Stationery,THE GLASS WIPE BOA,02-Apr-2019,"2,419.20"
EVENTS & FILMING,IT Software,ADOBE  CREATIVE CLOUD,02-Apr-2019,83.24
FINANCIAL PLANNING AND MANAGEMENT,Financial Services,LAND REGISTRY,02-Apr-2019,3.00
HOUSING MANAGEMENT SERVICES,Accommodation,LEIGHAM COURT HOTEL,02-Apr-2019,200.00
LEGAL SERVICES,Stationery,AMAZON.CO.UK,02-Apr-2019,37.53
LIBRARIES & ARCHIVES,Education-Library Books,AMZNMKTPLACE AMAZON.CO.UK,02-Apr-2019,19.48
LIBRARIES & ARCHIVES,Financial Services,LAMBETH INTERNET PAYM,02-Apr-2019,21.00
LIBRARIES & ARCHIVES,Education-Library Books,AMAZON.CO.UK,02-Apr-2019,22.74
LIBRARIES & ARCHIVES,Education-Library Books,Amazon.co.uk,02-Apr-2019,26.39
LIBRARIES & ARCHIVES,Education-Library Books,AMZN Mktp UK,02-Apr-2019,16.89
PARKS & LEISURE SERVICES,Domestic Goods-Other,MACHINE MART LTD,02-Apr-2019,54.56
PROGRAMME PERFORMANCE,IT Services,NATIONBUILDER,02-Apr-2019,173.26
PROGRAMME PERFORMANCE,Travel/Subsistence,Trainline.com,02-Apr-2019,33.66
PUBLIC HEALTH - ADULTS,Taxi Fares,UberBV,02-Apr-2019,5.95
ADULTS WITH MENTAL HEALTH NEEDS,Taxi Fares,WWW.ADDISONLEE.COM,03-Apr-2019,94.82
BUSINESS SUPPORT,Travel/Subsistence,OYSTER AUTO-TOP UP,03-Apr-2019,20.00
BUSINESS SUPPORT,Travel/Subsistence,TRAINLINE,03-Apr-2019,93.92
BUSINESS SUPPORT,Domestic Goods-Other,WWW.ARGOS.CO.UK,03-Apr-2019,219.99
BUSINESS SUPPORT,Travel/Subsistence,OYSTER AUTO-TOP UP,03-Apr-2019,60.00
BUSINESS SUPPORT,Travel/Subsistence,OYSTER AUTO-TOP UP,03-Apr-2019,20.00
BUSINESS SUPPORT,Travel/Subsistence,OYSTER AUTO-TOP UP,03-Apr-2019,80.00
BUSINESS SUPPORT,Facilities-Market Research,Amazon Prime,03-Apr-2019,7.99
BUSINESS SUPPORT,Taxi Fares,WWW.ADDISONLEE.COM,03-Apr-2019,35.60
BUSINESS SUPPORT,Travel/Subsistence,OYSTER AUTO-TOP UP,03-Apr-2019,20.00
BUSINESS SUPPORT,Catering Food & Drink,TESCO STORE 2143,03-Apr-2019,35.75
BUSINESS SUPPORT,Domestic Goods-Other,ARGOS RETAIL GROUP,03-Apr-2019,62.98
BUSINESS SUPPORT,Travel/Subsistence,OYSTER AUTO-TOP UP,03-Apr-2019,60.00
DAY SERVICES,Catering Food & Drink,ICELAND,03-Apr-2019,49.12
DAY SERVICES,Catering Food & Drink,ICELAND,03-Apr-2019,49.61
DAY SERVICES,Catering Food & Drink,ICELAND,03-Apr-2019,30.00
FINANCIAL PLANNING AND MANAGEMENT,Travel/Subsistence,EXPRESS NEWS,03-Apr-2019,50.00
HOUSING BENEFIT,Legal Services-Other,HMCOURTS-SERVICE.G,03-Apr-2019,589.00
LEGAL SERVICES,Travel/Subsistence,LUL TICKET MACHINE,03-Apr-2019,50.00
LIBRARIES & ARCHIVES,Education-Library Books,Amazon.co.uk,03-Apr-2019,57.23
PROGRAMME PERFORMANCE,Facilities-Advertising,FACEBK 3ZVZ2LE6M2,03-Apr-2019,43.10
PROGRAMME PERFORMANCE,IT Services,AWS EMEA,03-Apr-2019,138.66
PROGRAMME PERFORMANCE,IT Services,NATIONBUILDER,03-Apr-2019,93.39
PROGRAMME PERFORMANCE,IT Services,GOOGLE,03-Apr-2019,13.20
SENIOR MANAGEMENT - ADULTS & PUBLIC HEALTH,Catering Food & Drink,MARKS&SPENCER PLC,03-Apr-2019,197.00
SPECIALIST YOUTH,Travel/Subsistence,OYSTER AUTO-TOP UP,03-Apr-2019,20.00
SUBSTANCE MISUSE,Financial Services,LAMBETH INTERNET PAYM,03-Apr-2019,124.00
ADULTS WITH MENTAL HEALTH NEEDS,Travel/Subsistence,TL&GN RAILWAY WEB,04-Apr-2019,24.40
BUSINESS SUPPORT,Travel/Subsistence,OYSTER AUTO-TOP UP,04-Apr-2019,20.00
BUSINESS SUPPORT,Travel/Subsistence,OYSTER AUTO-TOP UP,04-Apr-2019,60.00
BUSINESS SUPPORT,Catering Food & Drink,TESCO STORE 2143,04-Apr-2019,18.08
BUSINESS SUPPORT,Travel/Subsistence,OYSTER ONLINE,04-Apr-2019,-20.00
BUSINESS SUPPORT,Catering Food & Drink,SAINSBURYS S/MKTS,04-Apr-2019,8.15
BUSINESS SUPPORT,Domestic Goods-Other,POUNDLAND LTD 1203,04-Apr-2019,9.00
BUSINESS SUPPORT,Travel/Subsistence,OYSTER AUTO-TOP UP,04-Apr-2019,20.00
BUSINESS SUPPORT,Travel/Subsistence,OYSTER ONLINE,04-Apr-2019,30.00
BUSINESS SUPPORT,Travel/Subsistence,OYSTER AUTO-TOP UP,04-Apr-2019,40.00
BUSINESS SUPPORT,Taxi Fares,SW12 TO HARLEY STRT,04-Apr-2019,60.00
BUSINESS SUPPORT,Financial Services,HM PASSPORT,04-Apr-2019,147.00
BUSINESS SUPPORT,Travel/Subsistence,OYSTER AUTO-TOP UP,04-Apr-2019,20.00
BUSINESS SUPPORT,Domestic Goods-Other,AMZNMktplace,04-Apr-2019,25.99
BUSINESS SUPPORT,Travel/Subsistence,OYSTER ONLINE,04-Apr-2019,-20.00
BUSINESS SUPPORT,Utilities,WWW.EDF-ENERGY.COM,04-Apr-2019,"2,008.23"
BUSINESS SUPPORT,Travel/Subsistence,OYSTER AUTO-TOP UP,04-Apr-2019,20.00
BUSINESS SUPPORT,Financial Services-Grants,WWW.CORAM.ORG.UK,04-Apr-2019,93.80
BUSINESS SUPPORT,Travel/Subsistence,OYSTER AUTO-TOP UP,04-Apr-2019,20.00
DAY SERVICES,Catering Food & Drink,SAINSBURY'S S/MKT,04-Apr-2019,71.25
HOUSING BENEFIT,Domestic Goods-Other,AMZNMktplace,04-Apr-2019,33.28
HOUSING BENEFIT,Education-Library Books,AMZN Mktp UK,04-Apr-2019,31.49
HOUSING MANAGEMENT SERVICES,Accommodation,LEIGHAM COURT HOTEL,04-Apr-2019,100.00
INTERNAL AUDIT,Travel/Subsistence,OYSTER AUTO-TOP UP,04-Apr-2019,40.00
PROGRAMME PERFORMANCE,IT Services,PANTHEON SYSTEMS INC,04-Apr-2019,27.59
PROGRAMME PERFORMANCE,Facilities-Advertising,FACEBK 3H75RK26M2,04-Apr-2019,40.00
SPECIALIST YOUTH,Travel/Subsistence,OYSTER AUTO-TOP UP,04-Apr-2019,20.00
SPECIALIST YOUTH,Catering Food & Drink,MARKS&SPENCER PLC,04-Apr-2019,43.50
SUBSTANCE MISUSE,Banquet & Catering,WWW.EVENTSUPPLIES.CO.U,04-Apr-2019,160.80
SUBSTANCE MISUSE,Financial Services,MORLEY COLLEGE INT,04-Apr-2019,330.00
SUSTAINABILITY & ROAD SAFETY,Travel/Subsistence,LUL TICKET OFFICE.,04-Apr-2019,30.00
BUSINESS SUPPORT,Travel/Subsistence,OYSTER ONLINE,05-Apr-2019,45.00
BUSINESS SUPPORT,Travel/Subsistence,OYSTER AUTO-TOP UP,05-Apr-2019,20.00
BUSINESS SUPPORT,Travel/Subsistence,OYSTER ONLINE,05-Apr-2019,50.00
BUSINESS SUPPORT,Travel/Subsistence,OYSTER AUTO-TOP UP,05-Apr-2019,20.00
BUSINESS SUPPORT,Travel/Subsistence,OYSTER AUTO-TOP UP,05-Apr-2019,60.00
BUSINESS SUPPORT,Travel/Subsistence,OYSTER ONLINE,05-Apr-2019,30.00
BUSINESS SUPPORT,Travel/Subsistence,TFL AUTOSETTLEMENT,05-Apr-2019,20.00
BUSINESS SUPPORT,Travel/Subsistence,OYSTER ONLINE,05-Apr-2019,20.00
BUSINESS SUPPORT,Travel/Subsistence,TFL AUTOSETTLEMENT,05-Apr-2019,20.00
BUSINESS SUPPORT,Travel/Subsistence,OYSTER AUTO-TOP UP,05-Apr-2019,80.00
BUSINESS SUPPORT,Travel/Subsistence,OYSTER AUTO-TOP UP,05-Apr-2019,40.00
BUSINESS SUPPORT,Taxi Fares,MULTIBLE BOOKINGS,05-Apr-2019,360.00
BUSINESS SUPPORT,Financial Services,LONDON BRGH OF LAMBETH,05-Apr-2019,94.00
BUSINESS SUPPORT,Travel/Subsistence,OYSTER AUTO-TOP UP,05-Apr-2019,60.00
BUSINESS SUPPORT,Travel/Subsistence,OYSTER ONLINE,05-Apr-2019,30.00
DAY SERVICES,Financial Services,ROYAL BANK UK /,05-Apr-2019,400.00
DEMOCRATIC SERVICES,Catering Food & Drink,TESCO STORE 2143,05-Apr-2019,18.84
EVENTS & FILMING,Domestic Goods-Other,AMZNMKTPLACE AMAZON.CO.UK,05-Apr-2019,46.78
HOUSING BENEFIT,Travel/Subsistence,OYSTER AUTO-TOP UP,05-Apr-2019,20.00
HOUSING MANAGEMENT SERVICES,Facilities-Market Research,Amazon Prime,05-Apr-2019,7.99
LEGAL SERVICES,Catering Food & Drink,TESCO STORE 2143,05-Apr-2019,28.14
LIBRARIES & ARCHIVES,Education-Library Books,AMZNMKTPLACE AMAZON.CO.UK,05-Apr-2019,5.86
LIBRARIES & ARCHIVES,Education-Library Books,AMZN Mktp UK,05-Apr-2019,28.77
LIBRARIES & ARCHIVES,Education-Library Books,AMZNMktplace,05-Apr-2019,9.97
LIBRARIES & ARCHIVES,Facilities-Market Research,Amazon Prime,05-Apr-2019,7.99
PARKS & LEISURE SERVICES,Vehicle Hire,T A H ACCESS PLATFORMS,05-Apr-2019,160.00
PARKS & LEISURE SERVICES,Horticultural-Other,WWW.WILDSEED.CO.UK,05-Apr-2019,221.00
PARKS & LEISURE SERVICES,Vehicle Hire,T A H ACCESS PLATFORMS,05-Apr-2019,200.00
PROGRAMME PERFORMANCE,Facilities-Advertising,FACEBK XL2QFLJ5M2,05-Apr-2019,40.00
PUBLIC HEALTH - ADULTS,Taxi Fares,UberBV,05-Apr-2019,6.16
SPECIALIST YOUTH,Travel/Subsistence,OYSTER AUTO-TOP UP,05-Apr-2019,40.00
SUSTAINABILITY & ROAD SAFETY,Travel/Subsistence,TFL CYCLE HIRE,05-Apr-2019,2.00
BUSINESS SUPPORT,Travel/Subsistence,OYSTER AUTO-TOP UP,06-Apr-2019,60.00
BUSINESS SUPPORT,Travel/Subsistence,OYSTER AUTO-TOP UP,06-Apr-2019,20.00
BUSINESS SUPPORT,Travel/Subsistence,OYSTER AUTO-TOP UP,06-Apr-2019,40.00
BUSINESS SUPPORT,Facilities-Market Research,Amazon Prime,06-Apr-2019,-7.99
BUSINESS SUPPORT,Travel/Subsistence,OYSTER AUTO-TOP UP,06-Apr-2019,60.00
BUSINESS SUPPORT,Travel/Subsistence,OYSTER AUTO-TOP UP,06-Apr-2019,40.00
BUSINESS SUPPORT,Travel/Subsistence,OYSTER AUTO-TOP UP,06-Apr-2019,20.00
HOUSING BENEFIT,Travel/Subsistence,OYSTER AUTO-TOP UP,06-Apr-2019,20.00
LIBRARIES & ARCHIVES,Domestic Goods-Other,AMZNMktplace,06-Apr-2019,19.89
LIBRARIES & ARCHIVES,Education-Library Books,AMZNMktplace,06-Apr-2019,17.33
PROGRAMME PERFORMANCE,Facilities-Advertising,FACEBK QT6BXKN5M2,06-Apr-2019,27.18
SPECIALIST YOUTH,Travel/Subsistence,OYSTER AUTO-TOP UP,06-Apr-2019,20.00
BUSINESS SUPPORT,Travel/Subsistence,OYSTER AUTO-TOP UP,07-Apr-2019,20.00
BUSINESS SUPPORT,Travel/Subsistence,OYSTER AUTO-TOP UP,07-Apr-2019,20.00
BUSINESS SUPPORT,Travel/Subsistence,OYSTER AUTO-TOP UP,07-Apr-2019,40.00
BUSINESS SUPPORT,Travel/Subsistence,OYSTER AUTO-TOP UP,07-Apr-2019,20.00
BUSINESS SUPPORT,Travel/Subsistence,OYSTER AUTO-TOP UP,07-Apr-2019,40.00
SPECIALIST YOUTH,Travel/Subsistence,OYSTER AUTO-TOP UP,07-Apr-2019,40.00
ADULTS WITH MENTAL HEALTH NEEDS,Legal Services-Other,HMCOURTS-SERVICE.G,08-Apr-2019,75.00
BUSINESS SUPPORT,Travel/Subsistence,TRAINLINE,08-Apr-2019,159.26
BUSINESS SUPPORT,Travel/Subsistence,OYSTER AUTO-TOP UP,08-Apr-2019,20.00
BUSINESS SUPPORT,Financial Services-Grants,WWW.CORAM.ORG.UK,08-Apr-2019,43.35
BUSINESS SUPPORT,Travel/Subsistence,LUL TICKET MACHINE,08-Apr-2019,45.00
BUSINESS SUPPORT,Travel/Subsistence,OYSTER ONLINE,08-Apr-2019,20.00
BUSINESS SUPPORT,Travel/Subsistence,OYSTER ONLINE,08-Apr-2019,20.00
BUSINESS SUPPORT,Travel/Subsistence,OYSTER AUTO-TOP UP,08-Apr-2019,20.00
BUSINESS SUPPORT,Facilities-Advertising,EXPRESS NEWS,08-Apr-2019,30.00
BUSINESS SUPPORT,Catering Food & Drink,TESCO STORE 2143,08-Apr-2019,50.00
BUSINESS SUPPORT,Taxi Fares,SE26 TO SW2 6 DAYS,08-Apr-2019,420.00
BUSINESS SUPPORT,Travel/Subsistence,OYSTER ONLINE,08-Apr-2019,20.00
BUSINESS SUPPORT,Financial Services,GEN REGISTER OFFICE,08-Apr-2019,80.25
BUSINESS SUPPORT,Financial Services,GEN REGISTER OFFICE,08-Apr-2019,-73.75
DAY SERVICES,Financial Services,CASH ADVANCE FEE,08-Apr-2019,11.80
DAY SERVICES,Catering Food & Drink,WWW.ICELAND.CO.UK,08-Apr-2019,98.79
EVENTS & FILMING,Vehicle Hire,ZIPCAR,08-Apr-2019,82.84
EVENTS & FILMING,IT Services,DROPBOX*HB8496R5Y959,08-Apr-2019,7.99
FINANCIAL PLANNING AND MANAGEMENT,Financial Services,LAND REGISTRY,08-Apr-2019,3.00
HOUSING OPTIONS - GF,Books/Publications/Resources,WHICH,08-Apr-2019,10.75
LIBRARIES & ARCHIVES,Catering Food & Drink,Brixton Grocers,08-Apr-2019,6.50
LIBRARIES & ARCHIVES,Catering Food & Drink,ICELAND,08-Apr-2019,21.08
LIBRARIES & ARCHIVES,Education-Library Books,Amazon.co.uk,08-Apr-2019,26.76
LIBRARIES & ARCHIVES,Stationery,Amazon.co.uk,08-Apr-2019,22.74
LIBRARIES & ARCHIVES,Domestic Goods-Other,AMZNMktplace,08-Apr-2019,29.99
LIBRARIES & ARCHIVES,Education-Library Books,AMZNMKTPLACE AMAZON.CO.UK,08-Apr-2019,41.35
PARKS & LEISURE SERVICES,Financial Services,DVLA VEHICLE TAX,08-Apr-2019,167.50
PUBLIC HEALTH - ADULTS,Travel/Subsistence,EASYJET,08-Apr-2019,238.27
SHELTERED HOUSING,Cleaning-Specialist,WWW.RANSOMSPARES.CO.UK,08-Apr-2019,38.85
SUBSTANCE MISUSE,Catering Food & Drink,TESCO STORES 5999,08-Apr-2019,75.33
ADULTS WITH MENTAL HEALTH NEEDS,Legal Services-Other,HMCOURTS-SERVICE.G,09-Apr-2019,150.00
BEREAVEMENT SERVICES,Domestic Goods-Other,WWW.ARGOS.CO.UK,09-Apr-2019,98.94
BEREAVEMENT SERVICES,Building-Timber,TP NORWOOD 9014,09-Apr-2019,121.75
BUSINESS SUPPORT,Financial Services-Insurance,WWW.AVIVA.CO.UK,09-Apr-2019,-223.57
BUSINESS SUPPORT,Taxi Fares,WWW.ADDISONLEE.COM,09-Apr-2019,54.30
BUSINESS SUPPORT,Travel/Subsistence,LUL TICKET MACHINE,09-Apr-2019,25.00
BUSINESS SUPPORT,Travel/Subsistence,OYSTER ONLINE,09-Apr-2019,20.00
BUSINESS SUPPORT,Financial Services,LONDON BRGH OF LAMBETH,09-Apr-2019,197.00
BUSINESS SUPPORT,Travel/Subsistence,OYSTER ONLINE,09-Apr-2019,45.00
EVENTS & FILMING,Cleaning-Laundry Service,S.I.S.T DRY CLEANERS L,09-Apr-2019,50.00
EVENTS & FILMING,Catering Food & Drink,TESCO STORE 2143,09-Apr-2019,4.00
EVENTS & FILMING,Catering Food & Drink,SAINSBURYS S/MKTS,09-Apr-2019,6.08
EVENTS & FILMING,Vehicle Hire,ZIPCAR,09-Apr-2019,10.36
HOUSING MANAGEMENT SERVICES,Mail Services-Postage,POST OFFICE COUNTER,09-Apr-2019,6.60
LIBRARIES & ARCHIVES,Education-Other,LONDONEMBLE,09-Apr-2019,72.16
LIBRARIES & ARCHIVES,Books/Publications/Resources,Sainsburys Bank CASH,09-Apr-2019,170.00
LIBRARIES & ARCHIVES,Domestic Goods-Other,ARGOS LTD,09-Apr-2019,24.00
LIBRARIES & ARCHIVES,Education-Library Books,Amazon.co.uk,09-Apr-2019,5.78
LIBRARIES & ARCHIVES,Education-Library Books,AMZN Mktp UK,09-Apr-2019,12.28
PARKING OPERATIONS,Catering Food & Drink,MARKS&SPENCER PLC SACA,09-Apr-2019,50.00
PARKS & LEISURE SERVICES,Building-Timber,ACRE LANE TIMBER LTD,09-Apr-2019,185.10
PARKS & LEISURE SERVICES,Works-Construction,KK WINDOWS,09-Apr-2019,30.00
PARKS & LEISURE SERVICES,Building-Paint,S LONDON DECORTORS,09-Apr-2019,25.75
PARKS & LEISURE SERVICES,Building-Tools,MACHINE MART WEB,09-Apr-2019,99.00
PUBLIC HEALTH - ADULTS,Domestic Goods-Other,ONE4ALL,09-Apr-2019,320.00
SUBSTANCE MISUSE,Domestic Goods-Other,TESCO ONLINE,09-Apr-2019,20.98
ADULTS WITH MENTAL HEALTH NEEDS,Legal Services-Other,HMCOURTS-SERVICE.G,10-Apr-2019,75.00
BUSINESS SUPPORT,Organised Activities,LITTLE ANGELS CONTACT,10-Apr-2019,161.50
BUSINESS SUPPORT,Travel/Subsistence,OYSTER ONLINE,10-Apr-2019,30.00
BUSINESS SUPPORT,Travel/Subsistence,EXPEDIA 7425975833279,10-Apr-2019,75.65
BUSINESS SUPPORT,Domestic Goods-Other,WWW.ARGOS.CO.UK,10-Apr-2019,"1,654.92"
BUSINESS SUPPORT,Travel/Subsistence,OYSTER AUTO-TOP UP,10-Apr-2019,20.00
BUSINESS SUPPORT,Travel/Subsistence,OYSTER ONLINE,10-Apr-2019,30.00
BUSINESS SUPPORT,Healthcare-Counselling,THE AWARENESS CENTRE,10-Apr-2019,60.00
BUSINESS SUPPORT,Financial Services,GEN REGISTER OFFICE,10-Apr-2019,25.00
BUSINESS SUPPORT,Travel/Subsistence,TRAINLINE,10-Apr-2019,128.19
BUSINESS SUPPORT,Travel/Subsistence,EUROSTAR INTERNET,10-Apr-2019,290.00
BUSINESS SUPPORT,Domestic Goods-Other,WWW.ARGOS.CO.UK,10-Apr-2019,254.97
BUSINESS SUPPORT,Healthcare Services,PROMETHIAN MEDICAL LIM,10-Apr-2019,265.00
BUSINESS SUPPORT,Travel/Subsistence,OYSTER AUTO-TOP UP,10-Apr-2019,20.00
BUSINESS SUPPORT,Travel/Subsistence,OYSTER AUTO-TOP UP,10-Apr-2019,20.00
BUSINESS SUPPORT,Travel/Subsistence,OYSTER AUTO-TOP UP,10-Apr-2019,20.00
BUSINESS SUPPORT,Facilities-Storage,WWW.SAFESTORE.CO.UK,10-Apr-2019,556.91
BUSINESS SUPPORT,Financial Services,GEN REGISTER OFFICE,10-Apr-2019,-18.50
BUSINESS SUPPORT,Travel/Subsistence,OYSTER AUTO-TOP UP,10-Apr-2019,20.00
BUSINESS SUPPORT,Accommodation,PREMIER INN 44536865,10-Apr-2019,101.00
DAY SERVICES,Education-Other,AMZNMktplace,10-Apr-2019,17.99
DAY SERVICES,Domestic Goods-Other,AMZNMktplace,10-Apr-2019,16.55
DAY SERVICES,Financial Services-Grants,MUSIC IN HOSPITALS AND,10-Apr-2019,130.00
DAY SERVICES,Catering Food & Drink,TESCO STORE 3539,10-Apr-2019,-1.65
DAY SERVICES,Catering Food & Drink,TESCO STORES 5999,10-Apr-2019,134.98
DAY SERVICES,Building-Others,AMZN Mktp UK,10-Apr-2019,23.74
EVENTS & FILMING,Education-Other,WWW.BII.ORG,10-Apr-2019,180.00
FINANCIAL PLANNING AND MANAGEMENT,Financial Services,LAND REGISTRY,10-Apr-2019,3.00
HOUSING MANAGEMENT SERVICES,Travel/Subsistence,LUL TICKET MACHINE,10-Apr-2019,60.00
HOUSING MANAGEMENT SERVICES,Mail Services-Postage,POST OFFICE COUNTER,10-Apr-2019,9.60
HOUSING OPTIONS - GF,Furniture-Domestic Furniture,WAYFAIR #2681397368,10-Apr-2019,575.96
INTERNAL AUDIT,Travel/Subsistence,TRAINLINE,10-Apr-2019,40.68
LEARNING & DEVELOPMENT,Consultancy-Business,WWW.PMGLTD.CO.UK,10-Apr-2019,474.00
LIBRARIES & ARCHIVES,Books/Publications/Resources,CASH ADVANCE FEE,10-Apr-2019,5.02
LIBRARIES & ARCHIVES,Education-Library Books,AMZNMktplace,10-Apr-2019,4.12
LIBRARIES & ARCHIVES,Education-Library Books,Amazon.co.uk,10-Apr-2019,10.96
PARKS & LEISURE SERVICES,Building-Timber,TP VAUXHALL,10-Apr-2019,249.00
SPECIALIST YOUTH,Catering Food & Drink,MARKS&SPENCER PLC,10-Apr-2019,43.50
SPECIALIST YOUTH,Travel/Subsistence,OYSTER AUTO-TOP UP,10-Apr-2019,20.00
BUSINESS SUPPORT,Furniture-Domestic Furniture,WWW.IKEA.COM,11-Apr-2019,107.90
BUSINESS SUPPORT,Domestic Goods-Other,WWW.ARGOS.CO.UK,11-Apr-2019,303.93
BUSINESS SUPPORT,Travel/Subsistence,OYSTER AUTO-TOP UP,11-Apr-2019,80.00
BUSINESS SUPPORT,Travel/Subsistence,OYSTER AUTO-TOP UP,11-Apr-2019,80.00
BUSINESS SUPPORT,Travel/Subsistence,OYSTER AUTO-TOP UP,11-Apr-2019,20.00
BUSINESS SUPPORT,Travel/Subsistence,OYSTER AUTO-TOP UP,11-Apr-2019,60.00
BUSINESS SUPPORT,Travel/Subsistence,OYSTER AUTO-TOP UP,11-Apr-2019,20.00
BUSINESS SUPPORT,Accommodation,EASYJET,11-Apr-2019,200.62
BUSINESS SUPPORT,Travel/Subsistence,EXPEDIA 7426206805801,11-Apr-2019,297.03
BUSINESS SUPPORT,Travel/Subsistence,LUL TICKET MACHINE,11-Apr-2019,25.00
BUSINESS SUPPORT,Travel/Subsistence,OYSTER AUTO-TOP UP,11-Apr-2019,20.00
DAY SERVICES,Domestic Goods-Other,AMZNMktplace,11-Apr-2019,45.69
DAY SERVICES,Education-Other,AMZNMktplace,11-Apr-2019,4.99
DAY SERVICES,Financial Services,HALX - BRIXTON,11-Apr-2019,400.00
DAY SERVICES,Education-Other,AMZN Mktp UK,11-Apr-2019,37.28
DEMOCRATIC SERVICES,Catering Food & Drink,DOMINO,11-Apr-2019,49.98
DEMOCRATIC SERVICES,Catering Food & Drink,TESCO STORE 2143,11-Apr-2019,36.75
FINANCIAL PLANNING AND MANAGEMENT,Financial Services,LAND REGISTRY,11-Apr-2019,6.00
HOUSING MANAGEMENT SERVICES,Financial Services,LBB MOTO,11-Apr-2019,11.00
HOUSING MANAGEMENT SERVICES,Travel/Subsistence,NEW SOUTHERN RAILW,11-Apr-2019,50.00
HOUSING MANAGEMENT SERVICES,Travel/Subsistence,LUL TICKET MACHINE,11-Apr-2019,115.00
HOUSING OPTIONS - GF,Building-General,B & Q 1037,11-Apr-2019,26.69
LIBRARIES & ARCHIVES,Domestic Goods-Other,POUNDLAND LTD,11-Apr-2019,12.00
LIBRARIES & ARCHIVES,Domestic Goods-Other,ARGOS,11-Apr-2019,49.97
LIBRARIES & ARCHIVES,Education-Library Books,Amazon.co.uk,11-Apr-2019,9.90
LIBRARIES & ARCHIVES,Education-Library Books,AMZNMktplace,11-Apr-2019,12.97
LIBRARIES & ARCHIVES,Domestic Goods-Other,POUNDLAND LTD,11-Apr-2019,19.00
LIBRARIES & ARCHIVES,Education-Library Books,Amazon.co.uk,11-Apr-2019,10.45
LIBRARIES & ARCHIVES,Financial Services,PO WEST NORWOOD 1648,11-Apr-2019,60.00
PARKS & LEISURE SERVICES,Building-Plumbing,WOLSELEY UK,11-Apr-2019,87.48
PLANNING,Financial Services,WWW.JERSEYFSC.ORG,11-Apr-2019,4.00
SPECIALIST YOUTH,IT Office Equipment,AMZNMKTPLACE AMAZON.CO.UK,11-Apr-2019,75.22
SPECIALIST YOUTH,Travel/Subsistence,OYSTER AUTO-TOP UP,11-Apr-2019,20.00
SPECIALIST YOUTH,Furniture-Office Furniture,AMZNMKTPLACE AMAZON.CO.UK,11-Apr-2019,239.99
SPECIALIST YOUTH,IT Office Equipment,AMZNMktplace,11-Apr-2019,108.73
SUBSTANCE MISUSE,Domestic Goods-Other,WWW.ARGOS.CO.UK,11-Apr-2019,245.95
BEREAVEMENT SERVICES,Travel/Subsistence,TFL ROAD CHG - STD WEB,12-Apr-2019,12.50
BUSINESS SUPPORT,Travel/Subsistence,OYSTER ONLINE,12-Apr-2019,45.00
BUSINESS SUPPORT,Travel/Subsistence,OYSTER ONLINE,12-Apr-2019,-35.00
BUSINESS SUPPORT,Travel/Subsistence,OYSTER AUTO-TOP UP,12-Apr-2019,20.00
BUSINESS SUPPORT,Travel/Subsistence,OYSTER AUTO-TOP UP,12-Apr-2019,80.00
BUSINESS SUPPORT,Travel/Subsistence,OYSTER ONLINE,12-Apr-2019,-30.00
BUSINESS SUPPORT,Travel/Subsistence,OYSTER AUTO-TOP UP,12-Apr-2019,40.00
BUSINESS SUPPORT,Financial Services,WWW.FCO.GOV.UK,12-Apr-2019,65.50
BUSINESS SUPPORT,Travel/Subsistence,OYSTER AUTO-TOP UP,12-Apr-2019,40.00
BUSINESS SUPPORT,Travel/Subsistence,OYSTER AUTO-TOP UP,12-Apr-2019,60.00
BUSINESS SUPPORT,Travel/Subsistence,OYSTER AUTO-TOP UP,12-Apr-2019,20.00
BUSINESS SUPPORT,Furniture-Domestic Furniture,BRIXTON FURNITURE CENT,12-Apr-2019,310.00
BUSINESS SUPPORT,Travel/Subsistence,OYSTER AUTO-TOP UP,12-Apr-2019,20.00
BUSINESS SUPPORT,Financial Services,WWW.FCO.GOV.UK,12-Apr-2019,-30.00
BUSINESS SUPPORT,Travel/Subsistence,OYSTER AUTO-TOP UP,12-Apr-2019,20.00
BUSINESS SUPPORT,Travel/Subsistence,OYSTER AUTO-TOP UP,12-Apr-2019,20.00
DAY SERVICES,Financial Services,CASH ADVANCE FEE,12-Apr-2019,11.80
DAY SERVICES,Catering Food & Drink,TESCO STORE 2143,12-Apr-2019,8.25
EVENTS & FILMING,IT Software,BLS*MONDAY.COM,12-Apr-2019,148.80
FINANCIAL PLANNING AND MANAGEMENT,Domestic Goods-Other,WWW.ARGOS.CO.UK,12-Apr-2019,9.94
LIBRARIES & ARCHIVES,Domestic Goods-Other,POUNDLAND LTD,12-Apr-2019,2.00
LIBRARIES & ARCHIVES,Domestic Goods-Other,AMAZON.CO.UK,12-Apr-2019,31.86
LIBRARIES & ARCHIVES,Education-Library Books,AMZNMktplace,12-Apr-2019,7.78
LIBRARIES & ARCHIVES,Financial Services,CASH ADVANCE FEE,12-Apr-2019,2.95
LIBRARIES & ARCHIVES,Education-Library Books,Amazon.co.uk,12-Apr-2019,25.00
LIBRARIES & ARCHIVES,Education-Library Books,AMZN Mktp UK,12-Apr-2019,4.34
PARKS & LEISURE SERVICES,Building-General,SCREWFIX DIRECT,12-Apr-2019,150.32
PARKS & LEISURE SERVICES,Building-General,A&S  HOMECARE LTD,12-Apr-2019,19.98
PARKS & LEISURE SERVICES,Building-Timber,ACRE LANE TIMBER LTD,12-Apr-2019,8.05
SPECIALIST YOUTH,Travel/Subsistence,OYSTER AUTO-TOP UP,12-Apr-2019,20.00
SUBSTANCE MISUSE,Domestic Goods-Other,AMZNMktplace,12-Apr-2019,10.99
BUSINESS SUPPORT,Travel/Subsistence,OYSTER AUTO-TOP UP,13-Apr-2019,20.00
BUSINESS SUPPORT,Travel/Subsistence,OYSTER AUTO-TOP UP,13-Apr-2019,40.00
BUSINESS SUPPORT,Travel/Subsistence,OYSTER AUTO-TOP UP,13-Apr-2019,40.00
BUSINESS SUPPORT,Travel/Subsistence,OYSTER AUTO-TOP UP,13-Apr-2019,40.00
BUSINESS SUPPORT,Travel/Subsistence,OYSTER AUTO-TOP UP,13-Apr-2019,20.00
BUSINESS SUPPORT,Travel/Subsistence,OYSTER AUTO-TOP UP,13-Apr-2019,20.00
BUSINESS SUPPORT,Travel/Subsistence,OYSTER AUTO-TOP UP,13-Apr-2019,40.00
BUSINESS SUPPORT,Travel/Subsistence,OYSTER AUTO-TOP UP,13-Apr-2019,20.00
BUSINESS SUPPORT,Travel/Subsistence,OYSTER AUTO-TOP UP,13-Apr-2019,40.00
BUSINESS SUPPORT,Travel/Subsistence,OYSTER AUTO-TOP UP,13-Apr-2019,20.00
INTERNAL AUDIT,Travel/Subsistence,OYSTER AUTO-TOP UP,13-Apr-2019,40.00
LIBRARIES & ARCHIVES,Catering Food & Drink,SAINSBURY'S,13-Apr-2019,55.78
PARKS & LEISURE SERVICES,Domestic Goods-Other,AMZNMktplace,13-Apr-2019,49.99
SPECIALIST YOUTH,Travel/Subsistence,OYSTER AUTO-TOP UP,13-Apr-2019,20.00
BUSINESS SUPPORT,Travel/Subsistence,OYSTER AUTO-TOP UP,14-Apr-2019,40.00
BUSINESS SUPPORT,Travel/Subsistence,OYSTER AUTO-TOP UP,14-Apr-2019,80.00
BUSINESS SUPPORT,Travel/Subsistence,OYSTER AUTO-TOP UP,14-Apr-2019,20.00
BUSINESS SUPPORT,Travel/Subsistence,OYSTER AUTO-TOP UP,14-Apr-2019,20.00
BUSINESS SUPPORT,Travel/Subsistence,OYSTER AUTO-TOP UP,14-Apr-2019,40.00
DIRECTOR OF FINANCE,Travel/Subsistence,Trainline.com,14-Apr-2019,96.67
FINANCIAL TRANSACTION SERVICES,Domestic Goods-Other,AMZNMktplace,14-Apr-2019,37.07
LIBRARIES & ARCHIVES,Education-Library Books,AMZN Mktp UK,14-Apr-2019,27.80
LIBRARIES & ARCHIVES,Domestic Goods-Other,AMZNMktplace,14-Apr-2019,55.98
SPECIALIST YOUTH,Travel/Subsistence,OYSTER AUTO-TOP UP,14-Apr-2019,20.00
ADULTS WITH MENTAL HEALTH NEEDS,Travel/Subsistence,SE BRIXTON TO,15-Apr-2019,37.40
BEREAVEMENT SERVICES,Catering Equipment,AMZN Mktp UK,15-Apr-2019,8.99
BUSINESS SUPPORT,Domestic Goods-Other,WWW.ARGOS.CO.UK,15-Apr-2019,"2,014.84"
BUSINESS SUPPORT,Travel/Subsistence,TRAINLINE,15-Apr-2019,-11.20
BUSINESS SUPPORT,Travel/Subsistence,OYSTER ONLINE,15-Apr-2019,30.00
BUSINESS SUPPORT,Education-Library Books,AMZN Mktp UK,15-Apr-2019,14.99
BUSINESS SUPPORT,Travel/Subsistence,OYSTER AUTO-TOP UP,15-Apr-2019,20.00
BUSINESS SUPPORT,Travel/Subsistence,OYSTER AUTO-TOP UP,15-Apr-2019,20.00
BUSINESS SUPPORT,Travel/Subsistence,OYSTER ONLINE,15-Apr-2019,75.00
DAY SERVICES,Catering Food & Drink,ICELAND,15-Apr-2019,50.00
DAY SERVICES,Catering Food & Drink,WWW.ICELAND.CO.UK,15-Apr-2019,154.92
DEMOCRATIC SERVICES,Catering Food & Drink,TESCO STORE 2143,15-Apr-2019,12.40
FINANCIAL PLANNING AND MANAGEMENT,Financial Services,LAND REGISTRY,15-Apr-2019,3.00
HOUSING MANAGEMENT SERVICES,Building-General,HOWARD BROS. (CAMBERWE,15-Apr-2019,231.90
LEARNING & DEVELOPMENT,Stationery,VIKING UK,15-Apr-2019,250.72
LIBRARIES & ARCHIVES,Domestic Goods-Other,POUNDLAND LTD 1203,15-Apr-2019,2.00
LIBRARIES & ARCHIVES,Education-Library Books,Amazon.co.uk,15-Apr-2019,49.22
LIBRARIES & ARCHIVES,Domestic Goods-Other,POUNDLAND LTD 1203,15-Apr-2019,12.00
LIBRARIES & ARCHIVES,Education-Library Books,AMZN Mktp UK,15-Apr-2019,32.78
LIBRARIES & ARCHIVES,Domestic Goods-Other,POUNDLAND LTD,15-Apr-2019,18.00
LIBRARIES & ARCHIVES,Education-Other,CARTRIDGEPEOPLE.COM,15-Apr-2019,29.97
PARKS & LEISURE SERVICES,Building-Timber,SELCO OLD KENT ROA,15-Apr-2019,82.62
PARKS & LEISURE SERVICES,Horticultural-Other,TOPBUXUS Germany GmbH,15-Apr-2019,66.57
SUBSTANCE MISUSE,Catering Food & Drink,TESCO STORES 5999,15-Apr-2019,71.39
ADULTS WITH MENTAL HEALTH NEEDS,Legal Services-Other,HMCOURTS-SERVICE.G,16-Apr-2019,150.00
BEREAVEMENT SERVICES,Education-Library Books,AMZN Mktp UK,16-Apr-2019,12.99
BEREAVEMENT SERVICES,Stationery,AMZNMktplace,16-Apr-2019,3.66
BEREAVEMENT SERVICES,Domestic Goods-Other,AMZNMktplace,16-Apr-2019,1.94
BUSINESS SUPPORT,Taxi Fares,WWW.ADDISONLEE.COM,16-Apr-2019,12.55
BUSINESS SUPPORT,Travel/Subsistence,TRAINLINE,16-Apr-2019,69.46
BUSINESS SUPPORT,Travel/Subsistence,OYSTER ONLINE,16-Apr-2019,20.00
BUSINESS SUPPORT,Education-Library Books,AMZN Mktp UK,16-Apr-2019,14.43
BUSINESS SUPPORT,Domestic Goods-Other,AMZNMktplace,16-Apr-2019,30.99
BUSINESS SUPPORT,Utilities,SUTTON & EAST SURREY W,16-Apr-2019,225.78
DAY SERVICES,Catering Food & Drink,M N NORWOOD HALAL BUTCHER,16-Apr-2019,133.94
EVENTS & FILMING,Facilities-Advertising,MAILCHIMP,16-Apr-2019,69.41
FINANCIAL TRANSACTION SERVICES,Domestic Goods-Other,PAYPAL,16-Apr-2019,350.00
HOUSING BENEFIT,Travel/Subsistence,TRAINLINE,16-Apr-2019,82.68
HOUSING MANAGEMENT SERVICES,Travel/Subsistence,NEW SOUTHERN RAILW,16-Apr-2019,100.00
LIBRARIES & ARCHIVES,Domestic Goods-Other,CUPSDIRECT.CO.UK,16-Apr-2019,59.88
LIBRARIES & ARCHIVES,Education-Library Books,Amazon.co.uk,16-Apr-2019,1.99
PUBLIC HEALTH - ADULTS,Healthcare Services,PUBLIC HEALTH ENGLAND,16-Apr-2019,575.00
SUBSTANCE MISUSE,Financial Services,MORLEY COLLEGE INT,16-Apr-2019,110.00
ADULTS WITH MENTAL HEALTH NEEDS,Works-Construction/Materials,LOCKSMITHS AT THE TOOL,17-Apr-2019,239.99
BUSINESS SUPPORT,Travel/Subsistence,OYSTER AUTO-TOP UP,17-Apr-2019,20.00
BUSINESS SUPPORT,Facilities-Advertising,FACEBK N3E8ALWCE2,17-Apr-2019,85.41
BUSINESS SUPPORT,Travel/Subsistence,OYSTER AUTO-TOP UP,17-Apr-2019,20.00
BUSINESS SUPPORT,Travel/Subsistence,OYSTER AUTO-TOP UP,17-Apr-2019,20.00
BUSINESS SUPPORT,Travel/Subsistence,OYSTER AUTO-TOP UP,17-Apr-2019,20.00
BUSINESS SUPPORT,Travel/Subsistence,OYSTER ONLINE,17-Apr-2019,30.00
BUSINESS SUPPORT,Travel/Subsistence,OYSTER AUTO-TOP UP,17-Apr-2019,80.00
BUSINESS SUPPORT,Travel/Subsistence,OYSTER AUTO-TOP UP,17-Apr-2019,20.00
BUSINESS SUPPORT,Domestic Goods-Other,POUNDLAND LTD 1203,17-Apr-2019,54.00
BUSINESS SUPPORT,Travel/Subsistence,OYSTER AUTO-TOP UP,17-Apr-2019,20.00
BUSINESS SUPPORT,Travel/Subsistence,OYSTER ONLINE,17-Apr-2019,20.00
BUSINESS SUPPORT,Travel/Subsistence,OYSTER ONLINE,17-Apr-2019,25.00
BUSINESS SUPPORT,Travel/Subsistence,OYSTER AUTO-TOP UP,17-Apr-2019,40.00
BUSINESS SUPPORT,Travel/Subsistence,OYSTER AUTO-TOP UP,17-Apr-2019,20.00
EVENTS & FILMING,Mail Services-Postage,Amazon Prime,17-Apr-2019,79.00
HOUSING MANAGEMENT SERVICES,Facilities-Printing,WWW.OCEANMEDIA.CO,17-Apr-2019,637.60
LEGAL SERVICES,Education-Library Books,PAYPAL,17-Apr-2019,2.22
PARKING OPERATIONS,Books/Publications/Resources,WH SMITH,17-Apr-2019,42.00
PARKING OPERATIONS,Catering Food & Drink,MARKS&SPENCER PLC SACA,17-Apr-2019,18.00
SPECIALIST YOUTH,Travel/Subsistence,OYSTER ONLINE,17-Apr-2019,30.00
SUBSTANCE MISUSE,Education-Library Books,AMZN Mktp UK,17-Apr-2019,7.99
BUSINESS SUPPORT,Travel/Subsistence,OYSTER AUTO-TOP UP,18-Apr-2019,20.00
BUSINESS SUPPORT,Travel/Subsistence,OYSTER AUTO-TOP UP,18-Apr-2019,80.00
BUSINESS SUPPORT,Healthcare Services,HOLISTIC COMMUNITY CARE L,18-Apr-2019,65.50
BUSINESS SUPPORT,Catering Food & Drink,SAINSBURY'S S/MKT,18-Apr-2019,63.40
BUSINESS SUPPORT,Travel/Subsistence,OYSTER AUTO-TOP UP,18-Apr-2019,20.00
BUSINESS SUPPORT,Domestic Goods-Other,AMZNMktplace,18-Apr-2019,34.99
BUSINESS SUPPORT,Catering Food & Drink,NANDOS BALHAM,18-Apr-2019,242.85
BUSINESS SUPPORT,Travel/Subsistence,OYSTER AUTO-TOP UP,18-Apr-2019,20.00
BUSINESS SUPPORT,Travel/Subsistence,OYSTER AUTO-TOP UP,18-Apr-2019,20.00
BUSINESS SUPPORT,Travel/Subsistence,OYSTER AUTO-TOP UP,18-Apr-2019,20.00
BUSINESS SUPPORT,Catering Food & Drink,TESCO STORE 2143,18-Apr-2019,100.00
BUSINESS SUPPORT,Domestic Goods-Other,WWW.ARGOS.CO.UK,18-Apr-2019,347.93
BUSINESS SUPPORT,Travel/Subsistence,OYSTER ONLINE,18-Apr-2019,30.00
BUSINESS SUPPORT,Travel/Subsistence,OYSTER AUTO-TOP UP,18-Apr-2019,40.00
BUSINESS SUPPORT,Consultancy-Business,ELSA NETWORK,18-Apr-2019,100.00
BUSINESS SUPPORT,Healthcare Services,EDMUNDSBURY TRA,18-Apr-2019,270.00
DAY SERVICES,Catering Food & Drink,LIDL GB LONDON,18-Apr-2019,23.94
DEMOCRATIC SERVICES,IT Software-Customised,SurveyMonkey,18-Apr-2019,35.00
EVENTS & FILMING,Building-Tools,WWW.YAHIRE.COM,18-Apr-2019,"1,000.00"
FINANCIAL PLANNING AND MANAGEMENT,Financial Services,LAND REGISTRY,18-Apr-2019,3.00
HOUSING BENEFIT,Travel/Subsistence,TRAINLINE,18-Apr-2019,60.31
LIBRARIES & ARCHIVES,Travel/Subsistence,GREATER ANGLIA TRAINS,18-Apr-2019,40.00
LIBRARIES & ARCHIVES,Books/Publications/Resources,LONDIS,18-Apr-2019,150.00
LIBRARIES & ARCHIVES,Building-General,PALACE HOME & HARDWARE,18-Apr-2019,12.99
SPECIALIST YOUTH,Travel/Subsistence,OYSTER AUTO-TOP UP,18-Apr-2019,20.00
BUSINESS SUPPORT,Travel/Subsistence,OYSTER AUTO-TOP UP,19-Apr-2019,20.00
BUSINESS SUPPORT,Travel/Subsistence,OYSTER AUTO-TOP UP,19-Apr-2019,80.00
BUSINESS SUPPORT,Travel/Subsistence,OYSTER AUTO-TOP UP,19-Apr-2019,20.00
BUSINESS SUPPORT,Travel/Subsistence,OYSTER AUTO-TOP UP,19-Apr-2019,20.00
BUSINESS SUPPORT,Travel/Subsistence,OYSTER AUTO-TOP UP,19-Apr-2019,20.00
BUSINESS SUPPORT,Travel/Subsistence,OYSTER AUTO-TOP UP,19-Apr-2019,60.00
BUSINESS SUPPORT,Travel/Subsistence,OYSTER AUTO-TOP UP,19-Apr-2019,20.00
BUSINESS SUPPORT,Travel/Subsistence,OYSTER AUTO-TOP UP,19-Apr-2019,40.00
BUSINESS SUPPORT,Travel/Subsistence,OYSTER AUTO-TOP UP,19-Apr-2019,40.00
BUSINESS SUPPORT,Travel/Subsistence,OYSTER AUTO-TOP UP,19-Apr-2019,20.00
PARKS & LEISURE SERVICES,Building-General,SCREWFIX DIRECT,19-Apr-2019,109.98
SPECIALIST YOUTH,Travel/Subsistence,OYSTER AUTO-TOP UP,19-Apr-2019,40.00
BUSINESS SUPPORT,Travel/Subsistence,OYSTER AUTO-TOP UP,20-Apr-2019,20.00
BUSINESS SUPPORT,Travel/Subsistence,OYSTER AUTO-TOP UP,20-Apr-2019,20.00
BUSINESS SUPPORT,Travel/Subsistence,OYSTER AUTO-TOP UP,20-Apr-2019,20.00
BUSINESS SUPPORT,Travel/Subsistence,OYSTER AUTO-TOP UP,20-Apr-2019,20.00
BUSINESS SUPPORT,Travel/Subsistence,OYSTER AUTO-TOP UP,20-Apr-2019,60.00
BUSINESS SUPPORT,Travel/Subsistence,OYSTER AUTO-TOP UP,20-Apr-2019,20.00
BUSINESS SUPPORT,Travel/Subsistence,OYSTER AUTO-TOP UP,20-Apr-2019,20.00
BUSINESS SUPPORT,Travel/Subsistence,OYSTER AUTO-TOP UP,20-Apr-2019,40.00
PROGRAMME PERFORMANCE,IT Software,ADOBE  CREATIVE CLOUD,20-Apr-2019,141.60
SPECIALIST YOUTH,Travel/Subsistence,OYSTER AUTO-TOP UP,20-Apr-2019,20.00
SPECIALIST YOUTH,Travel/Subsistence,OYSTER AUTO-TOP UP,20-Apr-2019,60.00
BUSINESS SUPPORT,Travel/Subsistence,OYSTER AUTO-TOP UP,21-Apr-2019,20.00
BUSINESS SUPPORT,Travel/Subsistence,OYSTER AUTO-TOP UP,21-Apr-2019,20.00
BUSINESS SUPPORT,Travel/Subsistence,OYSTER AUTO-TOP UP,21-Apr-2019,20.00
BUSINESS SUPPORT,Travel/Subsistence,OYSTER AUTO-TOP UP,21-Apr-2019,40.00
HOUSING MANAGEMENT SERVICES,Facilities-Market Research,Amazon Prime,21-Apr-2019,7.99
BEREAVEMENT SERVICES,Catering Equipment,AMZN Mktp UK,22-Apr-2019,5.99
BUSINESS SUPPORT,Travel/Subsistence,TRAINLINE,23-Apr-2019,73.78
BUSINESS SUPPORT,Education-Other,PARTRIDGE & PRINT,23-Apr-2019,198.00
DAY SERVICES,Catering Food & Drink,ICELAND,23-Apr-2019,10.50
FINANCIAL PLANNING AND MANAGEMENT,Domestic Goods-Other,WWW.ARGOS.CO.UK,23-Apr-2019,172.93
LEGAL SERVICES,Stationery,AMZNMktplace,23-Apr-2019,8.99
LEGAL SERVICES,Stationery,Amazon.co.uk,23-Apr-2019,31.20
LIBRARIES & ARCHIVES,Education-Other,P S NEWS,23-Apr-2019,375.30
LIBRARIES & ARCHIVES,Education-Library Books,AMAZON.CO.UK,23-Apr-2019,29.26
LIBRARIES & ARCHIVES,Building-Timber,B & Q 1009,23-Apr-2019,3.00
PARKS & LEISURE SERVICES,Utilities,CASTLE WATER,23-Apr-2019,40.12
PARKS & LEISURE SERVICES,Domestic Goods-Other,LONDON GASES,23-Apr-2019,107.50
PARKS & LEISURE SERVICES,Building-Timber,SCREWFIX BRIXTON,23-Apr-2019,57.96
PARKS & LEISURE SERVICES,Financial Services,LBL NOT PRESENT,23-Apr-2019,25.00
PUBLIC HEALTH - ADULTS,Public Transport,VIRGIN TRAINS,23-Apr-2019,88.00
SPECIALIST YOUTH,Catering Food & Drink,TESCO STORE 2143,23-Apr-2019,100.00
BEREAVEMENT SERVICES,IT Office Equipment,AMZNMktplace,24-Apr-2019,29.29
BEREAVEMENT SERVICES,IT Office Equipment,AMZNMktplace,24-Apr-2019,59.99
BEREAVEMENT SERVICES,Stationery,AMZNMktplace,24-Apr-2019,11.58
BEREAVEMENT SERVICES,Cemetery & Crematorium,AMZN Mktp UK,24-Apr-2019,33.72
BUSINESS SUPPORT,Consultancy-Business,KCJONESCONF,24-Apr-2019,140.00
BUSINESS SUPPORT,Facilities-Market Research,Amazon Prime,24-Apr-2019,0.99
BUSINESS SUPPORT,Arts & Leisure Services,KCJONESCONF,24-Apr-2019,140.00
BUSINESS SUPPORT,Domestic Goods-Other,AMZNMktplace,24-Apr-2019,53.98
BUSINESS SUPPORT,Travel/Subsistence,OYSTER ONLINE,24-Apr-2019,30.00
BUSINESS SUPPORT,Travel/Subsistence,OYSTER AUTO-TOP UP,24-Apr-2019,20.00
BUSINESS SUPPORT,Facilities-Advertising,EXPRESS NEWS,24-Apr-2019,40.00
BUSINESS SUPPORT,Haulage,www.anyvan.com,24-Apr-2019,111.00
BUSINESS SUPPORT,Travel/Subsistence,OYSTER ONLINE,24-Apr-2019,-25.00
BUSINESS SUPPORT,Domestic Goods-Other,WWW.ARGOS.CO.UK,24-Apr-2019,235.93
CONTRACT SERVICES,Education-Other,PROFEX PUBLISHING LTD,24-Apr-2019,76.00
DEMOCRATIC SERVICES,Financial Services-Grants,PAYPAL,24-Apr-2019,27.99
DEMOCRATIC SERVICES,Catering Food & Drink,SAINSBURY'S S/MKTS,24-Apr-2019,24.00
DEMOCRATIC SERVICES,Catering Food & Drink,TESCO STORE 2143,24-Apr-2019,10.50
DEMOCRATIC SERVICES,Domestic Goods-Other,WWW.FLYINGCOLOURS.ORG,24-Apr-2019,75.54
HOUSING MANAGEMENT SERVICES,Building-General,THE TRADE HUB,24-Apr-2019,15.96
INTERNAL AUDIT,Travel/Subsistence,VIRGIN TRAINS,24-Apr-2019,34.00
LIBRARIES & ARCHIVES,Education-Library Books,Amazon.co.uk,24-Apr-2019,28.81
LIBRARIES & ARCHIVES,Education-Library Books,AMZN MKTP UK,24-Apr-2019,8.65
PARKS & LEISURE SERVICES,Domestic Goods-Other,TLC SOUTHERN,24-Apr-2019,152.40
PARKS & LEISURE SERVICES,Consultancy-Business,ARMOUR LOCK AND SAFE,24-Apr-2019,65.00
SUBSTANCE MISUSE,Financial Services,MORLEY COLLEGE LTD,24-Apr-2019,255.00
BEREAVEMENT SERVICES,Stationery,AMZN MKTP UK,25-Apr-2019,16.17
BEREAVEMENT SERVICES,Cemetery & Crematorium,AMZNMktplace,25-Apr-2019,30.83
BUSINESS SUPPORT,Catering Food & Drink,TESCO STORES 5145,25-Apr-2019,200.00
BUSINESS SUPPORT,Travel/Subsistence,OYSTER ONLINE,25-Apr-2019,30.00
BUSINESS SUPPORT,Travel/Subsistence,OYSTER AUTO-TOP UP,25-Apr-2019,40.00
BUSINESS SUPPORT,Travel/Subsistence,OYSTER ONLINE,25-Apr-2019,30.00
BUSINESS SUPPORT,Travel/Subsistence,OYSTER AUTO-TOP UP,25-Apr-2019,20.00
BUSINESS SUPPORT,Accommodation,CITI ROOMS LUTON MK LTD,25-Apr-2019,666.00
BUSINESS SUPPORT,Travel/Subsistence,OYSTER ONLINE,25-Apr-2019,25.00
BUSINESS SUPPORT,Travel/Subsistence,OYSTER AUTO-TOP UP,25-Apr-2019,20.00
BUSINESS SUPPORT,Travel/Subsistence,OYSTER ONLINE,25-Apr-2019,30.00
BUSINESS SUPPORT,Facilities-Advertising,WH SMITH,25-Apr-2019,12.99
BUSINESS SUPPORT,Travel/Subsistence,OYSTER AUTO-TOP UP,25-Apr-2019,100.00
BUSINESS SUPPORT,Accommodation,EXPRESS BY HOLIDAY INN,25-Apr-2019,137.00
BUSINESS SUPPORT,Travel/Subsistence,OYSTER AUTO-TOP UP,25-Apr-2019,20.00
BUSINESS SUPPORT,Stationery,WH SMITH,25-Apr-2019,23.98
BUSINESS SUPPORT,Accommodation,CITI ROOMS LUTON MK LTD,25-Apr-2019,666.00
BUSINESS SUPPORT,Financial Services,GEN REGISTER OFFICE,25-Apr-2019,45.25
BUSINESS SUPPORT,Travel/Subsistence,OYSTER AUTO-TOP UP,25-Apr-2019,40.00
BUSINESS SUPPORT,Travel/Subsistence,OYSTER AUTO-TOP UP,25-Apr-2019,20.00
EVENTS & FILMING,Building-Tools,WWW.YAHIRE.COM,25-Apr-2019,"2,400.00"
HOUSING MANAGEMENT SERVICES,Travel/Subsistence,LUL TICKET MACHINE,25-Apr-2019,85.00
HOUSING OPTIONS - GF,Furniture-Domestic Furniture,WWW.IKEA.COM,25-Apr-2019,199.00
LEGAL SERVICES,Travel/Subsistence,LUL TICKET MACHINE,25-Apr-2019,50.00
LIBRARIES & ARCHIVES,Education-Library Books,AMZNMktplace,25-Apr-2019,19.70
LIBRARIES & ARCHIVES,Books/Publications/Resources,ECONOMIST SUBSCRIPTION,25-Apr-2019,145.00
LIBRARIES & ARCHIVES,Education-Library Books,AMZN Mktp UK,25-Apr-2019,5.50
PARKING OPERATIONS,Travel/Subsistence,OYSTER ONLINE,25-Apr-2019,150.00
PARKS & LEISURE SERVICES,Building-Timber,B & Q 1009,25-Apr-2019,52.44
PARKS & LEISURE SERVICES,Domestic Goods-Other,CURRYS SUPERSTORE,25-Apr-2019,175.47
PARKS & LEISURE SERVICES,Building-General,SCREWFIX DIRECT,25-Apr-2019,110.57
PROGRAMME PERFORMANCE,Facilities-Design & Photography,CANVA* FOR WORK MONTH,25-Apr-2019,10.37
SPECIALIST YOUTH,Travel/Subsistence,OYSTER AUTO-TOP UP,25-Apr-2019,60.00
SUBSTANCE MISUSE,Sports Equipment,YOGA MATTERS LTD,25-Apr-2019,158.50
BUSINESS SUPPORT,Domestic Goods-Other,WWW.ARGOS.CO.UK,26-Apr-2019,579.98
BUSINESS SUPPORT,Travel/Subsistence,OYSTER AUTO-TOP UP,26-Apr-2019,40.00
BUSINESS SUPPORT,Catering Food & Drink,TESCO STORE 2143,26-Apr-2019,50.00
BUSINESS SUPPORT,Taxi Fares,SW9 TO CR7,26-Apr-2019,30.00
BUSINESS SUPPORT,Taxi Fares,CIVIC TO SE11,26-Apr-2019,25.00
BUSINESS SUPPORT,Travel/Subsistence,OYSTER AUTO-TOP UP,26-Apr-2019,40.00
BUSINESS SUPPORT,Travel/Subsistence,OYSTER AUTO-TOP UP,26-Apr-2019,40.00
BUSINESS SUPPORT,Financial Services,LONDON BRGH OF LAMBETH,26-Apr-2019,63.00
BUSINESS SUPPORT,Travel/Subsistence,OYSTER AUTO-TOP UP,26-Apr-2019,20.00
BUSINESS SUPPORT,Travel/Subsistence,OYSTER AUTO-TOP UP,26-Apr-2019,40.00
BUSINESS SUPPORT,Domestic Goods-Other,AMZNMKTPLACE AMAZON.CO.UK,26-Apr-2019,34.00
BUSINESS SUPPORT,Travel/Subsistence,OYSTER ONLINE,26-Apr-2019,30.00
BUSINESS SUPPORT,Financial Services-Grants,WWW.CORAM.ORG.UK,26-Apr-2019,359.10
BUSINESS SUPPORT,Travel/Subsistence,OYSTER AUTO-TOP UP,26-Apr-2019,20.00
DAY SERVICES,Catering Food & Drink,WWW.ICELAND.CO.UK,26-Apr-2019,162.46
DAY SERVICES,Domestic Goods-Other,CURRYS SUPERSTORE,26-Apr-2019,239.00
FINANCIAL PLANNING AND MANAGEMENT,Financial Services,LAND REGISTRY,26-Apr-2019,9.00
LIBRARIES & ARCHIVES,Education-Library Books,Amazon.co.uk,26-Apr-2019,8.91
PARKS & LEISURE SERVICES,Domestic Goods-Other,TERRYS ALL LOCKS,26-Apr-2019,50.00
SPECIALIST YOUTH,Travel/Subsistence,OYSTER AUTO-TOP UP,26-Apr-2019,20.00
BUSINESS SUPPORT,Travel/Subsistence,OYSTER AUTO-TOP UP,27-Apr-2019,40.00
BUSINESS SUPPORT,Travel/Subsistence,OYSTER AUTO-TOP UP,27-Apr-2019,20.00
BUSINESS SUPPORT,Travel/Subsistence,OYSTER AUTO-TOP UP,27-Apr-2019,20.00
BUSINESS SUPPORT,Travel/Subsistence,OYSTER AUTO-TOP UP,27-Apr-2019,20.00
BUSINESS SUPPORT,Travel/Subsistence,OYSTER AUTO-TOP UP,27-Apr-2019,40.00
BUSINESS SUPPORT,Travel/Subsistence,OYSTER AUTO-TOP UP,27-Apr-2019,20.00
BUSINESS SUPPORT,Travel/Subsistence,OYSTER AUTO-TOP UP,27-Apr-2019,20.00
PARKS & LEISURE SERVICES,Horticultural-Other,WWW.WILDSEED.CO.UK,27-Apr-2019,98.80
BUSINESS SUPPORT,Travel/Subsistence,OYSTER AUTO-TOP UP,28-Apr-2019,20.00
BUSINESS SUPPORT,Travel/Subsistence,OYSTER AUTO-TOP UP,28-Apr-2019,40.00
BUSINESS SUPPORT,Travel/Subsistence,OYSTER AUTO-TOP UP,28-Apr-2019,40.00
BUSINESS SUPPORT,Travel/Subsistence,OYSTER AUTO-TOP UP,28-Apr-2019,20.00
BUSINESS SUPPORT,Travel/Subsistence,OYSTER AUTO-TOP UP,28-Apr-2019,60.00
BUSINESS SUPPORT,Travel/Subsistence,OYSTER AUTO-TOP UP,28-Apr-2019,20.00
BUSINESS SUPPORT,Domestic Goods-Other,AMZNMKTPLACE AMAZON.CO.UK,28-Apr-2019,89.82
DAY SERVICES,Catering Food & Drink,LIDL GB LONDON,28-Apr-2019,108.11
PARKS & LEISURE SERVICES,Building-Timber,SCREWFIX BRIXTON,28-Apr-2019,247.76
SUBSTANCE MISUSE,Education-Library Books,AMZN Mktp UK,28-Apr-2019,18.46
ADULTS WITH MENTAL HEALTH NEEDS,Travel/Subsistence,SE BRIXTON TO,29-Apr-2019,80.70
BUSINESS SUPPORT,Travel/Subsistence,OYSTER ONLINE,29-Apr-2019,30.00
BUSINESS SUPPORT,Travel/Subsistence,LUL TICKET MACHINE,29-Apr-2019,50.00
BUSINESS SUPPORT,Travel/Subsistence,TRAINLINE,29-Apr-2019,186.51
BUSINESS SUPPORT,Financial Services,LONDON BRGH OF LAMBETH,29-Apr-2019,52.00
BUSINESS SUPPORT,Accommodation,PREMIER INN 44536865,29-Apr-2019,94.00
BUSINESS SUPPORT,Financial Services,HM PASSPORT OFFICE,29-Apr-2019,143.50
BUSINESS SUPPORT,Travel/Subsistence,OYSTER AUTO-TOP UP,29-Apr-2019,20.00
BUSINESS SUPPORT,Travel/Subsistence,OYSTER ONLINE,29-Apr-2019,30.00
DAY SERVICES,Catering Food & Drink,ICELAND,29-Apr-2019,43.00
DAY SERVICES,Catering Food & Drink,SEABREAZE FISH MONGERS,29-Apr-2019,60.00
DEMOCRATIC SERVICES,Catering Food & Drink,MARKS&SPENCER PLC SACA,29-Apr-2019,38.95
HOUSING MANAGEMENT SERVICES,Consultancy-Business,FORTRESS MASTER LOCKSMITH,29-Apr-2019,26.85
LIBRARIES & ARCHIVES,Education-Library Books,Amazon.co.uk,29-Apr-2019,11.48
LIBRARIES & ARCHIVES,Education-Other,Amazon Prime,29-Apr-2019,-7.99
LIBRARIES & ARCHIVES,Education-Other,Amazon Prime,29-Apr-2019,-7.99
LIBRARIES & ARCHIVES,Facilities-Market Research,Amazon Prime,29-Apr-2019,-7.99
LIBRARIES & ARCHIVES,Education-Other,AMAZON PRIME AMZN.CO.UK/P,29-Apr-2019,-7.99
LIBRARIES & ARCHIVES,Education-Other,Amazon Prime,29-Apr-2019,-7.99
PARKS & LEISURE SERVICES,Building-Timber,SCREWFIX BRIXTON,29-Apr-2019,149.95
PARKS & LEISURE SERVICES,Building-General,SCREWFIX DIRECT,29-Apr-2019,231.82
ADULTS WITH MENTAL HEALTH NEEDS,Legal Services-Other,HMCOURTS-SERVICE.G,30-Apr-2019,300.00
BUSINESS SUPPORT,Facilities-Advertising,EXPRESS NEWS,30-Apr-2019,20.00
BUSINESS SUPPORT,Facilities-Advertising,FACEBK UBQH3LNCE2,30-Apr-2019,300.00
BUSINESS SUPPORT,Travel/Subsistence,OYSTER ONLINE,30-Apr-2019,60.00
BUSINESS SUPPORT,Catering Food & Drink,LOW COST SUPERMARKET,30-Apr-2019,15.00
BUSINESS SUPPORT,Travel/Subsistence,OYSTER AUTO-TOP UP,30-Apr-2019,20.00
BUSINESS SUPPORT,Travel/Subsistence,OYSTER ONLINE,30-Apr-2019,30.00
BUSINESS SUPPORT,Organised Activities,LITTLE ANGELS CONTACT,30-Apr-2019,201.00
BUSINESS SUPPORT,Catering Food & Drink,HOUR GLASS,30-Apr-2019,99.00
DAY SERVICES,Catering Food & Drink,SAINSBURY'S,30-Apr-2019,7.70
DIRECTOR OF FINANCE,IT Services,PARTICIPANT UK LTD,30-Apr-2019,473.10
EVENTS & FILMING,Facilities-Advertising,WH SMITH,30-Apr-2019,11.99
EVENTS & FILMING,Healthcare-Drugs,KINGSHIELD PHARMACY,30-Apr-2019,3.35
HOUSING MANAGEMENT SERVICES,Travel/Subsistence,LUL TICKET MACHINE,30-Apr-2019,60.00
HOUSING OPTIONS - GF,Furniture-Domestic Furniture,WWW.IKEA.COM,30-Apr-2019,715.00
HOUSING OPTIONS - GF,Furniture-Domestic Furniture,WWW.JOHNLEWIS.COM,30-Apr-2019,82.95
LIBRARIES & ARCHIVES,Books/Publications/Resources,Sainsburys Bank CASH,30-Apr-2019,170.00
LIBRARIES & ARCHIVES,Education-Library Books,AMZN MKTP UK,30-Apr-2019,4.95
PARKING OPERATIONS,Mail Services-Postage,THE POST OFFICE,30-Apr-2019,667.36
PARKS & LEISURE SERVICES,Building-Timber,SELCO TRADING CTR,30-Apr-2019,192.10
PARKS & LEISURE SERVICES,Building-Timber,SELCO TRADING CTR,30-Apr-2019,113.99
PLANNING,Travel/Subsistence,LUL TICKET MACHINE,30-Apr-2019,90.00
BUSINESS SUPPORT,Facilities-Advertising,EXPRESS NEWS,01-May-2019,30.25
BUSINESS SUPPORT,Travel/Subsistence,OYSTER AUTO-TOP UP,01-May-2019,20.00
BUSINESS SUPPORT,Travel/Subsistence,OYSTER ONLINE,01-May-2019,20.00
BUSINESS SUPPORT,Domestic Goods-Other,WWW.ARGOS.CO.UK,01-May-2019,585.94
BUSINESS SUPPORT,Travel/Subsistence,OYSTER AUTO-TOP UP,01-May-2019,20.00
BUSINESS SUPPORT,Mail Services-Postage,THE POST OFFICE,01-May-2019,131.00
BUSINESS SUPPORT,Travel/Subsistence,OYSTER AUTO-TOP UP,01-May-2019,40.00
BUSINESS SUPPORT,Travel/Subsistence,OYSTER AUTO-TOP UP,01-May-2019,40.00
BUSINESS SUPPORT,Domestic Goods-Other,ARGOS RETAIL GROUP,01-May-2019,48.00
BUSINESS SUPPORT,Travel/Subsistence,LUL TICKET MACHINE,01-May-2019,15.00
BUSINESS SUPPORT,Facilities-Storage,WWW.SAFESTORE.CO.UK,01-May-2019,556.91
BUSINESS SUPPORT,Travel/Subsistence,OYSTER AUTO-TOP UP,01-May-2019,60.00
BUSINESS SUPPORT,Facilities-Market Research,Amazon Prime,01-May-2019,7.99
BUSINESS SUPPORT,Facilities-Advertising,EXPRESS NEWS,01-May-2019,50.00
BUSINESS SUPPORT,Travel/Subsistence,OYSTER AUTO-TOP UP,01-May-2019,40.00
BUSINESS SUPPORT,Domestic Goods-Other,WWW.ARGOS.CO.UK,01-May-2019,369.99
BUSINESS SUPPORT,Catering Food & Drink,BAGEL WORLD,01-May-2019,68.50
BUSINESS SUPPORT,Domestic Goods-Other,WWW.ARGOS.CO.UK,01-May-2019,422.92
BUSINESS SUPPORT,Travel/Subsistence,OYSTER AUTO-TOP UP,01-May-2019,20.00
DEMOCRATIC SERVICES,Travel/Subsistence,WWW.SOUTHWESTTRAINS.CO,01-May-2019,70.50
EVENTS & FILMING,Facilities-Advertising,WH SMITH,01-May-2019,4.98
HOUSING BENEFIT,Legal Services-Other,HMCOURTS-SERVICE.G,01-May-2019,"2,444.00"
LIBRARIES & ARCHIVES,Education-Library Books,AMAZON.CO.UK,01-May-2019,9.26
LIBRARIES & ARCHIVES,Education-Library Books,Amazon.co.uk,01-May-2019,10.88
LIBRARIES & ARCHIVES,Books/Publications/Resources,CASH ADVANCE FEE,01-May-2019,5.02
PROGRAMME PERFORMANCE,IT Services,NATIONBUILDER,01-May-2019,188.93
PROGRAMME PERFORMANCE,IT Services,GOOGLE,01-May-2019,16.34
BUSINESS SUPPORT,Travel/Subsistence,OYSTER AUTO-TOP UP,02-May-2019,80.00
BUSINESS SUPPORT,Financial Services,GEN REGISTER OFFICE,02-May-2019,-108.75
BUSINESS SUPPORT,Furniture-Domestic Furniture,WWW.SCS.CO.UK,02-May-2019,358.00
BUSINESS SUPPORT,Accommodation,CITY GROUP APARTMENTS,02-May-2019,608.00
BUSINESS SUPPORT,Travel/Subsistence,OYSTER AUTO-TOP UP,02-May-2019,20.00
BUSINESS SUPPORT,Financial Services,GEN REGISTER OFFICE,02-May-2019,115.25
BUSINESS SUPPORT,Travel/Subsistence,OYSTER AUTO-TOP UP,02-May-2019,20.00
BUSINESS SUPPORT,Travel/Subsistence,OYSTER AUTO-TOP UP,02-May-2019,20.00
BUSINESS SUPPORT,Travel/Subsistence,OYSTER ONLINE,02-May-2019,5.00
BUSINESS SUPPORT,Travel/Subsistence,OYSTER ONLINE,02-May-2019,30.00
BUSINESS SUPPORT,Travel/Subsistence,OYSTER ONLINE,02-May-2019,30.00
BUSINESS SUPPORT,Travel/Subsistence,OYSTER ONLINE,02-May-2019,30.00
BUSINESS SUPPORT,Travel/Subsistence,OYSTER AUTO-TOP UP,02-May-2019,60.00
BUSINESS SUPPORT,Travel/Subsistence,OYSTER AUTO-TOP UP,02-May-2019,20.00
BUSINESS SUPPORT,Facilities-Market Research,GOOGLE,02-May-2019,64.31
DAY SERVICES,Catering Food & Drink,TESCO STORE 2764,02-May-2019,34.68
DAY SERVICES,Catering Food & Drink,TESCO STORE 2764,02-May-2019,149.59
DAY SERVICES,Catering Food & Drink,TESCO STORE 2764,02-May-2019,135.32
EVENTS & FILMING,Domestic Goods-Other,AMZNMktplace,02-May-2019,19.76
EVENTS & FILMING,Domestic Goods-Other,ID AND C UK LTD,02-May-2019,348.00
EVENTS & FILMING,IT Software,ADOBE  CREATIVE CLOUD,02-May-2019,83.24
EVENTS & FILMING,Domestic Goods-Other,AMZNMktplace,02-May-2019,175.36
LIBRARIES & ARCHIVES,Catering Food & Drink,LIDL GB LONDON,02-May-2019,0.52
LIBRARIES & ARCHIVES,Domestic Goods-Other,ARGOS LTD,02-May-2019,10.49
LIBRARIES & ARCHIVES,Education-Other,WWW.IRONMONGERYDIRECT.,02-May-2019,193.20
LIBRARIES & ARCHIVES,Education-Library Books,AMZN MKTP UK,02-May-2019,21.98
LIBRARIES & ARCHIVES,Education-Library Books,Amazon.co.uk,02-May-2019,8.32
LIBRARIES & ARCHIVES,Education-Library Books,AMZNMktplace,02-May-2019,8.04
PARKS & LEISURE SERVICES,Consultancy-Business,ARMOUR LOCK AND SAFE,02-May-2019,61.00
PARKS & LEISURE SERVICES,Utilities,THE ELECTRIC HIGHWAY C,02-May-2019,2.84
PARKS & LEISURE SERVICES,Consultancy-Business,ARMOUR LOCK AND SAFE,02-May-2019,18.00
PARKS & LEISURE SERVICES,Travel/Subsistence,THE NEC,02-May-2019,16.00
BUSINESS SUPPORT,Travel/Subsistence,OYSTER AUTO-TOP UP,03-May-2019,60.00
BUSINESS SUPPORT,Travel/Subsistence,OYSTER AUTO-TOP UP,03-May-2019,20.00
BUSINESS SUPPORT,Clothing-Children/Adults,SCHOOL WEAR UNITED LIMITE,03-May-2019,175.50
BUSINESS SUPPORT,Travel/Subsistence,OYSTER AUTO-TOP UP,03-May-2019,80.00
BUSINESS SUPPORT,Domestic Goods-Other,WWW.ARGOS.CO.UK,03-May-2019,"1,898.84"
BUSINESS SUPPORT,Travel/Subsistence,OYSTER AUTO-TOP UP,03-May-2019,60.00
BUSINESS SUPPORT,Travel/Subsistence,OYSTER AUTO-TOP UP,03-May-2019,60.00
BUSINESS SUPPORT,Catering Food & Drink,MARKS&SPENCER PLC,03-May-2019,33.50
BUSINESS SUPPORT,Travel/Subsistence,OYSTER AUTO-TOP UP,03-May-2019,20.00
BUSINESS SUPPORT,Taxi Fares,ALPHA CARS CRAWLEY,03-May-2019,29.00
BUSINESS SUPPORT,Travel/Subsistence,TFL OYST PHOTOCARD,03-May-2019,20.00
BUSINESS SUPPORT,Domestic Goods-Other,ARGOS RETAIL GROUP,03-May-2019,50.00
BUSINESS SUPPORT,Travel/Subsistence,OYSTER AUTO-TOP UP,03-May-2019,20.00
BUSINESS SUPPORT,Catering Food & Drink,BAGEL WORLD,03-May-2019,84.50
BUSINESS SUPPORT,Haulage,www.anyvan.com,03-May-2019,119.00
BUSINESS SUPPORT,Travel/Subsistence,OYSTER AUTO-TOP UP,03-May-2019,20.00
BUSINESS SUPPORT,Travel/Subsistence,OYSTER ONLINE,03-May-2019,60.00
BUSINESS SUPPORT,Taxi Fares,ALPHA CARS CRAWLEY,03-May-2019,30.00
EVENTS & FILMING,Education-Library Books,AMZN Mktp UK,03-May-2019,38.00
EVENTS & FILMING,Domestic Goods-Other,AMZNMktplace,03-May-2019,107.33
EVENTS & FILMING,Public Transport,OYSTER AUTO-TOP UP,03-May-2019,40.00
HOUSING BENEFIT,Domestic Goods-Other,AMZNMKTPLACE AMAZON.CO.UK,03-May-2019,28.14
HOUSING BENEFIT,Education-Library Books,AMZN MKTP UK,03-May-2019,33.99
LIBRARIES & ARCHIVES,Catering Food & Drink,PRIME STORE,03-May-2019,139.80
LIBRARIES & ARCHIVES,Education-Library Books,AMZNMktplace,03-May-2019,25.27
LIBRARIES & ARCHIVES,Travel/Subsistence,OYSTER AUTO-TOP UP,03-May-2019,20.00
LIBRARIES & ARCHIVES,Catering Food & Drink,PRIME STORE,03-May-2019,142.40
LIBRARIES & ARCHIVES,Catering Food & Drink,PRIME STORE,03-May-2019,146.80
PARKS & LEISURE SERVICES,Building-Timber,WWW.SELCOBW.COM,03-May-2019,223.16
PARKS & LEISURE SERVICES,Consultancy-Business,ARMOUR LOCK AND SAFE,03-May-2019,45.00
PROGRAMME PERFORMANCE,IT Services,NATIONBUILDER,03-May-2019,94.34
PROGRAMME PERFORMANCE,IT Services,AWS EMEA,03-May-2019,136.21
ADULTS WITH MENTAL HEALTH NEEDS,Travel/Subsistence,OYSTER AUTO-TOP UP,04-May-2019,20.00
BUSINESS SUPPORT,Travel/Subsistence,OYSTER AUTO-TOP UP,04-May-2019,20.00
BUSINESS SUPPORT,Travel/Subsistence,OYSTER AUTO-TOP UP,04-May-2019,20.00
BUSINESS SUPPORT,Travel/Subsistence,OYSTER AUTO-TOP UP,04-May-2019,80.00
BUSINESS SUPPORT,Travel/Subsistence,OYSTER AUTO-TOP UP,04-May-2019,60.00
BUSINESS SUPPORT,Travel/Subsistence,OYSTER AUTO-TOP UP,04-May-2019,20.00
BUSINESS SUPPORT,Travel/Subsistence,OYSTER AUTO-TOP UP,04-May-2019,40.00
BUSINESS SUPPORT,Travel/Subsistence,OYSTER AUTO-TOP UP,04-May-2019,20.00
BUSINESS SUPPORT,Travel/Subsistence,OYSTER AUTO-TOP UP,04-May-2019,60.00
EVENTS & FILMING,Education-Library Books,AMZN Mktp UK,04-May-2019,15.56
EVENTS & FILMING,Domestic Goods-Other,AMAZON.CO.UK,04-May-2019,21.98
HOUSING BENEFIT,Education-Library Books,AMZN Mktp UK,04-May-2019,20.47
LIBRARIES & ARCHIVES,Education-Library Books,AMZNMktplace,04-May-2019,9.13
LIBRARIES & ARCHIVES,Books/Publications/Resources,HERNE HILL LONDIS,04-May-2019,308.80
PARKS & LEISURE SERVICES,Professional & Advisory Services,WWW.ICFM.COM,04-May-2019,60.00
PROGRAMME PERFORMANCE,IT Services,PANTHEON SYSTEMS INC,04-May-2019,27.75
SPECIALIST YOUTH,Travel/Subsistence,OYSTER AUTO-TOP UP,04-May-2019,20.00
SPECIALIST YOUTH,Travel/Subsistence,OYSTER AUTO-TOP UP,04-May-2019,20.00
BUSINESS SUPPORT,Travel/Subsistence,OYSTER AUTO-TOP UP,05-May-2019,20.00
BUSINESS SUPPORT,Travel/Subsistence,OYSTER AUTO-TOP UP,05-May-2019,20.00
BUSINESS SUPPORT,Travel/Subsistence,OYSTER AUTO-TOP UP,05-May-2019,20.00
BUSINESS SUPPORT,Travel/Subsistence,OYSTER AUTO-TOP UP,05-May-2019,20.00
BUSINESS SUPPORT,Travel/Subsistence,OYSTER AUTO-TOP UP,05-May-2019,20.00
BUSINESS SUPPORT,Travel/Subsistence,OYSTER AUTO-TOP UP,05-May-2019,20.00
BUSINESS SUPPORT,Travel/Subsistence,OYSTER AUTO-TOP UP,05-May-2019,20.00
BUSINESS SUPPORT,Travel/Subsistence,OYSTER AUTO-TOP UP,05-May-2019,40.00
EVENTS & FILMING,Education-Library Books,AMZN Mktp UK,05-May-2019,3.89
HOUSING MANAGEMENT SERVICES,Facilities-Market Research,AMAZON PRIME,05-May-2019,7.99
LIBRARIES & ARCHIVES,Travel/Subsistence,OYSTER AUTO-TOP UP,05-May-2019,40.00
LIBRARIES & ARCHIVES,Travel/Subsistence,OYSTER AUTO-TOP UP,05-May-2019,40.00
PARKS & LEISURE SERVICES,Vehicle Parts,WWW.NEWTONTRAILERS.COM,05-May-2019,66.10
SPECIALIST YOUTH,Furniture-Office Furniture,AMZNMKTPLACE AMAZON.CO.UK,05-May-2019,39.00
SPECIALIST YOUTH,Travel/Subsistence,OYSTER AUTO-TOP UP,05-May-2019,20.00
BUSINESS SUPPORT,Domestic Goods-Other,WWW.ARGOS.CO.UK,06-May-2019,149.99
BUSINESS SUPPORT,Travel/Subsistence,OYSTER AUTO-TOP UP,06-May-2019,20.00
EVENTS & FILMING,Education-Library Books,AMZN Mktp UK,06-May-2019,76.00
LIBRARIES & ARCHIVES,Education-Library Books,AMAZON.CO.UK,06-May-2019,23.62
PROGRAMME PERFORMANCE,Facilities-Advertising,FACEBK 2KWETLE5M2,06-May-2019,34.52
ADULTS WITH MENTAL HEALTH NEEDS,Legal Services-Other,HMCOURTS-SERVICE.G,07-May-2019,75.00
BUSINESS SUPPORT,Catering Food & Drink,Brixton Grocers,07-May-2019,5.00
BUSINESS SUPPORT,Travel/Subsistence,OYSTER ONLINE,07-May-2019,30.00
BUSINESS SUPPORT,IT Software,DMN/CANOVAHALL,07-May-2019,54.22
BUSINESS SUPPORT,Domestic Goods-Other,WWW.ARGOS.CO.UK,07-May-2019,"1,167.92"
BUSINESS SUPPORT,Catering Food & Drink,TESCO STORE 2143,07-May-2019,11.39
BUSINESS SUPPORT,Travel/Subsistence,OYSTER ONLINE,07-May-2019,30.00
BUSINESS SUPPORT,Taxi Fares,ABC TAXIS (KENT) LTD,07-May-2019,20.00
BUSINESS SUPPORT,Facilities-Market Research,Amazon Prime,07-May-2019,-7.99
BUSINESS SUPPORT,Domestic Goods-Other,CREDIT PENDING INVESTIGAT,07-May-2019,"-1,167.92"
BUSINESS SUPPORT,Travel/Subsistence,OYSTER ONLINE,07-May-2019,20.00
BUSINESS SUPPORT,Facilities-Advertising,FACEBK 5ADSPL6CE2,07-May-2019,300.00
DAY SERVICES,Catering Food & Drink,LIDL GB LONDON,07-May-2019,6.99
DAY SERVICES,Catering Food & Drink,ICELAND,07-May-2019,30.90
DEMOCRATIC SERVICES,Catering Food & Drink,WWW.DOMINOS.CO.UK,07-May-2019,62.97
EVENTS & FILMING,Consultancy-Business,Water Direct,07-May-2019,972.00
EVENTS & FILMING,Education-Library Books,AMZN Mktp UK,07-May-2019,38.00
FINANCIAL PLANNING AND MANAGEMENT,Domestic Goods-Other,WWW.ARGOS.CO.UK,07-May-2019,122.95
FINANCIAL PLANNING AND MANAGEMENT,Financial Services,LAND REGISTRY,07-May-2019,6.00
FINANCIAL PLANNING AND MANAGEMENT,Travel/Subsistence,LONDON OVERGROUND SST,07-May-2019,50.00
HOUSING MANAGEMENT SERVICES,Catering Food & Drink,BRIXTONHILL EXPRESS,07-May-2019,50.00
HOUSING MANAGEMENT SERVICES,Travel/Subsistence,LUL TICKET MACHINE,07-May-2019,30.00
LIBRARIES & ARCHIVES,Education-Library Books,AMZNMktplace,07-May-2019,2.70
LIBRARIES & ARCHIVES,Education-Other,DXNS CREDIT CONTROL,07-May-2019,42.01
PARKS & LEISURE SERVICES,Building-Timber,B & Q 1037,07-May-2019,38.00
PARKS & LEISURE SERVICES,Building-Timber,ACRE LANE BUILDERS,07-May-2019,72.12
PARKS & LEISURE SERVICES,Domestic Goods-Other,AMZNMKTPLACE AMAZON.CO.UK,07-May-2019,25.42
PARKS & LEISURE SERVICES,Domestic Goods-Other,AMZNMKTPLACE AMAZON.CO.UK,07-May-2019,62.40
SUBSTANCE MISUSE,Catering Food & Drink,TESCO STORES 5999,07-May-2019,93.52
BUSINESS SUPPORT,Facilities-Printing,Amazon.co.uk,08-May-2019,60.09
BUSINESS SUPPORT,Taxi Fares,CR0 TO RM5,08-May-2019,280.00
BUSINESS SUPPORT,Domestic Goods-Other,WWW.ARGOS.CO.UK,08-May-2019,"1,202.90"
BUSINESS SUPPORT,Facilities-Market Research,WAYFAIR #2323473864,08-May-2019,279.31
BUSINESS SUPPORT,Travel/Subsistence,AUTO TOP-UP ARREARS,08-May-2019,20.00
BUSINESS SUPPORT,Facilities-Advertising,EXPRESS NEWS,08-May-2019,91.70
EVENTS & FILMING,Building-Tools,WWW.YAHIRE.COM,08-May-2019,580.00
EVENTS & FILMING,Education-Library Books,AMZN MKTP UK,08-May-2019,12.94
EVENTS & FILMING,Consultancy-Business,N/A,08-May-2019,-375.00
EVENTS & FILMING,IT Software-Customised,ELEGANTTHEMES.COM,08-May-2019,84.67
EVENTS & FILMING,Arts & Leisure Services,PP*THE LIVE INK CO,08-May-2019,"1,821.60"
EVENTS & FILMING,IT Services,Dropbox XB55C77P1WS8,08-May-2019,7.99
HOUSING OPTIONS - GF,Books/Publications/Resources,WHICH,08-May-2019,10.75
HOUSING OPTIONS - GF,Furniture-Domestic Furniture,BRITISH HEART FOUNDATI,08-May-2019,185.00
LIBRARIES & ARCHIVES,Education-Library Books,AMAZON.CO.UK,08-May-2019,5.68
LIBRARIES & ARCHIVES,Education-Library Books,AMZNMktplace,08-May-2019,30.99
PARKS & LEISURE SERVICES,Building-General,TOOLSTATION LTD,08-May-2019,116.27
PARKS & LEISURE SERVICES,Domestic Goods-Other,AMZNMKTPLACE AMAZON.CO.UK,08-May-2019,8.29
PARKS & LEISURE SERVICES,Consultancy-Business,FORTRESS MASTER LOCKSMITH,08-May-2019,3.50
SCHOOL & EDUCATIONAL IMPROVEMENT SERVICE,Education-Library Books,THE BOOK PEOPLE,08-May-2019,246.59
SUBSTANCE MISUSE,Consultancy-Business,CATERING24 LIMITED,08-May-2019,56.93
SUBSTANCE MISUSE,Healthcare Equipment,BEAVER HEALTH CARE LTD,08-May-2019,598.92
SUBSTANCE MISUSE,Domestic Goods-Other,AMZNMktplace,08-May-2019,59.96
ADULTS WITH MENTAL HEALTH NEEDS,Legal Services-Other,HMCOURTS-SERVICE.G,09-May-2019,150.00
BUSINESS SUPPORT,Travel/Subsistence,OYSTER AUTO-TOP UP,09-May-2019,60.00
BUSINESS SUPPORT,Catering Food & Drink,REFILL EATERIE LTD,09-May-2019,61.50
BUSINESS SUPPORT,Travel/Subsistence,Trainline.com,09-May-2019,22.73
BUSINESS SUPPORT,Travel/Subsistence,OYSTER AUTO-TOP UP,09-May-2019,20.00
BUSINESS SUPPORT,Travel/Subsistence,OYSTER AUTO-TOP UP,09-May-2019,20.00
BUSINESS SUPPORT,Domestic Goods-Other,ARGOS DIRECT,09-May-2019,53.94
BUSINESS SUPPORT,Domestic Goods-Other,ARGOS RETAIL GROUP,09-May-2019,-48.00
BUSINESS SUPPORT,Travel/Subsistence,OYSTER AUTO-TOP UP,09-May-2019,40.00
BUSINESS SUPPORT,Travel/Subsistence,OYSTER ONLINE,09-May-2019,-30.00
BUSINESS SUPPORT,Healthcare-Drugs,"BOOTS,0808",09-May-2019,9.37
BUSINESS SUPPORT,Catering Food & Drink,MARKS&SPENCER PLC,09-May-2019,158.50
BUSINESS SUPPORT,Travel/Subsistence,OYSTER AUTO-TOP UP,09-May-2019,40.00
BUSINESS SUPPORT,Travel/Subsistence,OYSTER AUTO-TOP UP,09-May-2019,40.00
BUSINESS SUPPORT,Domestic Goods-Other,WWW.ARGOS.CO.UK,09-May-2019,115.43
BUSINESS SUPPORT,Travel/Subsistence,OYSTER AUTO-TOP UP,09-May-2019,20.00
BUSINESS SUPPORT,Domestic Goods-Other,WWW.ARGOS.CO.UK,09-May-2019,-41.99
BUSINESS SUPPORT,Travel/Subsistence,OYSTER AUTO-TOP UP,09-May-2019,60.00
BUSINESS SUPPORT,Travel/Subsistence,OYSTER ONLINE,09-May-2019,15.00
BUSINESS SUPPORT,Travel/Subsistence,OYSTER AUTO-TOP UP,09-May-2019,20.00
BUSINESS SUPPORT,Travel/Subsistence,OYSTER AUTO-TOP UP,09-May-2019,40.00
BUSINESS SUPPORT,Haulage,PAYPAL,09-May-2019,100.00
DEMOCRATIC SERVICES,Travel/Subsistence,HOTELS.COM158630761754,09-May-2019,380.16
DEMOCRATIC SERVICES,Catering Food & Drink,Just Eat,09-May-2019,91.96
EVENTS & FILMING,Domestic Goods-Other,AMZNMktplace,09-May-2019,42.70
EVENTS & FILMING,Education-Library Books,AMZN MKTP UK,09-May-2019,26.53
FINANCIAL PLANNING AND MANAGEMENT,Financial Services,LAND REGISTRY,09-May-2019,3.00
FINANCIAL PLANNING AND MANAGEMENT,Travel/Subsistence,WWW.GWR.COM,09-May-2019,88.00
HOUSING MANAGEMENT SERVICES,Mail Services-Postage,THE POST OFFICE,09-May-2019,99.40
HOUSING OPTIONS - GF,Furniture-Domestic Furniture,WAYFAIR #2685921328,09-May-2019,164.96
INTERNAL AUDIT,Domestic Goods-Other,CANFORD AUDIO PLC,09-May-2019,120.96
LEARNING & DEVELOPMENT,Financial Services,UKBA10033907179,09-May-2019,"3,199.00"
LEGAL SERVICES,Travel/Subsistence,LUL TICKET MACHINE,09-May-2019,150.00
LIBRARIES & ARCHIVES,Education-Other,FORTRESS MASTER LOCKSMITH,09-May-2019,7.00
LIBRARIES & ARCHIVES,Education-Other,FORTRESS MASTER LOCKSMITH,09-May-2019,3.50
LIBRARIES & ARCHIVES,Education-Library Books,Amazon.co.uk,09-May-2019,28.21
PARKS & LEISURE SERVICES,Building-Timber,SCREWFIX BRIXTON,09-May-2019,19.96
SCHOOL & EDUCATIONAL IMPROVEMENT SERVICE,Education-Library Books,THE BOOK PEOPLE,09-May-2019,20.13
SPECIALIST YOUTH,Travel/Subsistence,OYSTER AUTO-TOP UP,09-May-2019,20.00
BUSINESS SUPPORT,Facilities-Advertising,EXPRESS NEWS,10-May-2019,40.00
BUSINESS SUPPORT,Catering Food & Drink,TESCO STORES 5145,10-May-2019,190.00
BUSINESS SUPPORT,Travel/Subsistence,OYSTER ONLINE,10-May-2019,40.00
BUSINESS SUPPORT,Travel/Subsistence,OYSTER ONLINE,10-May-2019,-10.00
BUSINESS SUPPORT,Taxi Fares,SW16 TO SE1 RETURN,10-May-2019,60.00
BUSINESS SUPPORT,Travel/Subsistence,OYSTER AUTO-TOP UP,10-May-2019,20.00
BUSINESS SUPPORT,Travel/Subsistence,OYSTER AUTO-TOP UP,10-May-2019,40.00
BUSINESS SUPPORT,Travel/Subsistence,OYSTER AUTO-TOP UP,10-May-2019,60.00
BUSINESS SUPPORT,Travel/Subsistence,OYSTER ONLINE,10-May-2019,60.00
BUSINESS SUPPORT,Travel/Subsistence,OYSTER ONLINE,10-May-2019,80.00
BUSINESS SUPPORT,Travel/Subsistence,OYSTER ONLINE,10-May-2019,30.00
BUSINESS SUPPORT,Travel/Subsistence,OYSTER AUTO-TOP UP,10-May-2019,40.00
BUSINESS SUPPORT,Travel/Subsistence,OYSTER AUTO-TOP UP,10-May-2019,20.00
BUSINESS SUPPORT,Travel/Subsistence,OYSTER AUTO-TOP UP,10-May-2019,80.00
BUSINESS SUPPORT,Haulage,PAYPAL,10-May-2019,100.00
BUSINESS SUPPORT,Travel/Subsistence,OYSTER AUTO-TOP UP,10-May-2019,80.00
DAY SERVICES,Catering Food & Drink,ICELAND,10-May-2019,22.59
DAY SERVICES,Catering Food & Drink,WWW.ICELAND.CO.UK,10-May-2019,237.58
FINANCIAL PLANNING AND MANAGEMENT,Domestic Goods-Other,WWW.ARGOS.CO.UK,10-May-2019,"2,621.85"
HOUSING BENEFIT,Travel/Subsistence,TRAINLINE,10-May-2019,45.46
LIBRARIES & ARCHIVES,Education-Library Books,Amazon.co.uk,10-May-2019,11.59
LIBRARIES & ARCHIVES,Education-Library Books,AMZN MKTP UK,10-May-2019,19.04
LIBRARIES & ARCHIVES,Education-Library Books,AMZNMktplace,10-May-2019,13.99
PARKS & LEISURE SERVICES,Building-Timber,TP VAUXHALL,10-May-2019,232.32
SPECIALIST YOUTH,Travel/Subsistence,OYSTER AUTO-TOP UP,10-May-2019,20.00
BUSINESS SUPPORT,Travel/Subsistence,OYSTER AUTO-TOP UP,11-May-2019,60.00
BUSINESS SUPPORT,Travel/Subsistence,OYSTER AUTO-TOP UP,11-May-2019,20.00
BUSINESS SUPPORT,Travel/Subsistence,OYSTER AUTO-TOP UP,11-May-2019,40.00
BUSINESS SUPPORT,Travel/Subsistence,OYSTER AUTO-TOP UP,11-May-2019,20.00
BUSINESS SUPPORT,Travel/Subsistence,OYSTER AUTO-TOP UP,11-May-2019,20.00
BUSINESS SUPPORT,Travel/Subsistence,OYSTER AUTO-TOP UP,11-May-2019,20.00
BUSINESS SUPPORT,Travel/Subsistence,OYSTER AUTO-TOP UP,11-May-2019,20.00
BUSINESS SUPPORT,Travel/Subsistence,OYSTER AUTO-TOP UP,11-May-2019,20.00
FINANCIAL PLANNING AND MANAGEMENT,Travel/Subsistence,OYSTER AUTO-TOP UP,11-May-2019,20.00
SPECIALIST YOUTH,Travel/Subsistence,OYSTER AUTO-TOP UP,11-May-2019,40.00
BUSINESS SUPPORT,Travel/Subsistence,OYSTER AUTO-TOP UP,12-May-2019,20.00
BUSINESS SUPPORT,Travel/Subsistence,OYSTER AUTO-TOP UP,12-May-2019,40.00
BUSINESS SUPPORT,Travel/Subsistence,OYSTER AUTO-TOP UP,12-May-2019,20.00
BUSINESS SUPPORT,Travel/Subsistence,OYSTER AUTO-TOP UP,12-May-2019,60.00
BUSINESS SUPPORT,Travel/Subsistence,OYSTER AUTO-TOP UP,12-May-2019,20.00
BUSINESS SUPPORT,Travel/Subsistence,OYSTER AUTO-TOP UP,12-May-2019,100.00
BUSINESS SUPPORT,Travel/Subsistence,OYSTER AUTO-TOP UP,12-May-2019,20.00
BUSINESS SUPPORT,Travel/Subsistence,OYSTER AUTO-TOP UP,12-May-2019,40.00
EVENTS & FILMING,IT Software,BLS*MONDAY.COM,12-May-2019,148.80
SPECIALIST YOUTH,Travel/Subsistence,OYSTER AUTO-TOP UP,12-May-2019,20.00
BUSINESS SUPPORT,Taxi Fares,LONDONNETCARS,13-May-2019,400.00
BUSINESS SUPPORT,Organised Activities,LITTLE ANGELS CONTACT,13-May-2019,241.50
BUSINESS SUPPORT,Taxi Fares,LONDONNETCARS,13-May-2019,350.00
BUSINESS SUPPORT,Travel/Subsistence,OYSTER ONLINE,13-May-2019,30.00
BUSINESS SUPPORT,Travel/Subsistence,OYSTER ONLINE,13-May-2019,20.00
BUSINESS SUPPORT,Travel/Subsistence,OYSTER ONLINE,13-May-2019,30.00
BUSINESS SUPPORT,Travel/Subsistence,OYSTER AUTO-TOP UP,13-May-2019,20.00
BUSINESS SUPPORT,Travel/Subsistence,Trainline.com,13-May-2019,25.78
BUSINESS SUPPORT,Domestic Goods-Other,ARGOS RETAIL GROUP,13-May-2019,45.00
BUSINESS SUPPORT,Mail Services-Postage,THE POST OFFICE,13-May-2019,6.60
DAY SERVICES,Catering Food & Drink,TESCO STORE 2143,13-May-2019,51.00
DAY SERVICES,Catering Food & Drink,TESCO STORES 5999,13-May-2019,162.61
DEMOCRATIC SERVICES,Domestic Goods-Other,AMZNMKTPLACE AMAZON.CO.UK,13-May-2019,99.90
DEMOCRATIC SERVICES,Travel/Subsistence,TRAINLINE,13-May-2019,67.53
FINANCIAL PLANNING AND MANAGEMENT,Financial Services,LAND REGISTRY,13-May-2019,9.00
FINANCIAL PLANNING AND MANAGEMENT,Taxi Fares,PP*JASMINDERSI,13-May-2019,28.40
HOUSING MANAGEMENT SERVICES,Travel/Subsistence,LUL TICKET MACHINE,13-May-2019,100.00
INTERNAL AUDIT,Travel/Subsistence,TRAINLINE,13-May-2019,30.26
LEGAL SERVICES,Education-Library Books,BLOOMSBURY PUBLISH,13-May-2019,87.95
LIBRARIES & ARCHIVES,Taxi Fares,WWW.ADDISONLEE.COM,13-May-2019,26.10
LIBRARIES & ARCHIVES,Education-Library Books,Amazon.co.uk,13-May-2019,10.74
LIBRARIES & ARCHIVES,Education-Other,HIGHSPEEDTRAINING.CO.U,13-May-2019,24.00
PARKS & LEISURE SERVICES,Building-Timber,TP BALHAM HILL,13-May-2019,154.54
ADULTS WITH MENTAL HEALTH NEEDS,Travel/Subsistence,OYSTER TELESALES 1ST ISSU,14-May-2019,1.20
ADULTS WITH MENTAL HEALTH NEEDS,Travel/Subsistence,OYSTER ONLINE,14-May-2019,-13.20
ADULTS WITH MENTAL HEALTH NEEDS,Travel/Subsistence,AUTO TOP-UP ARREARS,14-May-2019,20.00
BUSINESS SUPPORT,Stationery,PARTRIDGES,14-May-2019,3.50
BUSINESS SUPPORT,Consultancy-Other,PAYPAL,14-May-2019,15.00
BUSINESS SUPPORT,Catering Food & Drink,LOW COST SUPERMARKET,14-May-2019,40.00
BUSINESS SUPPORT,Works-Construction,PAYPAL,14-May-2019,110.00
BUSINESS SUPPORT,Works-Construction,PAYPAL,14-May-2019,300.00
BUSINESS SUPPORT,Domestic Goods-Other,ARGOS RETAIL GROUP,14-May-2019,-40.00
BUSINESS SUPPORT,Domestic Goods-Other,KITCHEN SHOPPE,14-May-2019,4.47
BUSINESS SUPPORT,Travel/Subsistence,OYSTER ONLINE,14-May-2019,30.00
BUSINESS SUPPORT,Domestic Goods-Other,WWW.ARGOS.CO.UK,14-May-2019,489.98
BUSINESS SUPPORT,Travel/Subsistence,OYSTER ONLINE,14-May-2019,25.00
DEMOCRATIC SERVICES,Education-Library Books,AMZN MKTP UK,14-May-2019,73.97
DEMOCRATIC SERVICES,Domestic Goods-Other,AMZNMKTPLACE AMAZON.CO.UK,14-May-2019,29.98
EVENTS & FILMING,Furniture-Domestic Furniture,WWW.GOPAK.CO.UK,14-May-2019,"1,361.04"
HOUSING MANAGEMENT SERVICES,Travel/Subsistence,TRAINLINE,14-May-2019,241.24
HOUSING MANAGEMENT SERVICES,Travel/Subsistence,LUL TICKET MACHINE,14-May-2019,50.00
LEGAL SERVICES,Legal Services-Other,WWW.HCEGROUP.CO.UK,14-May-2019,"3,917.22"
LIBRARIES & ARCHIVES,Domestic Goods-Other,ARGOS LTD,14-May-2019,9.99
LIBRARIES & ARCHIVES,Domestic Goods-Other,TIMPSON LTD,14-May-2019,12.00
LIBRARIES & ARCHIVES,Education-Other,AO RETAIL LIMITED,14-May-2019,479.00
LIBRARIES & ARCHIVES,Education-Other,AMZNMKTPLACE AMAZON.CO.UK,14-May-2019,22.48
LIBRARIES & ARCHIVES,Education-Other,AMZNMKTPLACE AMAZON.CO.UK,14-May-2019,23.24
LIBRARIES & ARCHIVES,Education-Library Books,AMZNMktplace,14-May-2019,9.95
SUBSTANCE MISUSE,Financial Services,DVLA DRIVER ONLINE,14-May-2019,34.00
BUSINESS SUPPORT,Travel/Subsistence,OYSTER AUTO-TOP UP,15-May-2019,60.00
BUSINESS SUPPORT,Travel/Subsistence,OYSTER AUTO-TOP UP,15-May-2019,80.00
BUSINESS SUPPORT,Travel/Subsistence,OYSTER AUTO-TOP UP,15-May-2019,20.00
BUSINESS SUPPORT,Travel/Subsistence,OYSTER AUTO-TOP UP,15-May-2019,40.00
BUSINESS SUPPORT,Travel/Subsistence,OYSTER AUTO-TOP UP,15-May-2019,40.00
BUSINESS SUPPORT,Travel/Subsistence,OYSTER AUTO-TOP UP,15-May-2019,60.00
BUSINESS SUPPORT,Travel/Subsistence,OYSTER AUTO-TOP UP,15-May-2019,20.00
BUSINESS SUPPORT,Domestic Goods-Other,WWW.ARGOS.CO.UK,15-May-2019,71.95
BUSINESS SUPPORT,Travel/Subsistence,OYSTER AUTO-TOP UP,15-May-2019,20.00
BUSINESS SUPPORT,Travel/Subsistence,AUTO TOP-UP ARREARS,15-May-2019,20.00
EVENTS & FILMING,Arts & Leisure Services,PP*THE LIVE INK CO,15-May-2019,288.00
EVENTS & FILMING,Domestic Goods-Other,PURE AND APPLIED CONS.,15-May-2019,"1,200.00"
HOUSING MANAGEMENT SERVICES,Facilities-Printing,WWW.OCEANMEDIA.CO,15-May-2019,500.00
HOUSING OPTIONS - GF,Furniture-Domestic Furniture,AMZN MKTP UK,15-May-2019,82.95
LEARNING & DEVELOPMENT,Facilities-Market Research,Amazon Prime,15-May-2019,7.99
LEGAL SERVICES,Mail Services-Postage,THE POST OFFICE,15-May-2019,176.00
LIBRARIES & ARCHIVES,Financial Services-Grants,CILIP,15-May-2019,90.00
LIBRARIES & ARCHIVES,Education-Library Books,AMZN Mktp UK,15-May-2019,6.47
PARKING OPERATIONS,Mail Services-Postage,THE POST OFFICE,15-May-2019,246.00
PARKING OPERATIONS,Facilities-Advertising,WH SMITH,15-May-2019,60.00
PARKS & LEISURE SERVICES,Building-Timber,SCREWFIX BRIXTON,15-May-2019,24.99
PARKS & LEISURE SERVICES,Building-Timber,SCREWFIX BRIXTON,15-May-2019,104.97
PLANNING,Consultancy-Business,EB *RIBA LONDON AWARDS,15-May-2019,195.36
RESIDENT ENGAGEMENT,Travel/Subsistence,AUTO TOP-UP ARREARS,15-May-2019,20.00
SPECIALIST YOUTH,Travel/Subsistence,AUTO TOP-UP ARREARS,15-May-2019,40.00
SPECIALIST YOUTH,Catering Food & Drink,TESCO STORE 2143,15-May-2019,200.00
SPECIALIST YOUTH,Travel/Subsistence,TFL AUTOSETTLEMENT,15-May-2019,100.00
ADULTS WITH MENTAL HEALTH NEEDS,Travel/Subsistence,OYSTER AUTO-TOP UP,16-May-2019,20.00
BUSINESS SUPPORT,Travel/Subsistence,OYSTER AUTO-TOP UP,16-May-2019,20.00
BUSINESS SUPPORT,Travel/Subsistence,OYSTER AUTO-TOP UP,16-May-2019,20.00
BUSINESS SUPPORT,Travel/Subsistence,OYSTER AUTO-TOP UP,16-May-2019,60.00
BUSINESS SUPPORT,Travel/Subsistence,OYSTER AUTO-TOP UP,16-May-2019,40.00
BUSINESS SUPPORT,Organised Activities,LET ME PLAY LTD,16-May-2019,60.00
BUSINESS SUPPORT,Education-Library Books,AMZN Mktp UK,16-May-2019,18.99
BUSINESS SUPPORT,Travel/Subsistence,OYSTER AUTO-TOP UP,16-May-2019,100.00
BUSINESS SUPPORT,Travel/Subsistence,OYSTER ONLINE,16-May-2019,20.00
BUSINESS SUPPORT,Domestic Goods-Other,SUMUP  *MOVING MATE LTD T,16-May-2019,438.00
BUSINESS SUPPORT,Travel/Subsistence,OYSTER ONLINE,16-May-2019,30.00
BUSINESS SUPPORT,Domestic Goods-Other,WWW.ARGOS.CO.UK,16-May-2019,269.99
BUSINESS SUPPORT,Travel/Subsistence,OYSTER AUTO-TOP UP,16-May-2019,20.00
BUSINESS SUPPORT,Domestic Goods-Other,WWW.ARGOS.CO.UK,16-May-2019,105.95
BUSINESS SUPPORT,Travel/Subsistence,OYSTER ONLINE,16-May-2019,-15.00
BUSINESS SUPPORT,Travel/Subsistence,OYSTER AUTO-TOP UP,16-May-2019,20.00
BUSINESS SUPPORT,Facilities-Market Research,Amazon Prime,16-May-2019,0.99
BUSINESS SUPPORT,Travel/Subsistence,OYSTER ONLINE,16-May-2019,30.00
BUSINESS SUPPORT,Travel/Subsistence,OYSTER ONLINE,16-May-2019,20.00
BUSINESS SUPPORT,Catering Food & Drink,TESCO STORE 2143,16-May-2019,107.27
BUSINESS SUPPORT,Travel/Subsistence,TFL AUTOSETTLEMENT,16-May-2019,60.00
BUSINESS SUPPORT,Travel/Subsistence,OYSTER ONLINE,16-May-2019,30.00
BUSINESS SUPPORT,Travel/Subsistence,Trainline.com,16-May-2019,30.05
DEMOCRATIC SERVICES,Catering Food & Drink,TESCO STORE 2143,16-May-2019,9.00
DIRECTOR OF FINANCE,Conference Expenses,WWW.EMAP.COM/EVENTS,16-May-2019,"1,198.80"
EVENTS & FILMING,Facilities-Advertising,MAILCHIMP,16-May-2019,70.70
INTERNAL AUDIT,Travel/Subsistence,OYSTER AUTO-TOP UP,16-May-2019,40.00
LEARNING & DEVELOPMENT,Education-Library Books,WP-INTERVIEWGOLD,16-May-2019,900.00
LIBRARIES & ARCHIVES,Education-Library Books,AMZNMktplace,16-May-2019,3.74
LIBRARIES & ARCHIVES,Education-Library Books,Amazon.co.uk,16-May-2019,17.00
SPECIALIST YOUTH,Travel/Subsistence,OYSTER AUTO-TOP UP,16-May-2019,60.00
BUSINESS SUPPORT,Travel/Subsistence,OYSTER AUTO-TOP UP,17-May-2019,20.00
BUSINESS SUPPORT,Taxi Fares,2DAYS SCHL RUN ESCORT,17-May-2019,160.00
BUSINESS SUPPORT,Travel/Subsistence,OYSTER AUTO-TOP UP,17-May-2019,20.00
BUSINESS SUPPORT,Travel/Subsistence,OYSTER AUTO-TOP UP,17-May-2019,80.00
BUSINESS SUPPORT,Travel/Subsistence,OYSTER ONLINE,17-May-2019,-30.00
BUSINESS SUPPORT,Travel/Subsistence,OYSTER ONLINE,17-May-2019,-30.00
BUSINESS SUPPORT,Facilities-Advertising,FACEBK LQYRXL2DE2,17-May-2019,48.02
BUSINESS SUPPORT,Travel/Subsistence,OYSTER AUTO-TOP UP,17-May-2019,20.00
BUSINESS SUPPORT,Travel/Subsistence,OYSTER AUTO-TOP UP,17-May-2019,80.00
BUSINESS SUPPORT,Taxi Fares,SW2 TO SE19,17-May-2019,35.00
BUSINESS SUPPORT,Accommodation,B.com 5019773-CKZIX Luxur,17-May-2019,139.00
BUSINESS SUPPORT,Travel/Subsistence,OYSTER ONLINE,17-May-2019,30.00
BUSINESS SUPPORT,Accommodation,EASYJET,17-May-2019,250.57
DEMOCRATIC SERVICES,Catering Food & Drink,TESCO STORE 2143,17-May-2019,9.00
DEMOCRATIC SERVICES,Accommodation,AIRBNB * HMAJAY98S2,17-May-2019,479.86
FINANCIAL PLANNING AND MANAGEMENT,Financial Services,LAND REGISTRY,17-May-2019,3.00
FINANCIAL PLANNING AND MANAGEMENT,Travel/Subsistence,TRAINLINE,17-May-2019,289.39
LIBRARIES & ARCHIVES,Education-Other,SAINSBURY'S,17-May-2019,10.00
LIBRARIES & ARCHIVES,Domestic Goods-Other,AO RETAIL LIMITED,17-May-2019,66.00
LIBRARIES & ARCHIVES,Education-Library Books,AMZNMktplace,17-May-2019,26.99
LIBRARIES & ARCHIVES,Education-Other,POSTURITE LTD,17-May-2019,141.47
PARKS & LEISURE SERVICES,Horticultural-Other,CROXTED RD GDN CTR,17-May-2019,59.25
PARKS & LEISURE SERVICES,Building-Timber,SELCO TRADING CTR,17-May-2019,223.26
PARKS & LEISURE SERVICES,Financial Services,FC WESTONBIRT ABORETUM,17-May-2019,30.00
PROGRAMME PERFORMANCE,IT Software,CANVA PRO MONTHLY,17-May-2019,10.49
SPECIALIST YOUTH,Travel/Subsistence,OYSTER AUTO-TOP UP,17-May-2019,20.00
SPECIALIST YOUTH,Travel/Subsistence,OYSTER AUTO-TOP UP,17-May-2019,20.00
BUSINESS SUPPORT,Travel/Subsistence,OYSTER AUTO-TOP UP,18-May-2019,20.00
BUSINESS SUPPORT,Travel/Subsistence,OYSTER AUTO-TOP UP,18-May-2019,40.00
BUSINESS SUPPORT,Travel/Subsistence,OYSTER AUTO-TOP UP,18-May-2019,40.00
BUSINESS SUPPORT,Travel/Subsistence,OYSTER AUTO-TOP UP,18-May-2019,40.00
BUSINESS SUPPORT,Travel/Subsistence,OYSTER AUTO-TOP UP,18-May-2019,20.00
BUSINESS SUPPORT,Travel/Subsistence,OYSTER AUTO-TOP UP,18-May-2019,80.00
BUSINESS SUPPORT,Travel/Subsistence,OYSTER AUTO-TOP UP,18-May-2019,100.00
BUSINESS SUPPORT,Travel/Subsistence,OYSTER AUTO-TOP UP,18-May-2019,20.00
BUSINESS SUPPORT,Travel/Subsistence,OYSTER AUTO-TOP UP,18-May-2019,20.00
BUSINESS SUPPORT,Travel/Subsistence,OYSTER AUTO-TOP UP,18-May-2019,40.00
DEMOCRATIC SERVICES,IT Software-Customised,SurveyMonkey,18-May-2019,35.00
LIBRARIES & ARCHIVES,Domestic Goods-Other,ARGOS LTD,18-May-2019,11.98
PARKS & LEISURE SERVICES,Professional & Advisory Services,PAYPAL,18-May-2019,156.00
BUSINESS SUPPORT,Travel/Subsistence,OYSTER AUTO-TOP UP,19-May-2019,20.00
BUSINESS SUPPORT,Travel/Subsistence,OYSTER AUTO-TOP UP,19-May-2019,20.00
BUSINESS SUPPORT,Travel/Subsistence,OYSTER AUTO-TOP UP,19-May-2019,60.00
BUSINESS SUPPORT,Travel/Subsistence,OYSTER AUTO-TOP UP,19-May-2019,40.00
BUSINESS SUPPORT,Travel/Subsistence,OYSTER AUTO-TOP UP,19-May-2019,20.00
BUSINESS SUPPORT,Travel/Subsistence,OYSTER AUTO-TOP UP,19-May-2019,40.00
DEMOCRATIC SERVICES,Building-Tools,WWW.YAHIRE.COM,19-May-2019,245.87
LIBRARIES & ARCHIVES,Travel/Subsistence,OYSTER AUTO-TOP UP,19-May-2019,20.00
ADULTS WITH MENTAL HEALTH NEEDS,Works-Construction/Materials,LOCKSMITHS AT THE TOOL,20-May-2019,438.00
BUSINESS SUPPORT,Domestic Goods-Other,WWW.ARGOS.CO.UK,20-May-2019,379.99
BUSINESS SUPPORT,Travel/Subsistence,OYSTER ONLINE,20-May-2019,30.00
BUSINESS SUPPORT,Facilities-Market Research,Amazon Prime,20-May-2019,0.99
BUSINESS SUPPORT,Catering Food & Drink,LOW COST SUPERMARKET,20-May-2019,30.00
BUSINESS SUPPORT,Healthcare Services,EDMUNDSBURY TRA,20-May-2019,127.50
BUSINESS SUPPORT,Catering Food & Drink,TESCO STORE 2572,20-May-2019,200.00
BUSINESS SUPPORT,Education-Library Books,AMZN MKTP UK,20-May-2019,24.99
BUSINESS SUPPORT,Travel/Subsistence,OYSTER ONLINE,20-May-2019,30.00
BUSINESS SUPPORT,Domestic Goods-Other,AMZNMktplace,20-May-2019,76.33
BUSINESS SUPPORT,Education-Library Books,AMZN MKTP UK,20-May-2019,12.49
BUSINESS SUPPORT,Travel/Subsistence,OYSTER ONLINE,20-May-2019,10.00
BUSINESS SUPPORT,Travel/Subsistence,OYSTER ONLINE,20-May-2019,-30.00
BUSINESS SUPPORT,Accommodation,B.com 2408251-YRZEO Marbl,20-May-2019,90.00
BUSINESS SUPPORT,Financial Services,HM PASSPORT OFFICE,20-May-2019,49.00
BUSINESS SUPPORT,Taxi Fares,ST THOMAS TO COURT BAC,20-May-2019,60.00
DAY SERVICES,Catering Food & Drink,WWW.ICELAND.CO.UK,20-May-2019,60.53
DAY SERVICES,Catering Food & Drink,SAINSBURYS S/MKTS,20-May-2019,6.00
DEMOCRATIC SERVICES,Catering Food & Drink,WWW.DOMINOS.CO.UK,20-May-2019,93.22
FINANCIAL PLANNING AND MANAGEMENT,Travel/Subsistence,WWW.SOUTHWESTTRAINS.CO,20-May-2019,18.20
FINANCIAL PLANNING AND MANAGEMENT,Financial Services,LAND REGISTRY,20-May-2019,3.00
LEGAL SERVICES,Stationery,CURRYS SUPERSTORE,20-May-2019,45.99
LIBRARIES & ARCHIVES,Consultancy-Business,FORTRESS MASTER LOCKSMITH,20-May-2019,149.40
LIBRARIES & ARCHIVES,Books/Publications/Resources,METRO BANK CLAPHAM HIGH,20-May-2019,170.00
LIBRARIES & ARCHIVES,Domestic Goods-Other,AO RETAIL LIMITED,20-May-2019,-25.00
PARKS & LEISURE SERVICES,Financial Services,DVLA VEHICLE TAX,20-May-2019,93.50
PARKS & LEISURE SERVICES,Building-General,LEYLAND SDM CLAPHAM HIGH,20-May-2019,29.98
PARKS & LEISURE SERVICES,Building-General,SCREWFIX DIRECT,20-May-2019,178.78
PROGRAMME PERFORMANCE,IT Software,ADOBE  CREATIVE CLOUD,20-May-2019,141.60
PROGRAMME PERFORMANCE,Facilities-Advertising,FACEBK 8GJ6JL66M2,20-May-2019,60.00
SPECIALIST YOUTH,Travel/Subsistence,BRIXTONHILL EXPRESS,20-May-2019,70.00
SUBSTANCE MISUSE,Catering Food & Drink,TESCO STORES 5999,20-May-2019,65.50
ADULTS WITH MENTAL HEALTH NEEDS,Legal Services-Other,HMCOURTS-SERVICE.G,21-May-2019,300.00
BUSINESS SUPPORT,Domestic Goods-Other,MORLEYS,21-May-2019,699.80
BUSINESS SUPPORT,Domestic Goods-Other,WWW.ARGOS.CO.UK,21-May-2019,536.44
BUSINESS SUPPORT,Financial Services,HM PASSPORT OFFICE,21-May-2019,85.00
BUSINESS SUPPORT,Financial Services,LONDON BRGH OF LAMBETH,21-May-2019,52.00
BUSINESS SUPPORT,Domestic Goods-Other,WWW.ARGOS.CO.UK,21-May-2019,-379.99
BUSINESS SUPPORT,Furniture-Domestic Furniture,BRIXTON FURNITURE CENT,21-May-2019,170.00
BUSINESS SUPPORT,Travel/Subsistence,OYSTER AUTO-TOP UP,21-May-2019,20.00
BUSINESS SUPPORT,Travel/Subsistence,OYSTER ONLINE,21-May-2019,10.00
BUSINESS SUPPORT,Travel/Subsistence,OYSTER AUTO-TOP UP,21-May-2019,20.00
BUSINESS SUPPORT,Travel/Subsistence,TRAINLINE,21-May-2019,31.78
DEMOCRATIC SERVICES,Education-Library Books,AMZN Mktp UK,21-May-2019,239.76
EVENTS & FILMING,Legal Services-Other,DISCLOSURE AND BARRING,21-May-2019,25.00
FINANCIAL PLANNING AND MANAGEMENT,Domestic Goods-Other,WWW.ARGOS.CO.UK,21-May-2019,-12.95
FINANCIAL PLANNING AND MANAGEMENT,Travel/Subsistence,SELFSERVE TICKET,21-May-2019,50.00
HOUSING MANAGEMENT SERVICES,Building-Timber,B & Q 1037,21-May-2019,55.03
HOUSING MANAGEMENT SERVICES,Facilities-Market Research,AMAZON PRIME,21-May-2019,7.99
LIBRARIES & ARCHIVES,Catering Food & Drink,ICELAND,21-May-2019,3.50
LIBRARIES & ARCHIVES,Domestic Goods-Other,ARGOS RETAIL GROUP,21-May-2019,79.99
LIBRARIES & ARCHIVES,Books/Publications/Resources,CASH ADVANCE FEE,21-May-2019,5.02
PARKS & LEISURE SERVICES,Building-Timber,ACRE LANE BUILDERS,21-May-2019,22.92
PROGRAMME PERFORMANCE,Taxi Fares,WWW.ADDISONLEE.COM,21-May-2019,69.00
PUBLIC HEALTH - ADULTS,IT Software,PHE CROWDFUNDER UK ,21-May-2019,161.00
PUBLIC HEALTH - ADULTS,IT Software-Customised,WWW.EUKHOST.COM,21-May-2019,29.94
SPECIALIST YOUTH,Travel/Subsistence,BRIXTONHILL EXPRESS,21-May-2019,100.00
BUSINESS SUPPORT,Travel/Subsistence,OYSTER ONLINE,22-May-2019,10.00
BUSINESS SUPPORT,Travel/Subsistence,OYSTER AUTO-TOP UP,22-May-2019,40.00
BUSINESS SUPPORT,Travel/Subsistence,OYSTER AUTO-TOP UP,22-May-2019,20.00
BUSINESS SUPPORT,Consultancy-Business,WWW.LOCAL.GOV.UK,22-May-2019,654.00
BUSINESS SUPPORT,Travel/Subsistence,OYSTER AUTO-TOP UP,22-May-2019,40.00
BUSINESS SUPPORT,Travel/Subsistence,OYSTER AUTO-TOP UP,22-May-2019,20.00
BUSINESS SUPPORT,Travel/Subsistence,OYSTER AUTO-TOP UP,22-May-2019,40.00
BUSINESS SUPPORT,Travel/Subsistence,OYSTER AUTO-TOP UP,22-May-2019,40.00
BUSINESS SUPPORT,Travel/Subsistence,OYSTER AUTO-TOP UP,22-May-2019,20.00
BUSINESS SUPPORT,Catering Food & Drink,TESCO STORE 2143,22-May-2019,51.39
BUSINESS SUPPORT,Travel/Subsistence,OYSTER AUTO-TOP UP,22-May-2019,20.00
BUSINESS SUPPORT,Travel/Subsistence,OYSTER ONLINE,22-May-2019,30.00
BUSINESS SUPPORT,Travel/Subsistence,OYSTER AUTO-TOP UP,22-May-2019,40.00
BUSINESS SUPPORT,Travel/Subsistence,OYSTER ONLINE,22-May-2019,30.00
BUSINESS SUPPORT,Facilities-Storage,WWW.SAFESTORE.CO.UK,22-May-2019,556.91
BUSINESS SUPPORT,Travel/Subsistence,OYSTER AUTO-TOP UP,22-May-2019,20.00
EVENTS & FILMING,Environmental Services-Vets,SPEEDGATE ENTERPRISES,22-May-2019,866.00
HOUSING BENEFIT,Travel/Subsistence,OYSTER AUTO-TOP UP,22-May-2019,20.00
HOUSING MANAGEMENT SERVICES,Building-General,THE TRADE HUB,22-May-2019,210.75
LIBRARIES & ARCHIVES,Education-Library Books,Amazon.co.uk,22-May-2019,11.99
PARKING OPERATIONS,Travel/Subsistence,OYSTER ONLINE,22-May-2019,200.00
PARKS & LEISURE SERVICES,Financial Services,LAND REGISTRY,22-May-2019,6.00
PARKS & LEISURE SERVICES,Financial Services,LAND REGISTRY,22-May-2019,6.00
PARKS & LEISURE SERVICES,Building-General,MACKAYS HARDWARE,22-May-2019,83.00
PARKS & LEISURE SERVICES,Consultancy-Business,ARMOUR LOCK AND SAFE,22-May-2019,97.00
SPECIALIST YOUTH,Travel/Subsistence,OYSTER ONLINE,22-May-2019,40.00
SPECIALIST YOUTH,Travel/Subsistence,OYSTER AUTO-TOP UP,22-May-2019,20.00
SPECIALIST YOUTH,Travel/Subsistence,OYSTER ONLINE,22-May-2019,30.00
SUSTAINABILITY & ROAD SAFETY,Domestic Goods-Other,HEELS ETC LTD,22-May-2019,16.00
PROGRAMME PERFORMANCE,Taxi Fares,WWW.ADDISONLEE.COM,23-May-2019,49.70
BUSINESS SUPPORT,Taxi Fares,SE11 TO SE24,24-May-2019,30.00
BUSINESS SUPPORT,Travel/Subsistence,OYSTER AUTO-TOP UP,24-May-2019,20.00
BUSINESS SUPPORT,Travel/Subsistence,Trainline.com,24-May-2019,160.58
BUSINESS SUPPORT,Travel/Subsistence,OYSTER AUTO-TOP UP,24-May-2019,40.00
BUSINESS SUPPORT,Travel/Subsistence,OYSTER AUTO-TOP UP,24-May-2019,20.00
BUSINESS SUPPORT,Travel/Subsistence,OYSTER AUTO-TOP UP,24-May-2019,60.00
BUSINESS SUPPORT,Domestic Goods-Other,WWW.ARGOS.CO.UK,24-May-2019,184.99
BUSINESS SUPPORT,Travel/Subsistence,OYSTER AUTO-TOP UP,24-May-2019,20.00
BUSINESS SUPPORT,Travel/Subsistence,OYSTER AUTO-TOP UP,24-May-2019,20.00
BUSINESS SUPPORT,Taxi Fares,KINGS SE27 RET,24-May-2019,60.00
BUSINESS SUPPORT,Travel/Subsistence,OYSTER AUTO-TOP UP,24-May-2019,20.00
BUSINESS SUPPORT,Travel/Subsistence,OYSTER ONLINE,24-May-2019,40.00
BUSINESS SUPPORT,Taxi Fares,SW3CR7BR1RET,24-May-2019,90.00
BUSINESS SUPPORT,Travel/Subsistence,OYSTER AUTO-TOP UP,24-May-2019,20.00
BUSINESS SUPPORT,Taxi Fares,SW3 TO RM6,24-May-2019,80.00
BUSINESS SUPPORT,Travel/Subsistence,EXPEDIA 7437401699807,24-May-2019,144.00
BUSINESS SUPPORT,Travel/Subsistence,OYSTER ONLINE,24-May-2019,30.00
LEARNING & DEVELOPMENT,Financial Services,UKBA8900418218,24-May-2019,"3,199.00"
LIBRARIES & ARCHIVES,IT Software,SILENT NOIZE EVENTS LT,24-May-2019,240.00
SPECIALIST YOUTH,Travel/Subsistence,OYSTER AUTO-TOP UP,24-May-2019,60.00
SPECIALIST YOUTH,Catering Equipment,TESCO STORE 2143,24-May-2019,8.00
BUSINESS SUPPORT,Travel/Subsistence,OYSTER AUTO-TOP UP,25-May-2019,20.00
BUSINESS SUPPORT,Travel/Subsistence,OYSTER AUTO-TOP UP,25-May-2019,80.00
BUSINESS SUPPORT,Travel/Subsistence,OYSTER AUTO-TOP UP,25-May-2019,40.00
BUSINESS SUPPORT,Travel/Subsistence,OYSTER AUTO-TOP UP,25-May-2019,20.00
BUSINESS SUPPORT,Travel/Subsistence,OYSTER AUTO-TOP UP,25-May-2019,20.00
BUSINESS SUPPORT,Travel/Subsistence,OYSTER AUTO-TOP UP,25-May-2019,20.00
BUSINESS SUPPORT,Travel/Subsistence,OYSTER AUTO-TOP UP,25-May-2019,20.00
BUSINESS SUPPORT,Travel/Subsistence,OYSTER AUTO-TOP UP,25-May-2019,60.00
BUSINESS SUPPORT,Travel/Subsistence,OYSTER AUTO-TOP UP,25-May-2019,100.00
BUSINESS SUPPORT,Travel/Subsistence,OYSTER AUTO-TOP UP,25-May-2019,20.00
BUSINESS SUPPORT,Travel/Subsistence,OYSTER AUTO-TOP UP,25-May-2019,20.00
SPECIALIST YOUTH,Travel/Subsistence,OYSTER AUTO-TOP UP,25-May-2019,40.00
BUSINESS SUPPORT,Travel/Subsistence,OYSTER AUTO-TOP UP,26-May-2019,80.00
BUSINESS SUPPORT,Travel/Subsistence,OYSTER AUTO-TOP UP,26-May-2019,20.00
BUSINESS SUPPORT,Travel/Subsistence,OYSTER AUTO-TOP UP,26-May-2019,40.00
BUSINESS SUPPORT,Travel/Subsistence,OYSTER AUTO-TOP UP,26-May-2019,40.00
BUSINESS SUPPORT,Travel/Subsistence,OYSTER AUTO-TOP UP,26-May-2019,20.00
BUSINESS SUPPORT,Travel/Subsistence,OYSTER AUTO-TOP UP,26-May-2019,40.00
BUSINESS SUPPORT,Travel/Subsistence,OYSTER AUTO-TOP UP,26-May-2019,20.00
BUSINESS SUPPORT,Travel/Subsistence,OYSTER AUTO-TOP UP,26-May-2019,20.00
FINANCIAL TRANSACTION SERVICES,Travel/Subsistence,OYSTER AUTO-TOP UP,26-May-2019,20.00
BUSINESS SUPPORT,Facilities-Market Research,Amazon Prime,27-May-2019,7.99
BUSINESS SUPPORT,Travel/Subsistence,OYSTER AUTO-TOP UP,27-May-2019,20.00
BUSINESS SUPPORT,Domestic Goods-Other,WWW.ARGOS.CO.UK,27-May-2019,-3.95
BUSINESS SUPPORT,Travel/Subsistence,OYSTER AUTO-TOP UP,27-May-2019,40.00
LEGAL SERVICES,Taxi Fares,WWW.ADDISONLEE.COM,27-May-2019,77.00
LIBRARIES & ARCHIVES,Facilities-Printing,Amazon.co.uk,27-May-2019,26.08
LIBRARIES & ARCHIVES,Education-Library Books,Amazon.co.uk,27-May-2019,9.99
BUSINESS SUPPORT,Travel/Subsistence,OYSTER AUTO-TOP UP,28-May-2019,20.00
DAY SERVICES,Catering Food & Drink,ICELAND,28-May-2019,38.37
FINANCIAL PLANNING AND MANAGEMENT,Domestic Goods-Other,WWW.ARGOS.CO.UK,28-May-2019,163.94
HOUSING BENEFIT,Travel/Subsistence,Trainline.com,28-May-2019,59.90
HOUSING OPTIONS - GF,Furniture-Office Furniture,WWW.ARGOS.CO.UK,28-May-2019,34.94
PROGRAMME PERFORMANCE,Travel/Subsistence,Trainline.com,28-May-2019,81.46
SPECIALIST YOUTH,Catering Food & Drink,MARKS&SPENCER PLC,28-May-2019,130.00
SUBSTANCE MISUSE,Catering Food & Drink,TESCO STORES 5999,28-May-2019,74.24
SUBSTANCE MISUSE,Domestic Goods-Other,AMZNMKTPLACE AMAZON.CO.UK,28-May-2019,10.92
BUSINESS SUPPORT,Travel/Subsistence,OYSTER ONLINE,29-May-2019,30.00
BUSINESS SUPPORT,Catering Food & Drink,WAITROSE 513,29-May-2019,252.77
BUSINESS SUPPORT,Travel/Subsistence,OYSTER ONLINE,29-May-2019,-10.00
BUSINESS SUPPORT,Travel/Subsistence,OYSTER AUTO-TOP UP,29-May-2019,20.00
BUSINESS SUPPORT,Financial Services,DVLA DRIVER ONLINE,29-May-2019,34.00
BUSINESS SUPPORT,Financial Services,HM PASSPORT OFFICE,29-May-2019,95.00
BUSINESS SUPPORT,Financial Services,IHS164821831PA02 2019-,29-May-2019,100.00
BUSINESS SUPPORT,Domestic Goods-Other,WWW.ARGOS.CO.UK,29-May-2019,-32.55
BUSINESS SUPPORT,Travel/Subsistence,OYSTER ONLINE,29-May-2019,25.00
BUSINESS SUPPORT,Travel/Subsistence,OYSTER ONLINE,29-May-2019,10.00
BUSINESS SUPPORT,Taxi Fares,CIVICTW1CTCR5,29-May-2019,100.00
BUSINESS SUPPORT,Facilities-Printing,VISTAPRINT,29-May-2019,580.78
DAY SERVICES,Catering Food & Drink,SAINSBURYS S/MKTS,29-May-2019,34.70
HOUSING MANAGEMENT SERVICES,Catering Food & Drink,CO-OP GROUP 070801,29-May-2019,25.00
HOUSING MANAGEMENT SERVICES,Travel/Subsistence,LUL TICKET MACHINE,29-May-2019,85.00
LIBRARIES & ARCHIVES,Catering Food & Drink,MARKS&SPENCER PLC SACA,29-May-2019,2.89
PARKING OPERATIONS,Travel/Subsistence,OYSTER ONLINE,29-May-2019,-50.00
PROGRAMME PERFORMANCE,IT Services,BUZZSUMO.COM PRO,29-May-2019,96.98
SPECIALIST YOUTH,Books/Publications/Resources,AMAZON.CO.UK,29-May-2019,29.95
SPECIALIST YOUTH,Travel/Subsistence,OYSTER ONLINE,29-May-2019,-20.00
SUBSTANCE MISUSE,Domestic Goods-Other,AMZNMKTPLACE AMAZON.CO.UK,29-May-2019,65.01
BUSINESS SUPPORT,Catering Food & Drink,JAMAICA SPICE BAKERY L,30-May-2019,38.50
BUSINESS SUPPORT,Travel/Subsistence,OYSTER AUTO-TOP UP,30-May-2019,20.00
BUSINESS SUPPORT,Travel/Subsistence,OYSTER AUTO-TOP UP,30-May-2019,20.00
BUSINESS SUPPORT,Travel/Subsistence,OYSTER AUTO-TOP UP,30-May-2019,20.00
BUSINESS SUPPORT,Travel/Subsistence,OYSTER ONLINE,30-May-2019,20.00
BUSINESS SUPPORT,Catering Food & Drink,SAN MARINO,30-May-2019,45.00
BUSINESS SUPPORT,Taxi Fares,CIVIC TO SE19,30-May-2019,30.00
BUSINESS SUPPORT,Catering Food & Drink,LOW COST SUPERMARKET,30-May-2019,30.00
BUSINESS SUPPORT,Taxi Fares,CIVIC TO SE19 WAITING,30-May-2019,40.00
BUSINESS SUPPORT,Travel/Subsistence,OYSTER AUTO-TOP UP,30-May-2019,40.00
BUSINESS SUPPORT,Taxi Fares,CIVIC SE11 SW16,30-May-2019,60.00
BUSINESS SUPPORT,Travel/Subsistence,OYSTER AUTO-TOP UP,30-May-2019,20.00
BUSINESS SUPPORT,Mail Services-Postage,POST OFFICE SELF SERVI,30-May-2019,2.96
BUSINESS SUPPORT,Travel/Subsistence,OYSTER AUTO-TOP UP,30-May-2019,20.00
BUSINESS SUPPORT,Travel/Subsistence,OYSTER ONLINE,30-May-2019,-40.00
BUSINESS SUPPORT,Catering Food & Drink,LOW COST SUPERMARKET,30-May-2019,40.00
BUSINESS SUPPORT,Travel/Subsistence,OYSTER ONLINE,30-May-2019,30.00
BUSINESS SUPPORT,Travel/Subsistence,OYSTER AUTO-TOP UP,30-May-2019,20.00
INTERNAL AUDIT,Domestic Goods-Other,AMZNMktplace,30-May-2019,7.08
INTERNAL AUDIT,Travel/Subsistence,OYSTER AUTO-TOP UP,30-May-2019,40.00
LIBRARIES & ARCHIVES,Education-Library Books,AMZNMktplace,30-May-2019,22.34
LIBRARIES & ARCHIVES,Books/Publications/Resources,LONDIS,30-May-2019,72.50
LIBRARIES & ARCHIVES,Education-Library Books,Amazon.co.uk,30-May-2019,25.28
LIBRARIES & ARCHIVES,Education-Library Books,AMZ*JULIES-BOOKSHOP,30-May-2019,-2.49
PARKS & LEISURE SERVICES,Financial Services,DVLA VEHICLE TAX,30-May-2019,880.00
SPECIALIST YOUTH,Travel/Subsistence,OYSTER AUTO-TOP UP,30-May-2019,20.00
SUBSTANCE MISUSE,Catering Food & Drink,TESCO-STORES 6567,30-May-2019,47.16
BUSINESS SUPPORT,Travel/Subsistence,OYSTER ONLINE,31-May-2019,158.30
BUSINESS SUPPORT,Travel/Subsistence,OYSTER AUTO-TOP UP,31-May-2019,80.00
BUSINESS SUPPORT,Travel/Subsistence,OYSTER AUTO-TOP UP,31-May-2019,20.00
BUSINESS SUPPORT,Travel/Subsistence,WWW.SOUTHEASTERNRA,31-May-2019,20.00
BUSINESS SUPPORT,Travel/Subsistence,OYSTER AUTO-TOP UP,31-May-2019,20.00
BUSINESS SUPPORT,Travel/Subsistence,OYSTER ONLINE,31-May-2019,30.00
BUSINESS SUPPORT,Travel/Subsistence,OYSTER AUTO-TOP UP,31-May-2019,20.00
BUSINESS SUPPORT,Mail Services-Postage,POST OFFICE SELF SERVI,31-May-2019,5.04
BUSINESS SUPPORT,Travel/Subsistence,LUL TICKET MACHINE,31-May-2019,15.00
BUSINESS SUPPORT,Financial Services,HM PASSPORT OFFICE,31-May-2019,85.00
BUSINESS SUPPORT,Travel/Subsistence,OYSTER AUTO-TOP UP,31-May-2019,40.00
BUSINESS SUPPORT,Travel/Subsistence,OYSTER ONLINE,31-May-2019,158.30
BUSINESS SUPPORT,Domestic Goods-Other,WWW.ARGOS.CO.UK,31-May-2019,63.94
BUSINESS SUPPORT,Travel/Subsistence,OYSTER ONLINE,31-May-2019,-40.00
DAY SERVICES,Catering Food & Drink,WWW.ICELAND.CO.UK,31-May-2019,143.97
DAY SERVICES,Professional & Advisory Services,CLINICARE SUPPLIES LTD,31-May-2019,248.59
EVENTS & FILMING,Financial Services,WANDSWORTH COUNCIL,31-May-2019,70.00
HOUSING MANAGEMENT SERVICES,Domestic Goods-Other,ARGOS LTD,31-May-2019,79.98
HOUSING MANAGEMENT SERVICES,Mail Services-Postage,THE POST OFFICE,31-May-2019,6.60
HOUSING MANAGEMENT SERVICES,Financial Services,LONDON BRGH OF LAMBETH,31-May-2019,31.00
INTERNAL AUDIT,Travel/Subsistence,OYSTER AUTO-TOP UP,31-May-2019,40.00
LEGAL SERVICES,Travel/Subsistence,LUL TICKET MACHINE,31-May-2019,50.00
LIBRARIES & ARCHIVES,Catering Food & Drink,ICELAND,31-May-2019,2.89
PARKS & LEISURE SERVICES,Horticultural-Other,CROXTED RD GDN CTR,31-May-2019,67.15
PARKS & LEISURE SERVICES,Building-General,THE TRADE HUB,31-May-2019,8.98
PARKS & LEISURE SERVICES,Building-General,SCREWFIX DIRECT,31-May-2019,105.41
PARKS & LEISURE SERVICES,Accommodation,THE BETH CHATTO GARDENS L,31-May-2019,225.50
BUSINESS SUPPORT,Travel/Subsistence,OYSTER AUTO-TOP UP,01-Jun-2019,20.00
BUSINESS SUPPORT,Travel/Subsistence,OYSTER AUTO-TOP UP,01-Jun-2019,20.00
BUSINESS SUPPORT,Travel/Subsistence,OYSTER AUTO-TOP UP,01-Jun-2019,20.00
BUSINESS SUPPORT,Travel/Subsistence,OYSTER AUTO-TOP UP,01-Jun-2019,120.00
BUSINESS SUPPORT,Facilities-Market Research,GOOGLE,01-Jun-2019,113.27
BUSINESS SUPPORT,Travel/Subsistence,OYSTER AUTO-TOP UP,01-Jun-2019,20.00
BUSINESS SUPPORT,Travel/Subsistence,OYSTER AUTO-TOP UP,01-Jun-2019,40.00
BUSINESS SUPPORT,Travel/Subsistence,OYSTER AUTO-TOP UP,01-Jun-2019,40.00
BUSINESS SUPPORT,Travel/Subsistence,OYSTER AUTO-TOP UP,01-Jun-2019,80.00
BUSINESS SUPPORT,Travel/Subsistence,OYSTER AUTO-TOP UP,01-Jun-2019,40.00
BUSINESS SUPPORT,Travel/Subsistence,OYSTER AUTO-TOP UP,01-Jun-2019,20.00
EVENTS & FILMING,Travel/Subsistence,OYSTER AUTO-TOP UP,01-Jun-2019,40.00
PROGRAMME PERFORMANCE,IT Services,GOOGLE,01-Jun-2019,18.70
PROGRAMME PERFORMANCE,IT Services,NATIONBUILDER,01-Jun-2019,179.53
BUSINESS SUPPORT,Travel/Subsistence,OYSTER AUTO-TOP UP,02-Jun-2019,20.00
BUSINESS SUPPORT,Travel/Subsistence,OYSTER AUTO-TOP UP,02-Jun-2019,40.00
BUSINESS SUPPORT,Travel/Subsistence,OYSTER AUTO-TOP UP,02-Jun-2019,60.00
BUSINESS SUPPORT,Travel/Subsistence,OYSTER AUTO-TOP UP,02-Jun-2019,20.00
BUSINESS SUPPORT,Travel/Subsistence,OYSTER AUTO-TOP UP,02-Jun-2019,20.00
BUSINESS SUPPORT,Travel/Subsistence,OYSTER AUTO-TOP UP,02-Jun-2019,20.00
DAY SERVICES,Healthcare Equipment,SUPERDRUG STORES PLC,02-Jun-2019,65.06
DAY SERVICES,Catering Food & Drink,ISLAMABAD HALAL BUTCHERS,02-Jun-2019,75.27
EVENTS & FILMING,IT Software,ADOBE  CREATIVE CLOUD,02-Jun-2019,83.24
BEREAVEMENT SERVICES,Building-General,TP NORWOOD 9014,03-Jun-2019,57.61
BUSINESS SUPPORT,Catering Food & Drink,LOW COST SUPERMARKET,03-Jun-2019,10.00
BUSINESS SUPPORT,Facilities-Advertising,EXPRESS NEWS,03-Jun-2019,94.20
BUSINESS SUPPORT,Legal Services-Other,HMCOURTS-SERVICE.G,03-Jun-2019,30.00
BUSINESS SUPPORT,Travel/Subsistence,OYSTER ONLINE,03-Jun-2019,30.00
BUSINESS SUPPORT,Domestic Goods-Other,WWW.ARGOS.CO.UK,03-Jun-2019,306.93
BUSINESS SUPPORT,Organised Activities,LITTLE ANGELS CONTACT,03-Jun-2019,200.00
DAY SERVICES,Catering Food & Drink,ICELAND,03-Jun-2019,67.64
DAY SERVICES,Catering Food & Drink,SEABREAZE FISH MONGERS,03-Jun-2019,30.00
DAY SERVICES,Catering Food & Drink,WWW.ICELAND.CO.UK,03-Jun-2019,302.77
DAY SERVICES,Catering Food & Drink,TESCO STORE 2764,03-Jun-2019,87.56
DAY SERVICES,Catering Food & Drink,ISLAMABAD HALAL BUTCHERS,03-Jun-2019,24.44
DAY SERVICES,Catering Food & Drink,M N NORWOOD HALAL BUTCHER,03-Jun-2019,116.05
FINANCIAL PLANNING AND MANAGEMENT,Financial Services,LAND REGISTRY,03-Jun-2019,15.00
FINANCIAL PLANNING AND MANAGEMENT,Domestic Goods-Other,WWW.ARGOS.CO.UK,03-Jun-2019,115.94
HOUSING MANAGEMENT SERVICES,Travel/Subsistence,LUL TICKET MACHINE,03-Jun-2019,50.00
LEGAL SERVICES,Facilities-Printing,DOCULAND LIMITED,03-Jun-2019,515.52
PARKS & LEISURE SERVICES,Consultancy-Business,FORTRESS MASTER LOCKSMITH,03-Jun-2019,37.50
PROGRAMME PERFORMANCE,IT Services,AWS EMEA,03-Jun-2019,142.22
PROGRAMME PERFORMANCE,IT Services,NATIONBUILDER,03-Jun-2019,97.16
BEREAVEMENT SERVICES,Cemetery & Crematorium,AMZNMktplace,04-Jun-2019,61.65
BEREAVEMENT SERVICES,Cemetery & Crematorium,AMAZON.CO.UK,04-Jun-2019,10.99
BUSINESS SUPPORT,Domestic Goods-Other,WWW.ARGOS.CO.UK,04-Jun-2019,409.99
BUSINESS SUPPORT,Taxi Fares,SW2 TO SE19,04-Jun-2019,30.00
BUSINESS SUPPORT,Taxi Fares,SW9 TO SE17 5 DAYS,04-Jun-2019,350.00
BUSINESS SUPPORT,Financial Services,LEGALSERVICES.GOV.,04-Jun-2019,35.07
BUSINESS SUPPORT,Travel/Subsistence,OYSTER ONLINE,04-Jun-2019,60.00
BUSINESS SUPPORT,Financial Services,HM PASSPORT OFFICE,04-Jun-2019,85.00
BUSINESS SUPPORT,Taxi Fares,SW2 TO SW9,04-Jun-2019,20.00
BUSINESS SUPPORT,Travel/Subsistence,OYSTER ONLINE,04-Jun-2019,30.00
BUSINESS SUPPORT,Travel/Subsistence,OYSTER AUTO-TOP UP,04-Jun-2019,20.00
BUSINESS SUPPORT,Travel/Subsistence,OYSTER ONLINE,04-Jun-2019,30.00
DAY SERVICES,Catering Food & Drink,TESCO STORE 2764,04-Jun-2019,70.20
DAY SERVICES,Building-Others,TESCO STORE 2764,04-Jun-2019,61.64
DEMOCRATIC SERVICES,Catering Food & Drink,TESCO STORE 2143,04-Jun-2019,9.78
EVENTS & FILMING,Haulage,TNT UK LTD,04-Jun-2019,230.39
EVENTS & FILMING,Building-Tools,WWW.YAHIRE.COM,04-Jun-2019,-300.87
FINANCIAL PLANNING AND MANAGEMENT,Financial Services,LAND REGISTRY,04-Jun-2019,3.00
FINANCIAL PLANNING AND MANAGEMENT,Domestic Goods-Other,WWW.ARGOS.CO.UK,04-Jun-2019,"1,857.83"
HOUSING MANAGEMENT SERVICES,IT Software-Customised,INTELLISOFTWARE LTD,04-Jun-2019,120.00
LEARNING & DEVELOPMENT,Facilities-Market Research,Amazon Prime,04-Jun-2019,-7.99
LEGAL SERVICES,Legal Services-General Support,INST OF LIC,04-Jun-2019,80.00
LIBRARIES & ARCHIVES,Education-Library Books,AMZNMktplace,04-Jun-2019,5.79
LIBRARIES & ARCHIVES,Education-Library Books,AMZN Mktp UK,04-Jun-2019,6.49
PARKING OPERATIONS,Mail Services-Postage,THE POST OFFICE,04-Jun-2019,420.00
PARKS & LEISURE SERVICES,Building-Timber,SCREWFIX BRIXTON,04-Jun-2019,88.98
PARKS & LEISURE SERVICES,Building-General,LEYLAND SDM CLAPHAM HIGH,04-Jun-2019,8.98
PARKS & LEISURE SERVICES,Building-Timber,SELCO TRADING CTR,04-Jun-2019,53.63
PARKS & LEISURE SERVICES,Building-Timber,SELCO TRADING CTR,04-Jun-2019,107.37
PROGRAMME PERFORMANCE,IT Services,PANTHEON SYSTEMS INC,04-Jun-2019,28.51
ADULTS WITH MENTAL HEALTH NEEDS,Travel/Subsistence,GREATER ANGLIA TRAINS,05-Jun-2019,25.50
BEREAVEMENT SERVICES,Cemetery & Crematorium,AMZNMktplace,05-Jun-2019,20.85
BEREAVEMENT SERVICES,Catering Food & Drink,AMZNMktplace,05-Jun-2019,9.49
BUSINESS SUPPORT,Travel/Subsistence,OYSTER ONLINE,05-Jun-2019,30.00
BUSINESS SUPPORT,Travel/Subsistence,OYSTER AUTO-TOP UP,05-Jun-2019,80.00
BUSINESS SUPPORT,Travel/Subsistence,OYSTER ONLINE,05-Jun-2019,60.00
BUSINESS SUPPORT,Travel/Subsistence,OYSTER AUTO-TOP UP,05-Jun-2019,40.00
BUSINESS SUPPORT,Travel/Subsistence,OYSTER ONLINE,05-Jun-2019,70.00
BUSINESS SUPPORT,Accommodation,PREMIER INN44521885,05-Jun-2019,295.00
BUSINESS SUPPORT,Travel/Subsistence,OYSTER AUTO-TOP UP,05-Jun-2019,20.00
BUSINESS SUPPORT,Travel/Subsistence,OYSTER ONLINE,05-Jun-2019,-30.00
BUSINESS SUPPORT,Travel/Subsistence,OYSTER AUTO-TOP UP,05-Jun-2019,60.00
BUSINESS SUPPORT,Consultancy-Business,EB *PARTNERSHIPS IN PR,05-Jun-2019,128.51
BUSINESS SUPPORT,Travel/Subsistence,OYSTER ONLINE,05-Jun-2019,-25.00
BUSINESS SUPPORT,Clothing-Children/Adults,CROYDON SCHOOL OF GYMN,05-Jun-2019,85.00
BUSINESS SUPPORT,Travel/Subsistence,OYSTER AUTO-TOP UP,05-Jun-2019,40.00
BUSINESS SUPPORT,Domestic Goods-Other,WWW.ARGOS.CO.UK,05-Jun-2019,586.94
BUSINESS SUPPORT,Travel/Subsistence,TRAINLINE,05-Jun-2019,145.94
BUSINESS SUPPORT,Facilities-Advertising,FACEBK S8AFZLWCE2,05-Jun-2019,400.00
BUSINESS SUPPORT,Travel/Subsistence,OYSTER AUTO-TOP UP,05-Jun-2019,40.00
BUSINESS SUPPORT,Travel/Subsistence,OYSTER AUTO-TOP UP,05-Jun-2019,20.00
BUSINESS SUPPORT,Travel/Subsistence,OYSTER AUTO-TOP UP,05-Jun-2019,20.00
BUSINESS SUPPORT,Travel/Subsistence,OYSTER AUTO-TOP UP,05-Jun-2019,80.00
DEMOCRATIC SERVICES,Catering Food & Drink,TESCO STORE 2143,05-Jun-2019,9.12
HOUSING BENEFIT,Legal Services-Other,HMCOURTS-SERVICE.G,05-Jun-2019,"2,156.50"
HOUSING MANAGEMENT SERVICES,Travel/Subsistence,LUL TICKET MACHINE,05-Jun-2019,200.00
HOUSING MANAGEMENT SERVICES,Facilities-Market Research,Amazon Prime,05-Jun-2019,7.99
HOUSING OPTIONS - GF,Furniture-Domestic Furniture,DFS Trading Limited,05-Jun-2019,"1,128.00"
LEGAL SERVICES,Legal Services-General Support,GROUP SERVICES,05-Jun-2019,"4,069.37"
LIBRARIES & ARCHIVES,Domestic Goods-Other,AMZNMktplace,05-Jun-2019,3.03
LIBRARIES & ARCHIVES,Education-Library Books,AMZNMktplace,05-Jun-2019,6.45
PARKS & LEISURE SERVICES,Financial Services,DVLA ENFORCEMENT,05-Jun-2019,83.34
PARKS & LEISURE SERVICES,Facilities-Advertising,STREET RUNNERS LIMITED,05-Jun-2019,204.00
PARKS & LEISURE SERVICES,Travel/Subsistence,TFL ROAD CHG - STD WEB,05-Jun-2019,11.50
PARKS & LEISURE SERVICES,Building-General,TOOLSTATION LTD,05-Jun-2019,65.73
PARKS & LEISURE SERVICES,Building-Timber,SCREWFIX BRIXTON,05-Jun-2019,53.01
SPECIALIST YOUTH,Building-Others,EXCHANGE SUPPLIES,05-Jun-2019,72.00
SUBSTANCE MISUSE,Consultancy-Business,CATERING24 LIMITED,05-Jun-2019,127.76
SUBSTANCE MISUSE,Financial Services,LAMBETH INTERNET PAYM,05-Jun-2019,100.00
BUSINESS SUPPORT,Travel/Subsistence,OYSTER AUTO-TOP UP,06-Jun-2019,20.00
BUSINESS SUPPORT,Travel/Subsistence,OYSTER AUTO-TOP UP,06-Jun-2019,80.00
BUSINESS SUPPORT,Telecommunications,PAYPAL,06-Jun-2019,357.97
BUSINESS SUPPORT,Organised Activities,LET ME PLAY LTD,06-Jun-2019,30.00
BUSINESS SUPPORT,Financial Services,GEN REGISTER OFFICE,06-Jun-2019,73.00
BUSINESS SUPPORT,Travel/Subsistence,OYSTER AUTO-TOP UP,06-Jun-2019,60.00
BUSINESS SUPPORT,Travel/Subsistence,OYSTER AUTO-TOP UP,06-Jun-2019,20.00
BUSINESS SUPPORT,Catering Food & Drink,MARKS&SPENCER PLC SACA,06-Jun-2019,115.30
BUSINESS SUPPORT,Travel/Subsistence,OYSTER ONLINE,06-Jun-2019,30.00
BUSINESS SUPPORT,Travel/Subsistence,OYSTER AUTO-TOP UP,06-Jun-2019,20.00
BUSINESS SUPPORT,Travel/Subsistence,OYSTER AUTO-TOP UP,06-Jun-2019,20.00
BUSINESS SUPPORT,Travel/Subsistence,OYSTER AUTO-TOP UP,06-Jun-2019,20.00
BUSINESS SUPPORT,Travel/Subsistence,OYSTER AUTO-TOP UP,06-Jun-2019,40.00
BUSINESS SUPPORT,Travel/Subsistence,OYSTER AUTO-TOP UP,06-Jun-2019,60.00
BUSINESS SUPPORT,Travel/Subsistence,OYSTER AUTO-TOP UP,06-Jun-2019,80.00
BUSINESS SUPPORT,Facilities-Advertising,EXPRESS NEWS,06-Jun-2019,60.00
EVENTS & FILMING,Public Transport,OYSTER AUTO-TOP UP,06-Jun-2019,40.00
FINANCIAL PLANNING AND MANAGEMENT,Financial Services,LAND REGISTRY,06-Jun-2019,9.00
LIBRARIES & ARCHIVES,Education-Library Books,AMZNMktplace,06-Jun-2019,6.43
LIBRARIES & ARCHIVES,Financial Services,LAMBETH INTERNET PAYM,06-Jun-2019,21.00
LIBRARIES & ARCHIVES,Books/Publications/Resources,HERNE HILL LONDIS,06-Jun-2019,115.20
LIBRARIES & ARCHIVES,Financial Services,LAMBETH INTERNET PAYM,06-Jun-2019,21.00
PARKS & LEISURE SERVICES,Consultancy-Business,ROMFORD SECURITYS LTD,06-Jun-2019,94.40
PARKS & LEISURE SERVICES,Building-General,SCREWFIX DIRECT,06-Jun-2019,66.97
PARKS & LEISURE SERVICES,Domestic Goods-Other,AMZNMKTPLACE AMAZON.CO.UK,06-Jun-2019,5.99
PROGRAMME PERFORMANCE,Facilities-Advertising,FACEBK L3BXLL26M2,06-Jun-2019,40.00
RESIDENT ENGAGEMENT,Catering Food & Drink,TESCO STORE 2143,06-Jun-2019,36.29
SPECIALIST YOUTH,Travel/Subsistence,OYSTER AUTO-TOP UP,06-Jun-2019,40.00
SPECIALIST YOUTH,Catering Food & Drink,TESCO STORE 2143,06-Jun-2019,7.15
SUBSTANCE MISUSE,Domestic Goods-Other,WWW.ARGOS.CO.UK,06-Jun-2019,215.95
SUBSTANCE MISUSE,Education-Library Books,HEALTH BOOKS UK LTD,06-Jun-2019,22.50
ADULTS WITH MENTAL HEALTH NEEDS,Works-Construction/Materials,LOCKSMITHS AT THE TOOL,07-Jun-2019,408.00
ADULTS WITH MENTAL HEALTH NEEDS,Legal Services-Other,HMCOURTS-SERVICE.G,07-Jun-2019,225.00
BUSINESS SUPPORT,Organised Activities,LITTLE ANGELS CONTACT,07-Jun-2019,58.00
BUSINESS SUPPORT,Travel/Subsistence,OYSTER AUTO-TOP UP,07-Jun-2019,20.00
BUSINESS SUPPORT,Domestic Goods-Other,WWW.ARGOS.CO.UK,07-Jun-2019,"1,259.86"
BUSINESS SUPPORT,Travel/Subsistence,OYSTER AUTO-TOP UP,07-Jun-2019,40.00
BUSINESS SUPPORT,Financial Services,LONDON BRGH OF LAMBETH,07-Jun-2019,41.00
BUSINESS SUPPORT,Travel/Subsistence,OYSTER AUTO-TOP UP,07-Jun-2019,60.00
BUSINESS SUPPORT,Facilities-Advertising,EXPRESS NEWS,07-Jun-2019,10.00
BUSINESS SUPPORT,Organised Activities,LITTLE ANGELS CONTACT,07-Jun-2019,15.00
BUSINESS SUPPORT,Furniture-Domestic Furniture,WWW.IKEA.COM,07-Jun-2019,634.00
BUSINESS SUPPORT,Travel/Subsistence,OYSTER AUTO-TOP UP,07-Jun-2019,20.00
BUSINESS SUPPORT,Travel/Subsistence,OYSTER AUTO-TOP UP,07-Jun-2019,20.00
BUSINESS SUPPORT,Domestic Goods-Other,WWW.ARGOS.CO.UK,07-Jun-2019,569.89
BUSINESS SUPPORT,Education-Other,PAYPAL,07-Jun-2019,900.00
BUSINESS SUPPORT,Travel/Subsistence,OYSTER AUTO-TOP UP,07-Jun-2019,60.00
LIBRARIES & ARCHIVES,Catering Food & Drink,SAINSBURY'S,07-Jun-2019,36.80
LIBRARIES & ARCHIVES,Catering Food & Drink,SAINSBURY'S,07-Jun-2019,188.10
LIBRARIES & ARCHIVES,Education-Library Books,Amazon.co.uk,07-Jun-2019,7.42
LIBRARIES & ARCHIVES,Education-Library Books,AMZNMktplace,07-Jun-2019,49.60
PARKS & LEISURE SERVICES,Building-Timber,HOMEBASE LTD 313,07-Jun-2019,94.85
PARKS & LEISURE SERVICES,Building-Electrical,WWW.LAMPCO.CO.UK,07-Jun-2019,88.85
PARKS & LEISURE SERVICES,Travel/Subsistence,TFL ROAD CHG - STD WEB,07-Jun-2019,23.00
PARKS & LEISURE SERVICES,Building-Timber,SELCO BUILDERS WAR,07-Jun-2019,121.52
PARKS & LEISURE SERVICES,Sports Equipment,BIGFOOT BASKETBALL LIMITE,07-Jun-2019,232.66
PARKS & LEISURE SERVICES,Building-General,TOOLSTATION LTD,07-Jun-2019,80.21
SPECIALIST YOUTH,Taxi Fares,WWW.ADDISONLEE.COM,07-Jun-2019,39.20
SUBSTANCE MISUSE,Healthcare Equipment,BEAVER HEALTH CARE LTD,07-Jun-2019,329.28
BUSINESS SUPPORT,Travel/Subsistence,OYSTER AUTO-TOP UP,08-Jun-2019,100.00
BUSINESS SUPPORT,Travel/Subsistence,OYSTER AUTO-TOP UP,08-Jun-2019,60.00
BUSINESS SUPPORT,Travel/Subsistence,OYSTER AUTO-TOP UP,08-Jun-2019,20.00
BUSINESS SUPPORT,Travel/Subsistence,OYSTER AUTO-TOP UP,08-Jun-2019,20.00
BUSINESS SUPPORT,Travel/Subsistence,OYSTER AUTO-TOP UP,08-Jun-2019,20.00
BUSINESS SUPPORT,Travel/Subsistence,OYSTER AUTO-TOP UP,08-Jun-2019,20.00
BUSINESS SUPPORT,Travel/Subsistence,OYSTER AUTO-TOP UP,08-Jun-2019,60.00
EVENTS & FILMING,IT Services,Dropbox RBCVKVQXXJJL,08-Jun-2019,7.99
HOUSING OPTIONS - GF,Books/Publications/Resources,WHICH,08-Jun-2019,11.75
LIBRARIES & ARCHIVES,Education-Library Books,AMZNMktplace,08-Jun-2019,10.00
PENSIONS SERVICES,Accommodation,PREMIER INN 44533710,08-Jun-2019,101.99
PENSIONS SERVICES,Accommodation,PREMIER INN 44533710,08-Jun-2019,84.50
SCHOOL & EDUCATIONAL IMPROVEMENT SERVICE,Domestic Goods-Other,AMAZON.CO.UK,08-Jun-2019,192.97
BUSINESS SUPPORT,Travel/Subsistence,OYSTER AUTO-TOP UP,09-Jun-2019,20.00
BUSINESS SUPPORT,Travel/Subsistence,OYSTER AUTO-TOP UP,09-Jun-2019,40.00
BUSINESS SUPPORT,Travel/Subsistence,OYSTER AUTO-TOP UP,09-Jun-2019,40.00
BUSINESS SUPPORT,Travel/Subsistence,OYSTER AUTO-TOP UP,09-Jun-2019,40.00
BUSINESS SUPPORT,Travel/Subsistence,OYSTER AUTO-TOP UP,09-Jun-2019,40.00
BUSINESS SUPPORT,Travel/Subsistence,OYSTER AUTO-TOP UP,09-Jun-2019,40.00
LIBRARIES & ARCHIVES,Books/Publications/Resources,AMZNMktplace,09-Jun-2019,71.63
LIBRARIES & ARCHIVES,Books/Publications/Resources,AMZNMktplace,09-Jun-2019,54.58
LIBRARIES & ARCHIVES,Domestic Goods-Other,AMZNMktplace,09-Jun-2019,20.65
PARKS & LEISURE SERVICES,Domestic Goods-Other,AMZNMKTPLACE AMAZON.CO.UK,09-Jun-2019,19.59
SPECIALIST YOUTH,Travel/Subsistence,OYSTER AUTO-TOP UP,09-Jun-2019,20.00
SUBSTANCE MISUSE,Facilities-Printing,Amazon.co.uk,09-Jun-2019,21.96
BUSINESS SUPPORT,Domestic Goods-Other,WWW.ARGOS.CO.UK,10-Jun-2019,557.95
BUSINESS SUPPORT,Facilities-Market Research,WAYFAIR #2978529974,10-Jun-2019,104.95
BUSINESS SUPPORT,Domestic Goods-Other,WWW JCCAMPBELLELECTRIC,10-Jun-2019,299.99
BUSINESS SUPPORT,Catering Food & Drink,MARKS&SPENCER PLC,10-Jun-2019,33.50
BUSINESS SUPPORT,Travel/Subsistence,OYSTER AUTO-TOP UP,10-Jun-2019,20.00
BUSINESS SUPPORT,Facilities-Market Research,WAYFAIR #2965926564,10-Jun-2019,148.95
BUSINESS SUPPORT,Travel/Subsistence,OYSTER AUTO-TOP UP,10-Jun-2019,20.00
BUSINESS SUPPORT,Financial Services,GEN REGISTER OFFICE,10-Jun-2019,38.00
BUSINESS SUPPORT,Domestic Goods-Other,WWW.JDWILLIAMS.CO.UK,10-Jun-2019,272.00
BUSINESS SUPPORT,Travel/Subsistence,OYSTER ONLINE,10-Jun-2019,25.00
BUSINESS SUPPORT,Financial Services,GEN REGISTER OFFICE,10-Jun-2019,38.00
BUSINESS SUPPORT,Travel/Subsistence,OYSTER AUTO-TOP UP,10-Jun-2019,40.00
DAY SERVICES,Catering Food & Drink,ICELAND,10-Jun-2019,36.84
DEMOCRATIC SERVICES,Conference Expenses,FUTURE CITIES FORUM,10-Jun-2019,300.00
LIBRARIES & ARCHIVES,Education-Library Books,AMZNMKTPLACE AMAZON.CO.UK,10-Jun-2019,5.55
LIBRARIES & ARCHIVES,Education-Library Books,ABEBOOKS GWJZCJ,10-Jun-2019,19.86
LIBRARIES & ARCHIVES,Education-Library Books,AMAZON.CO.UK,10-Jun-2019,8.42
LIBRARIES & ARCHIVES,Domestic Goods-Other,LION PICTURE FRAMING S,10-Jun-2019,174.66
PARKS & LEISURE SERVICES,Financial Services,DVSA,10-Jun-2019,257.00
PARKS & LEISURE SERVICES,Travel/Subsistence,TFL ROAD CHG - STD WEB,10-Jun-2019,23.00
PARKS & LEISURE SERVICES,Building-General,TOOLSTATION LTD,10-Jun-2019,84.94
PARKS & LEISURE SERVICES,Building-Timber,SELCO TRADING CTR,10-Jun-2019,81.11
SPECIALIST YOUTH,Travel/Subsistence,AUTO TOP-UP ARREARS,10-Jun-2019,20.00
SPECIALIST YOUTH,Domestic Goods-Other,POUNDLAND LTD 1203,10-Jun-2019,9.00
SPECIALIST YOUTH,Travel/Subsistence,TFL AUTOSETTLEMENT,10-Jun-2019,40.00
SPECIALIST YOUTH,Domestic Goods-Other,ARGOS RETAIL GROUP,10-Jun-2019,78.98
SPECIALIST YOUTH,Taxi Fares,ADDISON LEE EXTRA,10-Jun-2019,9.25
SPECIALIST YOUTH,Domestic Goods-Other,MORLEYS,10-Jun-2019,10.05
SUBSTANCE MISUSE,Catering Food & Drink,TESCO STORES 5999,10-Jun-2019,87.54
ADULTS WITH MENTAL HEALTH NEEDS,Legal Services-Other,HMCOURTS-SERVICE.G,11-Jun-2019,150.00
BUSINESS SUPPORT,Travel/Subsistence,OYSTER AUTO-TOP UP,11-Jun-2019,40.00
BUSINESS SUPPORT,Facilities-Retail,www.groupon.co.uk,11-Jun-2019,250.00
BUSINESS SUPPORT,Catering Food & Drink,LOW COST SUPERMARKET,11-Jun-2019,60.00
DAY SERVICES,Catering Food & Drink,ICELAND,11-Jun-2019,43.29
DAY SERVICES,Financial Services,SANTANDER PLC (UK),11-Jun-2019,400.00
DAY SERVICES,Catering Food & Drink,TESCO STORE 3205,11-Jun-2019,33.21
HOUSING MANAGEMENT SERVICES,Domestic Goods-Other,AMZNMktplace,11-Jun-2019,14.51
LIBRARIES & ARCHIVES,Travel/Subsistence,RASPBERRY LOCAL,11-Jun-2019,21.20
LIBRARIES & ARCHIVES,Education-Library Books,Amazon.co.uk,11-Jun-2019,7.22
LIBRARIES & ARCHIVES,Education-Library Books,AMZNMktplace,11-Jun-2019,11.71
LIBRARIES & ARCHIVES,Education-Library Books,ABEBOOKS.DE,11-Jun-2019,30.81
LIBRARIES & ARCHIVES,Travel/Subsistence,BRIXTON 3,11-Jun-2019,120.00
LIBRARIES & ARCHIVES,Education-Library Books,AMAZON.CO.UK,11-Jun-2019,8.79
LIBRARIES & ARCHIVES,Education-Library Books,AMZNMKTPLACE AMAZON.CO.UK,11-Jun-2019,10.75
PARKS & LEISURE SERVICES,Building-General,SCREWFIX DIRECT,11-Jun-2019,37.35
PARKS & LEISURE SERVICES,Sports Equipment,BIGFOOT BASKETBALL LIMITE,11-Jun-2019,232.66
PUBLIC HEALTH - ADULTS,Haulage,MAN AND VAN TODAY,11-Jun-2019,135.00
PUBLIC HEALTH - ADULTS,Domestic Goods-Other,PAYPAL,11-Jun-2019,138.50
SPECIALIST YOUTH,Travel/Subsistence,OYSTER AUTO-TOP UP,11-Jun-2019,20.00
SUBSTANCE MISUSE,Domestic Goods-Other,WWW.ARGOS.CO.UK,11-Jun-2019,-215.95
BUSINESS SUPPORT,Travel/Subsistence,OYSTER AUTO-TOP UP,12-Jun-2019,80.00
BUSINESS SUPPORT,Facilities-Advertising,EXPRESS NEWS,12-Jun-2019,30.00
BUSINESS SUPPORT,Travel/Subsistence,OYSTER AUTO-TOP UP,12-Jun-2019,20.00
BUSINESS SUPPORT,Organised Activities,SDS SEMINARS LIMITED,12-Jun-2019,330.00
BUSINESS SUPPORT,Education-Other,PAYPAL,12-Jun-2019,-180.00
BUSINESS SUPPORT,Travel/Subsistence,OYSTER AUTO-TOP UP,12-Jun-2019,20.00
BUSINESS SUPPORT,Catering Food & Drink,TESCO STORE 2143,12-Jun-2019,11.57
BUSINESS SUPPORT,Catering Food & Drink,JAMAICA SPICE BAKERY L,12-Jun-2019,16.00
BUSINESS SUPPORT,Travel/Subsistence,OYSTER AUTO-TOP UP,12-Jun-2019,40.00
BUSINESS SUPPORT,Travel/Subsistence,OYSTER ONLINE,12-Jun-2019,30.00
BUSINESS SUPPORT,Travel/Subsistence,OYSTER ONLINE,12-Jun-2019,60.00
BUSINESS SUPPORT,Travel/Subsistence,OYSTER AUTO-TOP UP,12-Jun-2019,40.00
DAY SERVICES,Financial Services,CASH ADVANCE FEE,12-Jun-2019,11.80
DAY SERVICES,Consultancy-Other,CVLE / MPLC,12-Jun-2019,202.51
DAY SERVICES,Healthcare Equipment,NRS HEALTHCARE,12-Jun-2019,17.09
DEMOCRATIC SERVICES,Catering Food & Drink,TESCO STORE 2143,12-Jun-2019,9.00
EVENTS & FILMING,Furniture-Other,SQ *ECO FURNITURE HIRE LI,12-Jun-2019,901.88
EVENTS & FILMING,Environmental Services-Waste,PORTABLE TOILET HIRE (,12-Jun-2019,414.00
EVENTS & FILMING,IT Software,BLS*MONDAY.COM,12-Jun-2019,148.80
EVENTS & FILMING,IT Services,APPLE.COM/UK,12-Jun-2019,79.00
FACILITIES MANAGEMENT,Telecommunications,BT PAY BY PHONE,12-Jun-2019,107.12
FINANCIAL PLANNING AND MANAGEMENT,Domestic Goods-Other,CURRYS ONLINE,12-Jun-2019,848.98
FINANCIAL PLANNING AND MANAGEMENT,Domestic Goods-Other,WWW.ARGOS.CO.UK,12-Jun-2019,199.93
FINANCIAL PLANNING AND MANAGEMENT,Travel/Subsistence,LUL TICKET MACHINE,12-Jun-2019,50.00
FINANCIAL PLANNING AND MANAGEMENT,Catering Food & Drink,ASDA GEORGE COM LEEDS,12-Jun-2019,57.00
HOUSING MANAGEMENT SERVICES,Domestic Goods-Other,AMZNMKTPLACE AMAZON.CO.UK,12-Jun-2019,135.99
LEGAL SERVICES,Travel/Subsistence,LUL TICKET MACHINE,12-Jun-2019,50.00
LIBRARIES & ARCHIVES,Travel/Subsistence,CASH ADVANCE FEE,12-Jun-2019,3.54
LIBRARIES & ARCHIVES,Education-Library Books,Amazon.co.uk,12-Jun-2019,8.68
LIBRARIES & ARCHIVES,Education-Library Books,AMZN MKTP UK,12-Jun-2019,8.95
LIBRARIES & ARCHIVES,Education-Library Books,AMZNMktplace,12-Jun-2019,4.40
LIBRARIES & ARCHIVES,Education-Library Books,AMAZON.CO.UK,12-Jun-2019,8.79
PARKS & LEISURE SERVICES,Sports Equipment,BIGFOOT BASKETBALL LIMITE,12-Jun-2019,232.68
PARKS & LEISURE SERVICES,Telecommunications,GIFFGAFF,12-Jun-2019,12.00
PARKS & LEISURE SERVICES,Building-General,SCREWFIX DIRECT,12-Jun-2019,101.77
PARKS & LEISURE SERVICES,Telecommunications,giffgaff,12-Jun-2019,6.00
PARKS & LEISURE SERVICES,Utilities,THAMES WATER,12-Jun-2019,204.00
PROGRAMME PERFORMANCE,Books/Publications/Resources,HIGHSTREETVOUCHERS,12-Jun-2019,154.50
SPECIALIST YOUTH,Travel/Subsistence,OYSTER AUTO-TOP UP,12-Jun-2019,20.00
SUSTAINABILITY & ROAD SAFETY,Travel/Subsistence,ZIPCAR,12-Jun-2019,19.00
BEREAVEMENT SERVICES,Cemetery & Crematorium,AMZNMktplace,13-Jun-2019,33.72
BUSINESS SUPPORT,Domestic Goods-Other,WWW.ARGOS.CO.UK,13-Jun-2019,539.97
BUSINESS SUPPORT,Taxi Fares,SW4 TO SW4,13-Jun-2019,15.00
BUSINESS SUPPORT,Travel/Subsistence,OYSTER ONLINE,13-Jun-2019,35.00
BUSINESS SUPPORT,Travel/Subsistence,OYSTER AUTO-TOP UP,13-Jun-2019,20.00
BUSINESS SUPPORT,Travel/Subsistence,OYSTER AUTO-TOP UP,13-Jun-2019,20.00
BUSINESS SUPPORT,Taxi Fares,SW16 SW19CO2,13-Jun-2019,235.00
BUSINESS SUPPORT,Domestic Goods-Other,WWW.ARGOS.CO.UK,13-Jun-2019,104.95
BUSINESS SUPPORT,Taxi Fares,SW9 TO CR9 CALLOUT,13-Jun-2019,20.00
BUSINESS SUPPORT,Travel/Subsistence,OYSTER AUTO-TOP UP,13-Jun-2019,20.00
BUSINESS SUPPORT,Taxi Fares,SE6 TO SW2 RETURN,13-Jun-2019,80.00
BUSINESS SUPPORT,Taxi Fares,SE19 TO BR1 RETURN,13-Jun-2019,80.00
BUSINESS SUPPORT,Accommodation,B.com 3380528-G2PIO Haven,13-Jun-2019,178.00
BUSINESS SUPPORT,Travel/Subsistence,TRAINLINE,13-Jun-2019,69.31
BUSINESS SUPPORT,Building-Floors,TOOTING CARPETS,13-Jun-2019,560.00
BUSINESS SUPPORT,Travel/Subsistence,OYSTER AUTO-TOP UP,13-Jun-2019,40.00
BUSINESS SUPPORT,Mail Services-Postage,POST OFFICE SELF SERVI,13-Jun-2019,6.45
BUSINESS SUPPORT,Domestic Goods-Other,WWW.ARGOS.CO.UK,13-Jun-2019,102.95
BUSINESS SUPPORT,Travel/Subsistence,OYSTER AUTO-TOP UP,13-Jun-2019,20.00
BUSINESS SUPPORT,Travel/Subsistence,OYSTER AUTO-TOP UP,13-Jun-2019,60.00
DEMOCRATIC SERVICES,Catering Food & Drink,TESCO STORE 2143,13-Jun-2019,9.00
EVENTS & FILMING,Professional & Advisory Services,LBL NOT PRESENT,13-Jun-2019,37.00
FINANCIAL PLANNING AND MANAGEMENT,Domestic Goods-Other,WWW.ARGOS.CO.UK,13-Jun-2019,949.95
INTERNAL AUDIT,Travel/Subsistence,OYSTER AUTO-TOP UP,13-Jun-2019,40.00
LIBRARIES & ARCHIVES,Education-Other,AMZNMktplace,13-Jun-2019,12.34
LIBRARIES & ARCHIVES,Education-Other,AMZNMktplace,13-Jun-2019,10.95
LIBRARIES & ARCHIVES,Travel/Subsistence,OYSTER AUTO-TOP UP,13-Jun-2019,40.00
LIBRARIES & ARCHIVES,Education-Library Books,AMAZON.CO.UK,13-Jun-2019,9.99
LIBRARIES & ARCHIVES,Education-Library Books,AMZNMktplace,13-Jun-2019,11.15
PROGRAMME PERFORMANCE,Catering Food & Drink,TESCO STORES 5999,13-Jun-2019,-69.00
RESIDENT ENGAGEMENT,Travel/Subsistence,OYSTER AUTO-TOP UP,13-Jun-2019,20.00
SCHOOL & EDUCATIONAL IMPROVEMENT SERVICE,Facilities-Printing,P4U DESIGN AND PRINT,13-Jun-2019,184.80
SPECIALIST YOUTH,Travel/Subsistence,OYSTER AUTO-TOP UP,13-Jun-2019,40.00
SPECIALIST YOUTH,Taxi Fares,WWW.ADDISONLEE.COM,13-Jun-2019,37.70
SUBSTANCE MISUSE,IT Software,SP * SUBSTANCE CREATE,13-Jun-2019,30.00
BUSINESS SUPPORT,Domestic Goods-Other,WWW.ARGOS.CO.UK,14-Jun-2019,646.93
BUSINESS SUPPORT,Financial Services,HM PASSPORT OFFICE,14-Jun-2019,80.50
BUSINESS SUPPORT,Furniture-Domestic Furniture,WWW.IKEA.COM,14-Jun-2019,94.95
BUSINESS SUPPORT,Travel/Subsistence,OYSTER ONLINE,14-Jun-2019,30.00
BUSINESS SUPPORT,Travel/Subsistence,OYSTER AUTO-TOP UP,14-Jun-2019,40.00
BUSINESS SUPPORT,Travel/Subsistence,OYSTER AUTO-TOP UP,14-Jun-2019,60.00
BUSINESS SUPPORT,Domestic Goods-Other,WWW.ARGOS.CO.UK,14-Jun-2019,196.94
BUSINESS SUPPORT,Accommodation,CITI ROOMS LUTON MK LTD,14-Jun-2019,"2,100.00"
BUSINESS SUPPORT,Travel/Subsistence,OYSTER AUTO-TOP UP,14-Jun-2019,40.00
BUSINESS SUPPORT,Furniture-Domestic Furniture,WWW.IKEA.COM,14-Jun-2019,502.50
BUSINESS SUPPORT,Travel/Subsistence,OYSTER AUTO-TOP UP,14-Jun-2019,40.00
DAY SERVICES,Catering Food & Drink,WWW.ICELAND.CO.UK,14-Jun-2019,190.28
HOUSING MANAGEMENT SERVICES,Travel/Subsistence,TFL ROAD CHG - STD WEB,14-Jun-2019,14.00
HOUSING MANAGEMENT SERVICES,Catering Food & Drink,STREATHAM FOOD AND WINE L,14-Jun-2019,55.50
LEARNING & DEVELOPMENT,Catering Food & Drink,DOMINOS PIZZA UK & IRELAN,14-Jun-2019,102.79
LEGAL SERVICES,Legal Services-Other,HMCTS,14-Jun-2019,100.00
LIBRARIES & ARCHIVES,Travel/Subsistence,OYSTER AUTO-TOP UP,14-Jun-2019,40.00
LIBRARIES & ARCHIVES,Books/Publications/Resources,METRO BANK CLAPHAM HIGH,14-Jun-2019,180.00
PARKS & LEISURE SERVICES,Building-Timber,SCREWFIX BRIXTON,14-Jun-2019,129.98
PARKS & LEISURE SERVICES,Building-General,MACKAYS HARDWARE,14-Jun-2019,72.00
PARKS & LEISURE SERVICES,Building-General,TOOLSTATION LTD,14-Jun-2019,179.98
PARKS & LEISURE SERVICES,Cycles Purchase,HALFORDS 0716,14-Jun-2019,140.00
SPECIALIST YOUTH,Travel/Subsistence,OYSTER AUTO-TOP UP,14-Jun-2019,40.00
SUBSTANCE MISUSE,Domestic Goods-Other,WWW.ARGOS.CO.UK,14-Jun-2019,244.95
BUSINESS SUPPORT,Consultancy-Business,AWEBER COMMUNICATIONS,15-Jun-2019,8.18
BUSINESS SUPPORT,Travel/Subsistence,OYSTER AUTO-TOP UP,15-Jun-2019,20.00
BUSINESS SUPPORT,Travel/Subsistence,OYSTER AUTO-TOP UP,15-Jun-2019,20.00
BUSINESS SUPPORT,Travel/Subsistence,OYSTER AUTO-TOP UP,15-Jun-2019,60.00
BUSINESS SUPPORT,Travel/Subsistence,OYSTER AUTO-TOP UP,15-Jun-2019,20.00
BUSINESS SUPPORT,Travel/Subsistence,OYSTER AUTO-TOP UP,15-Jun-2019,20.00
BUSINESS SUPPORT,Travel/Subsistence,OYSTER AUTO-TOP UP,15-Jun-2019,20.00
BUSINESS SUPPORT,Travel/Subsistence,OYSTER AUTO-TOP UP,15-Jun-2019,20.00
BUSINESS SUPPORT,Travel/Subsistence,OYSTER AUTO-TOP UP,15-Jun-2019,20.00
BUSINESS SUPPORT,Travel/Subsistence,OYSTER AUTO-TOP UP,15-Jun-2019,120.00
BUSINESS SUPPORT,Travel/Subsistence,OYSTER AUTO-TOP UP,15-Jun-2019,40.00
INTERNAL AUDIT,Travel/Subsistence,OYSTER AUTO-TOP UP,15-Jun-2019,80.00
SPECIALIST YOUTH,Travel/Subsistence,OYSTER AUTO-TOP UP,15-Jun-2019,40.00
BUSINESS SUPPORT,Travel/Subsistence,OYSTER AUTO-TOP UP,16-Jun-2019,100.00
BUSINESS SUPPORT,Travel/Subsistence,OYSTER AUTO-TOP UP,16-Jun-2019,20.00
BUSINESS SUPPORT,Travel/Subsistence,OYSTER AUTO-TOP UP,16-Jun-2019,20.00
BUSINESS SUPPORT,Travel/Subsistence,OYSTER AUTO-TOP UP,16-Jun-2019,40.00
BUSINESS SUPPORT,Domestic Goods-Other,AMZNMKTPLACE AMAZON.CO.UK,16-Jun-2019,23.48
BUSINESS SUPPORT,Travel/Subsistence,OYSTER AUTO-TOP UP,16-Jun-2019,20.00
BUSINESS SUPPORT,Travel/Subsistence,OYSTER AUTO-TOP UP,16-Jun-2019,20.00
BUSINESS SUPPORT,Travel/Subsistence,OYSTER AUTO-TOP UP,16-Jun-2019,40.00
FINANCIAL TRANSACTION SERVICES,Travel/Subsistence,OYSTER AUTO-TOP UP,16-Jun-2019,20.00
HOUSING BENEFIT,Travel/Subsistence,OYSTER AUTO-TOP UP,16-Jun-2019,20.00
PUBLIC HEALTH - ADULTS,Public Transport,HEATHROW EXPRESS,16-Jun-2019,32.56
SPECIALIST YOUTH,Travel/Subsistence,OYSTER AUTO-TOP UP,16-Jun-2019,20.00
BUSINESS SUPPORT,Facilities-Advertising,FACEBK U7GURLECE2,17-Jun-2019,222.76
BUSINESS SUPPORT,Travel/Subsistence,TFL AUTOSETTLEMENT,17-Jun-2019,40.00
BUSINESS SUPPORT,Professional & Advisory Services,PAYPAL,17-Jun-2019,250.00
BUSINESS SUPPORT,Travel/Subsistence,OYSTER ONLINE,17-Jun-2019,20.00
BUSINESS SUPPORT,Facilities-Advertising,EXPRESS NEWS,17-Jun-2019,30.00
BUSINESS SUPPORT,Taxi Fares,SW2 TO SE27,17-Jun-2019,20.00
BUSINESS SUPPORT,Taxi Fares,SW12 TO CATFORD,17-Jun-2019,40.00
BUSINESS SUPPORT,Travel/Subsistence,AUTO TOP-UP ARREARS,17-Jun-2019,20.00
BUSINESS SUPPORT,Travel/Subsistence,OYSTER AUTO-TOP UP,17-Jun-2019,20.00
BUSINESS SUPPORT,Catering Food & Drink,TESCO STORE 2143,17-Jun-2019,6.75
BUSINESS SUPPORT,Taxi Fares,CIVIC TO SE27,17-Jun-2019,20.00
DAY SERVICES,Catering Food & Drink,ICELAND,17-Jun-2019,41.84
LIBRARIES & ARCHIVES,Books/Publications/Resources,CASH ADVANCE FEE,17-Jun-2019,5.31
LIBRARIES & ARCHIVES,Education-Library Books,Amazon.co.uk,17-Jun-2019,20.97
PARKS & LEISURE SERVICES,Vehicle Parts,STOCKWELL MOTOR ACCES,17-Jun-2019,180.77
PROGRAMME PERFORMANCE,Facilities-Design & Photography,CANVA* PRO MONTHLY,17-Jun-2019,10.63
PUBLIC HEALTH - ADULTS,Public Transport,CAT Ticket,17-Jun-2019,19.41
SENIOR MANAGEMENT - ADULT SOCIAL CARE,Accommodation,B.com 2391426-HHB5H Babba,17-Jun-2019,42.77
SUBSTANCE MISUSE,IT Software,SP * SUBSTANCE CREATE,17-Jun-2019,15.00
SUBSTANCE MISUSE,Catering Food & Drink,TESCO STORES 5999,17-Jun-2019,55.10
ADULTS WITH MENTAL HEALTH NEEDS,Legal Services-Other,HMCOURTS-SERVICE.G,18-Jun-2019,150.00
BUSINESS SUPPORT,Financial Services,GEN REGISTER OFFICE,18-Jun-2019,28.00
BUSINESS SUPPORT,Accommodation,WWW.EDGCUMBE-HOTEL.CO.,18-Jun-2019,47.50
BUSINESS SUPPORT,Financial Services,GEN REGISTER OFFICE,18-Jun-2019,-21.50
BUSINESS SUPPORT,Taxi Fares,CIVICSE27SW2SW2,18-Jun-2019,60.00
BUSINESS SUPPORT,Financial Services,GEN REGISTER OFFICE,18-Jun-2019,14.00
BUSINESS SUPPORT,Domestic Goods-Other,WWW.ARGOS.CO.UK,18-Jun-2019,53.94
BUSINESS SUPPORT,Travel/Subsistence,OYSTER ONLINE,18-Jun-2019,30.00
BUSINESS SUPPORT,Horticultural-Other,WWW.PRESTIGEFLOWERS.CO.U,18-Jun-2019,41.29
BUSINESS SUPPORT,Telecommunications,EE LIMITED,18-Jun-2019,41.35
BUSINESS SUPPORT,Taxi Fares,ST THOMAS SE19,18-Jun-2019,40.00
CHILDREN LOOKED AFTER,Taxi Fares,UB2 TO SW4,18-Jun-2019,80.00
DAY SERVICES,Catering Food & Drink,TESCO STORES 5999,18-Jun-2019,78.63
DEMOCRATIC SERVICES,IT Software-Customised,SurveyMonkey,18-Jun-2019,35.00
HOUSING MANAGEMENT SERVICES,Building-General,THE TRADE HUB,18-Jun-2019,63.94
LIBRARIES & ARCHIVES,Mail Services-Postage,POST OFFICE COUNTER,18-Jun-2019,11.66
LIBRARIES & ARCHIVES,Catering Food & Drink,RASPBERRY LOCAL,18-Jun-2019,21.20
PARKS & LEISURE SERVICES,Travel/Subsistence,TFL ROAD CHG-PENALTY WEB,18-Jun-2019,80.00
SENIOR MANAGEMENT - ADULT SOCIAL CARE,Horticultural-Seeds & Plants,INTERFLORA BRITISH UNI,18-Jun-2019,53.00
BUSINESS SUPPORT,Financial Services,HM PASSPORT OFFICE,19-Jun-2019,117.00
BUSINESS SUPPORT,Travel/Subsistence,OYSTER AUTO-TOP UP,19-Jun-2019,120.00
BUSINESS SUPPORT,Financial Services,GEN REGISTER OFFICE,19-Jun-2019,-11.00
BUSINESS SUPPORT,Domestic Goods-Other,WWW.ARGOS.CO.UK,19-Jun-2019,615.91
BUSINESS SUPPORT,Travel/Subsistence,OYSTER AUTO-TOP UP,19-Jun-2019,40.00
BUSINESS SUPPORT,Mail Services-Postage,THE POST OFFICE,19-Jun-2019,123.00
BUSINESS SUPPORT,Catering Food & Drink,TESCO STORE 2143,19-Jun-2019,8.45
BUSINESS SUPPORT,Accommodation,HIGHSTREETVOUCHERS,19-Jun-2019,"1,000.00"
BUSINESS SUPPORT,Domestic Goods-Other,CURRYS ONLINE,19-Jun-2019,334.99
BUSINESS SUPPORT,Domestic Goods-Other,WWW.ARGOS.CO.UK,19-Jun-2019,"1,073.95"
BUSINESS SUPPORT,Travel/Subsistence,OYSTER ONLINE,19-Jun-2019,-30.00
BUSINESS SUPPORT,Financial Services,GEN REGISTER OFFICE,19-Jun-2019,42.00
BUSINESS SUPPORT,Travel/Subsistence,OYSTER AUTO-TOP UP,19-Jun-2019,20.00
BUSINESS SUPPORT,Travel/Subsistence,OYSTER ONLINE,19-Jun-2019,20.00
BUSINESS SUPPORT,Financial Services,GEN REGISTER OFFICE,19-Jun-2019,14.00
BUSINESS SUPPORT,Travel/Subsistence,OYSTER AUTO-TOP UP,19-Jun-2019,20.00
BUSINESS SUPPORT,Domestic Goods-Other,AMZNMKTPLACE AMAZON.CO.UK,19-Jun-2019,54.88
BUSINESS SUPPORT,Travel/Subsistence,TFL AUTOSETTLEMENT,19-Jun-2019,40.00
BUSINESS SUPPORT,Travel/Subsistence,AUTO TOP-UP ARREARS,19-Jun-2019,20.00
BUSINESS SUPPORT,Domestic Goods-Other,WWW.ARGOS.CO.UK,19-Jun-2019,103.94
EVENTS & FILMING,Building-Tools,WWW.YAHIRE.COM,19-Jun-2019,-313.10
HOUSING MANAGEMENT SERVICES,Building-Timber,SCREWFIX BRIXTON,19-Jun-2019,8.99
LIBRARIES & ARCHIVES,Education-Arts/Crafts,AMZNMKTPLACE AMAZON.CO.UK,19-Jun-2019,62.09
PARKS & LEISURE SERVICES,Building-Timber,JEWSON EAST DULWICH,19-Jun-2019,174.96
PARKS & LEISURE SERVICES,Building-Timber,SELCO TRADING CTR,19-Jun-2019,249.99
PARKS & LEISURE SERVICES,Domestic Goods-Other,Le Premier Shoe Care,19-Jun-2019,59.00
PARKS & LEISURE SERVICES,Building-Timber,JEWSON EAST DULWICH,19-Jun-2019,9.30
SPECIALIST YOUTH,Domestic Goods-Commercial,AMZNMktplace,19-Jun-2019,43.49
ADULTS WITH MENTAL HEALTH NEEDS,Legal Services-Other,HMCOURTS-SERVICE.G,20-Jun-2019,150.00
ADULTS WITH MENTAL HEALTH NEEDS,Travel/Subsistence,SE BRIXTON TO,20-Jun-2019,27.50
BUSINESS SUPPORT,Travel/Subsistence,OYSTER AUTO-TOP UP,20-Jun-2019,60.00
BUSINESS SUPPORT,Travel/Subsistence,OYSTER AUTO-TOP UP,20-Jun-2019,80.00
BUSINESS SUPPORT,Travel/Subsistence,OYSTER AUTO-TOP UP,20-Jun-2019,40.00
BUSINESS SUPPORT,Travel/Subsistence,OYSTER AUTO-TOP UP,20-Jun-2019,20.00
BUSINESS SUPPORT,Travel/Subsistence,OYSTER ONLINE,20-Jun-2019,30.00
BUSINESS SUPPORT,Taxi Fares,SE19 TO FAMILY COURT,20-Jun-2019,60.00
BUSINESS SUPPORT,Travel/Subsistence,OYSTER AUTO-TOP UP,20-Jun-2019,20.00
BUSINESS SUPPORT,Travel/Subsistence,OYSTER AUTO-TOP UP,20-Jun-2019,20.00
BUSINESS SUPPORT,Furniture-Domestic Furniture,DREAMS LTD,20-Jun-2019,349.00
BUSINESS SUPPORT,Travel/Subsistence,OYSTER ONLINE,20-Jun-2019,30.00
BUSINESS SUPPORT,Domestic Goods-Other,WWW.JOHNLEWIS.COM,20-Jun-2019,80.00
BUSINESS SUPPORT,Domestic Goods-Other,WWW.ARGOS.CO.UK,20-Jun-2019,87.94
BUSINESS SUPPORT,Taxi Fares,SE27TOCIVIC 2DAYS,20-Jun-2019,80.00
BUSINESS SUPPORT,Domestic Goods-Other,AMZNMKTPLACE AMAZON.CO.UK,20-Jun-2019,23.56
BUSINESS SUPPORT,Domestic Goods-Other,CURRYS ONLINE,20-Jun-2019,184.00
BUSINESS SUPPORT,Catering Food & Drink,TESCO STORE 2143,20-Jun-2019,100.00
BUSINESS SUPPORT,Domestic Goods-Other,WWW.ARGOS.CO.UK,20-Jun-2019,297.87
BUSINESS SUPPORT,Domestic Goods-Other,WWW.ARGOS.CO.UK,20-Jun-2019,"1,130.91"
BUSINESS SUPPORT,Travel/Subsistence,OYSTER AUTO-TOP UP,20-Jun-2019,20.00
DAY SERVICES,Catering Food & Drink,WWW.ICELAND.CO.UK,20-Jun-2019,412.71
EVENTS & FILMING,Facilities-Design & Photography,BRITISH PATHE LIMITED,20-Jun-2019,89.10
INTEGRATED DISABILITY - OT,Domestic Goods-Other,COMPLETE CARE SHOP,20-Jun-2019,69.90
INTERNAL AUDIT,Travel/Subsistence,TFL ROAD CHG - STD WEB,20-Jun-2019,14.00
INTERNAL AUDIT,Travel/Subsistence,OYSTER AUTO-TOP UP,20-Jun-2019,40.00
LEARNING & DEVELOPMENT,Domestic Goods-Other,AMZNMKTPLACE AMAZON.CO.UK,20-Jun-2019,13.08
LEARNING & DEVELOPMENT,Domestic Goods-Other,AMZNMKTPLACE AMAZON.CO.UK,20-Jun-2019,54.25
LIBRARIES & ARCHIVES,Education-Other,Amazon.co.uk,20-Jun-2019,16.52
LIBRARIES & ARCHIVES,Education-Arts/Crafts,AMZNMKTPLACE AMAZON.CO.UK,20-Jun-2019,68.61
PARKS & LEISURE SERVICES,Building-General,SCREWFIX DIRECT,20-Jun-2019,60.48
PLANNING,Travel/Subsistence,LUL TICKET MACHINE,20-Jun-2019,60.00
PROGRAMME PERFORMANCE,IT Software,ADOBE  CREATIVE CLOUD,20-Jun-2019,141.60
SPECIALIST YOUTH,Catering Food & Drink,BRIXTONHILL EXPRESS,20-Jun-2019,20.00
SUBSTANCE MISUSE,Domestic Goods-Other,AMZNMktplace,20-Jun-2019,88.58
BUSINESS SUPPORT,Accommodation,Hotel on Booking.com Mour,21-Jun-2019,297.00
BUSINESS SUPPORT,Accommodation,EASYJET,21-Jun-2019,453.32
BUSINESS SUPPORT,Travel/Subsistence,OYSTER AUTO-TOP UP,21-Jun-2019,60.00
BUSINESS SUPPORT,Travel/Subsistence,OYSTER AUTO-TOP UP,21-Jun-2019,40.00
BUSINESS SUPPORT,Travel/Subsistence,OYSTER AUTO-TOP UP,21-Jun-2019,60.00
BUSINESS SUPPORT,Taxi Fares,CIVICTOCR0TOEASTCROYDO,21-Jun-2019,60.00
BUSINESS SUPPORT,Arts & Leisure Services,WWW.TENPIN.CO.UK,21-Jun-2019,26.10
BUSINESS SUPPORT,Travel/Subsistence,OYSTER AUTO-TOP UP,21-Jun-2019,40.00
BUSINESS SUPPORT,Taxi Fares,WAITINGCIVICSE27,21-Jun-2019,20.00
BUSINESS SUPPORT,Travel/Subsistence,OYSTER AUTO-TOP UP,21-Jun-2019,20.00
BUSINESS SUPPORT,Furniture-Domestic Furniture,WAYFAIR #2978682794,21-Jun-2019,272.94
BUSINESS SUPPORT,Travel/Subsistence,OYSTER ONLINE,21-Jun-2019,30.00
BUSINESS SUPPORT,Furniture-Domestic Furniture,DFS Trading Ltd,21-Jun-2019,50.00
BUSINESS SUPPORT,Travel/Subsistence,OYSTER AUTO-TOP UP,21-Jun-2019,80.00
BUSINESS SUPPORT,Travel/Subsistence,OYSTER AUTO-TOP UP,21-Jun-2019,20.00
BUSINESS SUPPORT,Travel/Subsistence,AUTO TOP-UP ARREARS,21-Jun-2019,20.00
BUSINESS SUPPORT,Travel/Subsistence,OYSTER AUTO-TOP UP,21-Jun-2019,60.00
BUSINESS SUPPORT,Travel/Subsistence,STAGECOACH SERVICE,21-Jun-2019,20.48
BUSINESS SUPPORT,Domestic Goods-Other,ARGOS DIRECT,21-Jun-2019,60.00
BUSINESS SUPPORT,Furniture-Domestic Furniture,DFS Trading Limited,21-Jun-2019,368.00
BUSINESS SUPPORT,Travel/Subsistence,OYSTER AUTO-TOP UP,21-Jun-2019,40.00
EVENTS & FILMING,Domestic Goods-Other,FROSTS,21-Jun-2019,123.60
EVENTS & FILMING,Taxi Fares,WWW.ADDISONLEE.COM,21-Jun-2019,96.10
FINANCIAL PLANNING AND MANAGEMENT,Domestic Goods-Other,WWW.ARGOS.CO.UK,21-Jun-2019,963.54
FINANCIAL TRANSACTION SERVICES,Domestic Goods-Other,AMZNMktplace,21-Jun-2019,56.80
HOUSING MANAGEMENT SERVICES,Facilities-Market Research,Amazon Prime,21-Jun-2019,7.99
HOUSING MANAGEMENT SERVICES,Building-General,THE TRADE HUB,21-Jun-2019,9.98
LEARNING & DEVELOPMENT,Domestic Goods-Other,AMZNMKTPLACE AMAZON.CO.UK,21-Jun-2019,35.84
LEGAL SERVICES,Travel/Subsistence,LUL TICKET MACHINE,21-Jun-2019,50.00
LIBRARIES & ARCHIVES,Education-Arts/Crafts,AMZNMKTPLACE AMAZON.CO.UK,21-Jun-2019,2.48
LIBRARIES & ARCHIVES,Domestic Goods-Other,AMZNMktplace,21-Jun-2019,4.99
PARKS & LEISURE SERVICES,Building-Paint,S LONDON DECORTORS,21-Jun-2019,73.56
PARKS & LEISURE SERVICES,Building-Timber,SELCO BUILDERS WAR,21-Jun-2019,123.17
PUBLIC HEALTH - ADULTS,Conference Expenses,LAMBETH INTERNET PAYM,21-Jun-2019,100.00
SPECIALIST YOUTH,Travel/Subsistence,BRIXTONHILL EXPRESS,21-Jun-2019,50.00
SPECIALIST YOUTH,Conference Expenses,EB *SEEN AND HEARD-RES,21-Jun-2019,80.00
BUSINESS SUPPORT,Travel/Subsistence,OYSTER AUTO-TOP UP,22-Jun-2019,20.00
BUSINESS SUPPORT,Travel/Subsistence,OYSTER AUTO-TOP UP,22-Jun-2019,80.00
BUSINESS SUPPORT,Travel/Subsistence,OYSTER AUTO-TOP UP,22-Jun-2019,40.00
BUSINESS SUPPORT,Travel/Subsistence,OYSTER AUTO-TOP UP,22-Jun-2019,40.00
BUSINESS SUPPORT,Travel/Subsistence,OYSTER AUTO-TOP UP,22-Jun-2019,20.00
BUSINESS SUPPORT,Travel/Subsistence,OYSTER AUTO-TOP UP,22-Jun-2019,80.00
BUSINESS SUPPORT,Travel/Subsistence,OYSTER AUTO-TOP UP,22-Jun-2019,20.00
EVENTS & FILMING,Cleaning-Laundry Service,S.I.S.T DRY CLEANERS L,22-Jun-2019,50.00
EVENTS & FILMING,Catering Food & Drink,TESCO STORE 2143,22-Jun-2019,6.29
FINANCIAL TRANSACTION SERVICES,Domestic Goods-Other,AMZNMktplace,22-Jun-2019,62.96
LIBRARIES & ARCHIVES,Education-Library Books,Amazon.co.uk,22-Jun-2019,11.78
LIBRARIES & ARCHIVES,Education-Arts/Crafts,Amazon.co.uk,22-Jun-2019,13.75
SPECIALIST YOUTH,Travel/Subsistence,OYSTER AUTO-TOP UP,22-Jun-2019,20.00
SPECIALIST YOUTH,Travel/Subsistence,OYSTER AUTO-TOP UP,22-Jun-2019,20.00
SUBSTANCE MISUSE,Domestic Goods-Other,AMZNMktplace,22-Jun-2019,129.99
BUSINESS SUPPORT,Travel/Subsistence,OYSTER AUTO-TOP UP,23-Jun-2019,20.00
BUSINESS SUPPORT,Travel/Subsistence,OYSTER AUTO-TOP UP,23-Jun-2019,60.00
BUSINESS SUPPORT,Travel/Subsistence,OYSTER AUTO-TOP UP,23-Jun-2019,40.00
BUSINESS SUPPORT,Travel/Subsistence,OYSTER AUTO-TOP UP,23-Jun-2019,40.00
BUSINESS SUPPORT,Travel/Subsistence,OYSTER AUTO-TOP UP,23-Jun-2019,20.00
BUSINESS SUPPORT,Travel/Subsistence,OYSTER AUTO-TOP UP,23-Jun-2019,20.00
LIBRARIES & ARCHIVES,Education-Supplies,AMZNMKTPLACE AMAZON.CO.UK,23-Jun-2019,-2.75
LIBRARIES & ARCHIVES,Education-Arts/Crafts,Amazon.co.uk,23-Jun-2019,13.90
LIBRARIES & ARCHIVES,Education-Arts/Crafts,AMAZON.CO.UK,23-Jun-2019,8.25
LIBRARIES & ARCHIVES,Education-Arts/Crafts,Amazon.co.uk,23-Jun-2019,11.00
SHELTERED HOUSING,Domestic Goods-Other,AMZNMktplace,23-Jun-2019,16.98
ADULTS WITH MENTAL HEALTH NEEDS,Travel/Subsistence,SE BRIXTON TO,24-Jun-2019,67.80
BUSINESS SUPPORT,Accommodation,JURYS INN MILTON KEYNES,24-Jun-2019,196.00
BUSINESS SUPPORT,Domestic Goods-Other,CURRYS ONLINE,24-Jun-2019,204.00
BUSINESS SUPPORT,Healthcare Services,EDMUNDSBURY TRA,24-Jun-2019,-127.50
BUSINESS SUPPORT,Travel/Subsistence,OYSTER AUTO-TOP UP,24-Jun-2019,20.00
BUSINESS SUPPORT,Domestic Goods-Other,AMZNMktplace,24-Jun-2019,119.99
BUSINESS SUPPORT,Travel/Subsistence,TRAINLINE,24-Jun-2019,25.65
BUSINESS SUPPORT,Furniture-Domestic Furniture,Ten Dance Media,24-Jun-2019,177.97
BUSINESS SUPPORT,Travel/Subsistence,OYSTER AUTO-TOP UP,24-Jun-2019,20.00
BUSINESS SUPPORT,Travel/Subsistence,OYSTER AUTO-TOP UP,24-Jun-2019,40.00
DAY SERVICES,Catering Food & Drink,TESCO STORE 3300,24-Jun-2019,45.50
EVENTS & FILMING,Taxi Fares,ADDISON LEE EXTRA,24-Jun-2019,2.58
FINANCIAL PLANNING AND MANAGEMENT,Financial Services,LAND REGISTRY,24-Jun-2019,3.00
FINANCIAL TRANSACTION SERVICES,Facilities-Storage,FORTRESS MASTER LOCKSMITH,24-Jun-2019,14.25
INTERNAL AUDIT,Financial Services,LONDON BRGH OF LAMBETH,24-Jun-2019,11.00
LIBRARIES & ARCHIVES,Education-Arts/Crafts,AMZNMktplace,24-Jun-2019,4.00
LIBRARIES & ARCHIVES,Education-Arts/Crafts,Amazon.co.uk,24-Jun-2019,8.25
LIBRARIES & ARCHIVES,Building-Others,FORTRESS MASTER LOCKSMITH,24-Jun-2019,21.95
LIBRARIES & ARCHIVES,Education-Arts/Crafts,Amazon.co.uk,24-Jun-2019,19.32
LIBRARIES & ARCHIVES,Domestic Goods-Other,AMZNMktplace,24-Jun-2019,21.62
SUBSTANCE MISUSE,Catering Food & Drink,TESCO STORES 5999,24-Jun-2019,73.84
ADULTS WITH MENTAL HEALTH NEEDS,Legal Services-Other,HMCOURTS-SERVICE.G,25-Jun-2019,150.00
BUSINESS SUPPORT,Mail Services-Postage,POST OFFICE SELF SERVI,25-Jun-2019,6.60
BUSINESS SUPPORT,Travel/Subsistence,OYSTER ONLINE,25-Jun-2019,30.00
BUSINESS SUPPORT,Domestic Goods-Other,AMZNMktplace,25-Jun-2019,36.98
BUSINESS SUPPORT,Furniture-Domestic Furniture,WWW.MILLETS.CO.UK,25-Jun-2019,43.99
BUSINESS SUPPORT,Financial Services,LONDON BRGH OF LAMBETH,25-Jun-2019,11.00
BUSINESS SUPPORT,Travel/Subsistence,OYSTER ONLINE,25-Jun-2019,30.00
BUSINESS SUPPORT,Education-Library Books,AMZN Mktp UK,25-Jun-2019,21.90
BUSINESS SUPPORT,Domestic Goods-Other,HIGH STREET TV (GROUP),25-Jun-2019,64.72
BUSINESS SUPPORT,Travel/Subsistence,OYSTER AUTO-TOP UP,25-Jun-2019,20.00
BUSINESS SUPPORT,Financial Services,GEN REGISTER OFFICE,25-Jun-2019,-15.00
BUSINESS SUPPORT,Financial Services,GEN REGISTER OFFICE,25-Jun-2019,28.00
BUSINESS SUPPORT,Travel/Subsistence,TRAINLINE,25-Jun-2019,-97.50
BUSINESS SUPPORT,Domestic Goods-Other,AMZNMktplace,25-Jun-2019,904.98
DAY SERVICES,Catering Food & Drink,M N NORWOOD HALAL BUTCHER,25-Jun-2019,108.37
DAY SERVICES,Catering Food & Drink,ICELAND,25-Jun-2019,91.45
DEMOCRATIC SERVICES,Travel/Subsistence,Trainline.com,25-Jun-2019,127.63
DIRECTOR OF FINANCE,Vehicle Hire,SUMUP*MARSTON (HOLDINGS),25-Jun-2019,"1,069.00"
DIRECTOR OF FINANCE,Vehicle Hire,SUMUP*MARSTON (HOLDINGS),25-Jun-2019,513.00
FINANCIAL PLANNING AND MANAGEMENT,Financial Services,LAND REGISTRY,25-Jun-2019,3.00
FINANCIAL PLANNING AND MANAGEMENT,Travel/Subsistence,EXPRESS NEWS,25-Jun-2019,50.00
FINANCIAL PLANNING AND MANAGEMENT,Travel/Subsistence,LONDON OVERGROUND SST,25-Jun-2019,50.00
FINANCIAL PLANNING AND MANAGEMENT,Mail Services-Postage,POST OFFICE SELF SERVI,25-Jun-2019,6.94
INTERNAL AUDIT,Consultancy-Business,FAST KEY SERVICES LIMI,25-Jun-2019,15.28
LIBRARIES & ARCHIVES,Education-Library Books,AMAZON.CO.UK,25-Jun-2019,9.99
LIBRARIES & ARCHIVES,Education-Arts/Crafts,Amazon.co.uk,25-Jun-2019,15.72
PARKS & LEISURE SERVICES,Building-General,SCREWFIX DIRECT,25-Jun-2019,22.48
PUBLIC HEALTH - ADULTS,Conference Expenses,PUBLIC HEALTH ENGLAND,25-Jun-2019,440.00
SUSTAINABILITY & ROAD SAFETY,Catering Food & Drink,TESCO STORE 2143,25-Jun-2019,6.45
BEREAVEMENT SERVICES,Building-Tools,YAHIRE LTD,26-Jun-2019,200.00
BEREAVEMENT SERVICES,Building-Tools,YAHIRE LTD,26-Jun-2019,177.85
BUSINESS SUPPORT,Furniture-Domestic Furniture,01273647938 HSTV VIP,26-Jun-2019,0.98
BUSINESS SUPPORT,Works-Construction,PAYPAL,26-Jun-2019,225.00
BUSINESS SUPPORT,Travel/Subsistence,OYSTER AUTO-TOP UP,26-Jun-2019,20.00
BUSINESS SUPPORT,Travel/Subsistence,OYSTER AUTO-TOP UP,26-Jun-2019,20.00
BUSINESS SUPPORT,Taxi Fares,SW2 TO SE12 RETURN,26-Jun-2019,80.00
BUSINESS SUPPORT,Financial Services,LONDON BRGH OF LAMBETH,26-Jun-2019,41.00
BUSINESS SUPPORT,Mail Services-Postage,POST OFFICE SELF SERVI,26-Jun-2019,1.90
BUSINESS SUPPORT,Taxi Fares,SW2 TO SE12,26-Jun-2019,40.00
BUSINESS SUPPORT,Travel/Subsistence,OYSTER AUTO-TOP UP,26-Jun-2019,20.00
BUSINESS SUPPORT,Travel/Subsistence,TFL OYST PHOTOCARD,26-Jun-2019,10.00
BUSINESS SUPPORT,Travel/Subsistence,OYSTER AUTO-TOP UP,26-Jun-2019,60.00
BUSINESS SUPPORT,Domestic Goods-Other,AMZNMktplace,26-Jun-2019,229.99
BUSINESS SUPPORT,Travel/Subsistence,OYSTER AUTO-TOP UP,26-Jun-2019,80.00
BUSINESS SUPPORT,Taxi Fares,SW9TOCIVIC RETURN,26-Jun-2019,20.00
BUSINESS SUPPORT,Domestic Goods-Other,WWW.ARGOS.CO.UK,26-Jun-2019,299.37
BUSINESS SUPPORT,Banquet & Catering,CAMEO EVENTS HIRE,26-Jun-2019,170.83
BUSINESS SUPPORT,Financial Services,LEGALSERVICES.GOV.,26-Jun-2019,35.07
BUSINESS SUPPORT,Catering Food & Drink,TESCO STORE 2143,26-Jun-2019,8.90
BUSINESS SUPPORT,Travel/Subsistence,OYSTER AUTO-TOP UP,26-Jun-2019,20.00
DEMOCRATIC SERVICES,Catering Food & Drink,TESCO STORE 2143,26-Jun-2019,11.75
DEMOCRATIC SERVICES,Travel/Subsistence,Trainline.com,26-Jun-2019,190.99
FINANCIAL PLANNING AND MANAGEMENT,Domestic Goods-Other,WWW.ARGOS.CO.UK,26-Jun-2019,-12.95
FINANCIAL PLANNING AND MANAGEMENT,Financial Services,LAND REGISTRY,26-Jun-2019,6.00
LIBRARIES & ARCHIVES,Facilities-Printing,VISTAPRINT,26-Jun-2019,17.56
LIBRARIES & ARCHIVES,Stationery,Amazon.co.uk,26-Jun-2019,113.99
LIBRARIES & ARCHIVES,Education-Library Books,AMZNMKTPLACE AMAZON.CO.UK,26-Jun-2019,18.83
LIBRARIES & ARCHIVES,Education-Other,VALUE PRODUCTS LTD,26-Jun-2019,23.22
PARKS & LEISURE SERVICES,Building-General,SCREWFIX DIRECT,26-Jun-2019,38.06
PARKS & LEISURE SERVICES,Horticultural-Other,CROXTED RD GDN CTR,26-Jun-2019,133.00
PARKS & LEISURE SERVICES,Domestic Goods-Other,THE SECRET GARDEN,26-Jun-2019,131.47
PARKS & LEISURE SERVICES,Building-Timber,SELCO BUILDERS WAR,26-Jun-2019,108.14
PUBLIC HEALTH - ADULTS,Conference Expenses,PUBLIC HEALTH ENGLAND,26-Jun-2019,350.00
SPECIALIST YOUTH,Travel/Subsistence,OYSTER AUTO-TOP UP,26-Jun-2019,20.00
BUSINESS SUPPORT,Facilities-Market Research,Amazon Prime,27-Jun-2019,7.99
BUSINESS SUPPORT,Catering Food & Drink,TESCO STORE 2143,27-Jun-2019,150.00
BUSINESS SUPPORT,Travel/Subsistence,OYSTER AUTO-TOP UP,27-Jun-2019,80.00
BUSINESS SUPPORT,Travel/Subsistence,OYSTER AUTO-TOP UP,27-Jun-2019,20.00
BUSINESS SUPPORT,Travel/Subsistence,OYSTER AUTO-TOP UP,27-Jun-2019,20.00
BUSINESS SUPPORT,Travel/Subsistence,OYSTER AUTO-TOP UP,27-Jun-2019,40.00
BUSINESS SUPPORT,Travel/Subsistence,OYSTER AUTO-TOP UP,27-Jun-2019,40.00
BUSINESS SUPPORT,Travel/Subsistence,OYSTER AUTO-TOP UP,27-Jun-2019,20.00
BUSINESS SUPPORT,Travel/Subsistence,OYSTER AUTO-TOP UP,27-Jun-2019,20.00
BUSINESS SUPPORT,Domestic Goods-Other,WWW.ARGOS.CO.UK,27-Jun-2019,228.94
BUSINESS SUPPORT,Travel/Subsistence,OYSTER AUTO-TOP UP,27-Jun-2019,40.00
BUSINESS SUPPORT,Domestic Goods-Other,ARGOS RETAIL GROUP,27-Jun-2019,20.00
DEMOCRATIC SERVICES,Travel/Subsistence,HOTELS.COM158630761754,27-Jun-2019,-190.08
FINANCIAL PLANNING AND MANAGEMENT,Financial Services,LAND REGISTRY,27-Jun-2019,3.00
FINANCIAL PLANNING AND MANAGEMENT,Domestic Goods-Other,WWW.ARGOS.CO.UK,27-Jun-2019,-798.95
FINANCIAL PLANNING AND MANAGEMENT,Travel/Subsistence,OYSTER AUTO-TOP UP,27-Jun-2019,20.00
HOUSING MANAGEMENT SERVICES,Building-General,THE TRADE HUB,27-Jun-2019,17.44
HOUSING MANAGEMENT SERVICES,Travel/Subsistence,LUL TICKET MACHINE,27-Jun-2019,50.00
LEGAL SERVICES,Stationery,AMZNMktplace,27-Jun-2019,31.99
LEGAL SERVICES,Stationery,CURRYS SUPERSTORE,27-Jun-2019,49.98
LIBRARIES & ARCHIVES,Domestic Goods-Other,AMZNMktplace,27-Jun-2019,19.73
LIBRARIES & ARCHIVES,Books/Publications/Resources,LONDIS,27-Jun-2019,77.50
LIBRARIES & ARCHIVES,Education-Arts/Crafts,BAKER ROSS LTD,27-Jun-2019,51.22
LIBRARIES & ARCHIVES,Education-Library Books,AMZNMktplace,27-Jun-2019,6.74
PARKS & LEISURE SERVICES,Building-Timber,WWW.SELCOBW.COM,27-Jun-2019,62.40
SPECIALIST YOUTH,Travel/Subsistence,OYSTER ONLINE,27-Jun-2019,20.00
BUSINESS SUPPORT,Domestic Goods-Other,AMZNMKTPLACE AMAZON.CO.UK,28-Jun-2019,145.98
BUSINESS SUPPORT,Catering Food & Drink,MARKS&SPENCER PLC,28-Jun-2019,235.80
BUSINESS SUPPORT,Travel/Subsistence,TFL AUTOSETTLEMENT,28-Jun-2019,20.00
BUSINESS SUPPORT,Travel/Subsistence,OYSTER AUTO-TOP UP,28-Jun-2019,20.00
BUSINESS SUPPORT,Travel/Subsistence,OYSTER AUTO-TOP UP,28-Jun-2019,20.00
BUSINESS SUPPORT,Catering Food & Drink,MARKS&SPENCER PLC,28-Jun-2019,64.65
BUSINESS SUPPORT,Catering Food & Drink,MARKS&SPENCER PLC,28-Jun-2019,192.58
BUSINESS SUPPORT,Letting Agents,CESARE & CO,28-Jun-2019,"2,046.00"
BUSINESS SUPPORT,Travel/Subsistence,OYSTER AUTO-TOP UP,28-Jun-2019,40.00
BUSINESS SUPPORT,Travel/Subsistence,AUTO TOP-UP ARREARS,28-Jun-2019,20.00
BUSINESS SUPPORT,Travel/Subsistence,OYSTER AUTO-TOP UP,28-Jun-2019,60.00
BUSINESS SUPPORT,Accommodation,CITY GROUP APARTMENTS,28-Jun-2019,825.00
BUSINESS SUPPORT,Travel/Subsistence,OYSTER AUTO-TOP UP,28-Jun-2019,100.00
BUSINESS SUPPORT,Catering Food & Drink,MARKS&SPENCER PLC,28-Jun-2019,216.97
BUSINESS SUPPORT,Domestic Goods-Other,AMAZON.CO.UK,28-Jun-2019,29.98
DAY SERVICES,Domestic Goods-Other,CURRYS SUPERSTORE,28-Jun-2019,149.95
FINANCIAL PLANNING AND MANAGEMENT,Financial Services,LAND REGISTRY,28-Jun-2019,6.00
PARKS & LEISURE SERVICES,Domestic Goods-Other,AMZNMktplace,28-Jun-2019,84.95
PUBLIC HEALTH - ADULTS,Healthcare Services,PUBLIC HEALTH ENGLAND,28-Jun-2019,350.00
SPECIALIST YOUTH,Stationery,POUNDLAND LTD 1203,28-Jun-2019,12.00
SPECIALIST YOUTH,Travel/Subsistence,OYSTER ONLINE,28-Jun-2019,20.00
SPECIALIST YOUTH,Travel/Subsistence,OYSTER AUTO-TOP UP,28-Jun-2019,40.00
BUSINESS SUPPORT,Travel/Subsistence,OYSTER AUTO-TOP UP,29-Jun-2019,40.00
BUSINESS SUPPORT,Travel/Subsistence,OYSTER AUTO-TOP UP,29-Jun-2019,20.00
BUSINESS SUPPORT,Travel/Subsistence,OYSTER AUTO-TOP UP,29-Jun-2019,20.00
BUSINESS SUPPORT,Travel/Subsistence,OYSTER AUTO-TOP UP,29-Jun-2019,40.00
PROGRAMME PERFORMANCE,IT Services,BUZZSUMO.COM PRO,29-Jun-2019,96.62
SPECIALIST YOUTH,Travel/Subsistence,OYSTER AUTO-TOP UP,29-Jun-2019,20.00
BUSINESS SUPPORT,Travel/Subsistence,OYSTER AUTO-TOP UP,30-Jun-2019,40.00
BUSINESS SUPPORT,Travel/Subsistence,OYSTER AUTO-TOP UP,30-Jun-2019,20.00
BUSINESS SUPPORT,Travel/Subsistence,OYSTER AUTO-TOP UP,30-Jun-2019,20.00
BUSINESS SUPPORT,Travel/Subsistence,OYSTER AUTO-TOP UP,30-Jun-2019,20.00
BUSINESS SUPPORT,Travel/Subsistence,OYSTER AUTO-TOP UP,30-Jun-2019,40.00
BUSINESS SUPPORT,Travel/Subsistence,OYSTER AUTO-TOP UP,30-Jun-2019,80.00
BUSINESS SUPPORT,Travel/Subsistence,OYSTER AUTO-TOP UP,30-Jun-2019,20.00
LIBRARIES & ARCHIVES,Travel/Subsistence,OYSTER AUTO-TOP UP,30-Jun-2019,20.00
LIBRARIES & ARCHIVES,Education-Library Books,Amazon.co.uk,30-Jun-2019,2.00
LIBRARIES & ARCHIVES,Education-Arts/Crafts,AMAZON.CO.UK,30-Jun-2019,8.25
SCHOOL & EDUCATIONAL IMPROVEMENT SERVICE,Domestic Goods-Other,AMZNMktplace,30-Jun-2019,84.98
ADULTS WITH MENTAL HEALTH NEEDS,Legal Services-Other,HMCOURTS-SERVICE.G,01-Jul-2019,75.00
BUSINESS SUPPORT,Taxi Fares,REMOVAL VAN SE27,01-Jul-2019,150.00
BUSINESS SUPPORT,Taxi Fares,CR7 TO SM4 0507,01-Jul-2019,30.00
BUSINESS SUPPORT,Travel/Subsistence,OYSTER AUTO-TOP UP,01-Jul-2019,40.00
BUSINESS SUPPORT,Catering Food & Drink,MARKS&SPENCER PLC,01-Jul-2019,72.45
DAY SERVICES,Catering Food & Drink,ICELAND,01-Jul-2019,20.30
DAY SERVICES,Catering Food & Drink,WWW.ICELAND.CO.UK,01-Jul-2019,127.08
DEMOCRATIC SERVICES,Catering Food & Drink,TESCO STORE 2143,01-Jul-2019,12.48
HOUSING MANAGEMENT SERVICES,Building-Timber,C BREWER & SONS,01-Jul-2019,147.96
HOUSING MANAGEMENT SERVICES,Building-Timber,B & Q 1037,01-Jul-2019,27.50
HOUSING MANAGEMENT SERVICES,Travel/Subsistence,LUL TICKET MACHINE,01-Jul-2019,20.00
LIBRARIES & ARCHIVES,Books/Publications/Resources,Sainsburys Bank CASH,01-Jul-2019,170.00
PARKS & LEISURE SERVICES,Clothing-Children/Adults,MITRE,01-Jul-2019,128.91
PARKS & LEISURE SERVICES,Clothing-Children/Adults,MITRE,01-Jul-2019,-4.95
PARKS & LEISURE SERVICES,Clothing-Children/Adults,MITRE,01-Jul-2019,-123.96
PARKS & LEISURE SERVICES,Building-Timber,SCREWFIX BRIXTON,01-Jul-2019,103.26
PROGRAMME PERFORMANCE,IT Services,NATIONBUILDER,01-Jul-2019,194.81
PROGRAMME PERFORMANCE,IT Services,GOOGLE,01-Jul-2019,20.70
SPECIALIST YOUTH,IT Consumables,AMZNMktplace,01-Jul-2019,151.54
ADULTS WITH MENTAL HEALTH NEEDS,Legal Services-Other,HMCOURTS-SERVICE.G,02-Jul-2019,300.00
BUSINESS SUPPORT,Travel/Subsistence,OYSTER ONLINE,02-Jul-2019,30.00
BUSINESS SUPPORT,Financial Services,LONDON BRGH OF LAMBETH,02-Jul-2019,82.00
BUSINESS SUPPORT,Domestic Goods-Other,WWW.ARGOS.CO.UK,02-Jul-2019,43.94
BUSINESS SUPPORT,Catering Food & Drink,TESCO STORE 2143,02-Jul-2019,38.88
BUSINESS SUPPORT,Domestic Goods-Other,AMZNMKTPLACE AMAZON.CO.UK,02-Jul-2019,129.95
BUSINESS SUPPORT,Travel/Subsistence,OYSTER AUTO-TOP UP,02-Jul-2019,20.00
BUSINESS SUPPORT,Travel/Subsistence,AUTO TOP-UP ARREARS,02-Jul-2019,100.00
DAY SERVICES,Building-Others,TESCO STORE 3300,02-Jul-2019,37.80
DAY SERVICES,Catering Food & Drink,TESCO STORE 3300,02-Jul-2019,61.03
DAY SERVICES,Building-Others,AMZNMktplace,02-Jul-2019,24.99
DAY SERVICES,Catering Food & Drink,ICELAND,02-Jul-2019,64.10
DAY SERVICES,Travel/Subsistence,LBL NOT PRESENT,02-Jul-2019,10.00
DEMOCRATIC SERVICES,Travel/Subsistence,Trainline.com,02-Jul-2019,76.38
DEMOCRATIC SERVICES,Catering Food & Drink,TESCO STORE 2143,02-Jul-2019,20.44
DEMOCRATIC SERVICES,Travel/Subsistence,TRAINLINE,02-Jul-2019,68.65
DIRECTOR OF FINANCE,Taxi Fares,UBER TRIP HELP.UBER.COM,02-Jul-2019,2.00
DIRECTOR OF FINANCE,Taxi Fares,UBER TRIP HELP.UBER.COM,02-Jul-2019,7.80
EVENTS & FILMING,IT Software,ADOBE  CREATIVE CLOUD,02-Jul-2019,83.24
EVENTS & FILMING,Domestic Goods-Other,RHS Enterprises LTD,02-Jul-2019,56.95
LIBRARIES & ARCHIVES,Books/Publications/Resources,CASH ADVANCE FEE,02-Jul-2019,5.02
PARKS & LEISURE SERVICES,Clothing-Children/Adults,MITRE,02-Jul-2019,91.40
PARKS & LEISURE SERVICES,Clothing-Children/Adults,MITRE,02-Jul-2019,166.42
PLANNING,Financial Services,STATES OF GUERNSEY,02-Jul-2019,2.00
PLANNING,Financial Services,WWW.JERSEYFSC.ORG,02-Jul-2019,4.00
PROGRAMME PERFORMANCE,IT Hardware,AMZNMktplace,02-Jul-2019,354.00
PROGRAMME PERFORMANCE,Couriers,AMAZON PRIME,02-Jul-2019,0.99
SCHOOL & EDUCATIONAL IMPROVEMENT SERVICE,Facilities-Printing,FINDEL EDUCATION,02-Jul-2019,222.06
SPECIALIST YOUTH,Travel/Subsistence,OYSTER ONLINE,02-Jul-2019,20.00
SPECIALIST YOUTH,Catering Food & Drink,TESCO STORE 2143,02-Jul-2019,100.00
BUSINESS SUPPORT,Travel/Subsistence,OYSTER AUTO-TOP UP,03-Jul-2019,20.00
BUSINESS SUPPORT,Utilities,WWW.EDF-ENERGY.COM,03-Jul-2019,"1,451.29"
BUSINESS SUPPORT,Travel/Subsistence,OYSTER AUTO-TOP UP,03-Jul-2019,80.00
BUSINESS SUPPORT,Domestic Goods-Other,WWW.ARGOS.CO.UK,03-Jul-2019,99.99
BUSINESS SUPPORT,Catering Food & Drink,TESCO STORE 2143,03-Jul-2019,18.53
BUSINESS SUPPORT,Travel/Subsistence,OYSTER AUTO-TOP UP,03-Jul-2019,80.00
BUSINESS SUPPORT,Travel/Subsistence,OYSTER AUTO-TOP UP,03-Jul-2019,20.00
BUSINESS SUPPORT,Clothing-Children/Adults,MATALAN.CO.UK,03-Jul-2019,31.00
BUSINESS SUPPORT,Travel/Subsistence,OYSTER AUTO-TOP UP,03-Jul-2019,60.00
BUSINESS SUPPORT,Catering Food & Drink,MARKS&SPENCER PLC,03-Jul-2019,225.00
BUSINESS SUPPORT,Travel/Subsistence,OYSTER AUTO-TOP UP,03-Jul-2019,80.00
BUSINESS SUPPORT,Banquet & Catering,CAMEO EVENTS HIRE,03-Jul-2019,150.00
BUSINESS SUPPORT,Catering Food & Drink,LOW COST SUPERMARKET,03-Jul-2019,30.00
BUSINESS SUPPORT,Domestic Goods-Other,WWW.ARGOS.CO.UK,03-Jul-2019,198.90
BUSINESS SUPPORT,Travel/Subsistence,OYSTER ONLINE,03-Jul-2019,30.00
BUSINESS SUPPORT,Financial Services,LONDON BRGH OF LAMBETH,03-Jul-2019,82.00
BUSINESS SUPPORT,Travel/Subsistence,OYSTER AUTO-TOP UP,03-Jul-2019,20.00
BUSINESS SUPPORT,Catering Food & Drink,JAMAICA SPICE BAKERY L,03-Jul-2019,22.40
BUSINESS SUPPORT,Travel/Subsistence,OYSTER AUTO-TOP UP,03-Jul-2019,40.00
CHILDREN LOOKED AFTER,Domestic Goods-Other,AMZNMKTPLACE AMAZON.CO.UK,03-Jul-2019,3.20
DEMOCRATIC SERVICES,Catering Food & Drink,TESCO STORE 2143,03-Jul-2019,9.10
EVENTS & FILMING,Facilities-Market Research,LONDON LETTERBOX MARKE,03-Jul-2019,"1,025.47"
EVENTS & FILMING,Facilities-Reprographics,IMAGINATORS,03-Jul-2019,655.77
HOUSING BENEFIT,Legal Services-Other,HMCOURTS-SERVICE.G,03-Jul-2019,"1,009.00"
HOUSING BENEFIT,Legal Services-Other,HMCOURTS-SERVICE.G,03-Jul-2019,53.50
HOUSING MANAGEMENT SERVICES,Accommodation,BEST WESTERN PLUS THE VAU,03-Jul-2019,326.00
LEGAL SERVICES,Travel/Subsistence,LUL TICKET MACHINE,03-Jul-2019,50.00
PENSIONS SERVICES,Accommodation,PREMIER INN 44533710,03-Jul-2019,-7.50
PROGRAMME PERFORMANCE,IT Services,NATIONBUILDER,03-Jul-2019,97.57
PROGRAMME PERFORMANCE,Clothing-Uniforms,WORKWEAR EXPRESS LTD,03-Jul-2019,404.99
PROGRAMME PERFORMANCE,Conference Expenses,WWW.PUBLISHINGTR.CO.UK,03-Jul-2019,460.00
PROGRAMME PERFORMANCE,Conference Expenses,PAYPAL,03-Jul-2019,"1,512.00"
PROGRAMME PERFORMANCE,IT Services,AWS EMEA,03-Jul-2019,139.99
RESIDENT ENGAGEMENT,Travel/Subsistence,OYSTER AUTO-TOP UP,03-Jul-2019,20.00
RESIDENT ENGAGEMENT,Building-Tools,550 LEWISHAM,03-Jul-2019,323.74
SPECIALIST YOUTH,Travel/Subsistence,OYSTER AUTO-TOP UP,03-Jul-2019,20.00
BEREAVEMENT SERVICES,Cemetery & Crematorium,AMZNMktplace,04-Jul-2019,19.99
BUSINESS SUPPORT,Travel/Subsistence,OYSTER AUTO-TOP UP,04-Jul-2019,40.00
BUSINESS SUPPORT,Travel/Subsistence,AUTO TOP-UP ARREARS,04-Jul-2019,20.00
BUSINESS SUPPORT,Travel/Subsistence,OYSTER AUTO-TOP UP,04-Jul-2019,20.00
BUSINESS SUPPORT,Catering Food & Drink,TESCO STORE 2143,04-Jul-2019,4.84
BUSINESS SUPPORT,Domestic Goods-Other,ARGOS RETAIL GROUP,04-Jul-2019,92.00
BUSINESS SUPPORT,Catering Food & Drink,TESCO STORE 2143,04-Jul-2019,218.49
BUSINESS SUPPORT,Travel/Subsistence,OYSTER AUTO-TOP UP,04-Jul-2019,40.00
BUSINESS SUPPORT,Works-Construction,DISCOUNT CARPETS S,04-Jul-2019,585.00
BUSINESS SUPPORT,Travel/Subsistence,OYSTER AUTO-TOP UP,04-Jul-2019,80.00
BUSINESS SUPPORT,Travel/Subsistence,OYSTER AUTO-TOP UP,04-Jul-2019,20.00
BUSINESS SUPPORT,Travel/Subsistence,OYSTER AUTO-TOP UP,04-Jul-2019,20.00
BUSINESS SUPPORT,Travel/Subsistence,OYSTER AUTO-TOP UP,04-Jul-2019,60.00
DAY SERVICES,Domestic Goods-Other,AMZNMktplace,04-Jul-2019,14.50
DEMOCRATIC SERVICES,Catering Food & Drink,TESCO STORE 2143,04-Jul-2019,12.79
DEMOCRATIC SERVICES,Conference Expenses,REDACTIVE,04-Jul-2019,654.00
FINANCIAL PLANNING AND MANAGEMENT,Financial Services,LAND REGISTRY,04-Jul-2019,3.00
HOUSING MANAGEMENT SERVICES,Domestic Goods-Other,AMZNMktplace,04-Jul-2019,7.90
HOUSING MANAGEMENT SERVICES,Building-Timber,SCREWFIX BRIXTON,04-Jul-2019,2.70
HOUSING MANAGEMENT SERVICES,Accommodation,GOVERNMENT EVENTS,04-Jul-2019,474.00
HOUSING MANAGEMENT SERVICES,Domestic Goods-Other,WWW.ARGOS.CO.UK,04-Jul-2019,302.94
HOUSING OPTIONS - GF,Furniture-Domestic Furniture,PAYPAL,04-Jul-2019,272.49
HOUSING OPTIONS - GF,Furniture-Domestic Furniture,PAYPAL,04-Jul-2019,31.88
LEGAL SERVICES,Travel/Subsistence,LUL TICKET MACHINE,04-Jul-2019,50.00
PENSIONS SERVICES,Accommodation,PREMIER INN 44533710,04-Jul-2019,-24.99
PROGRAMME PERFORMANCE,IT Services,PANTHEON SYSTEMS INC,04-Jul-2019,28.72
PROGRAMME PERFORMANCE,IT Hardware,AMAZON.CO.UK,04-Jul-2019,219.98
SCHOOL & EDUCATIONAL IMPROVEMENT SERVICE,Catering Food & Drink,TESCO STORES 5999,04-Jul-2019,47.42
SHELTERED HOUSING,Domestic Goods-Other,AMZNMktplace,04-Jul-2019,57.98
SPECIALIST YOUTH,Travel/Subsistence,OYSTER AUTO-TOP UP,04-Jul-2019,60.00
SPECIALIST YOUTH,Travel/Subsistence,OYSTER ONLINE,04-Jul-2019,20.00
BUSINESS SUPPORT,Stationery,AMZNMktplace,05-Jul-2019,65.45
BUSINESS SUPPORT,Travel/Subsistence,AUTO TOP-UP ARREARS,05-Jul-2019,40.00
BUSINESS SUPPORT,Travel/Subsistence,OYSTER ONLINE,05-Jul-2019,30.00
BUSINESS SUPPORT,Travel/Subsistence,OYSTER AUTO-TOP UP,05-Jul-2019,20.00
BUSINESS SUPPORT,Domestic Goods-Other,WWW.ARGOS.CO.UK,05-Jul-2019,608.92
BUSINESS SUPPORT,Travel/Subsistence,OYSTER AUTO-TOP UP,05-Jul-2019,100.00
BUSINESS SUPPORT,Travel/Subsistence,OYSTER AUTO-TOP UP,05-Jul-2019,20.00
BUSINESS SUPPORT,Travel/Subsistence,OYSTER TELESALES 1ST ISSU,05-Jul-2019,25.00
BUSINESS SUPPORT,Travel/Subsistence,OYSTER AUTO-TOP UP,05-Jul-2019,40.00
BUSINESS SUPPORT,Travel/Subsistence,OYSTER AUTO-TOP UP,05-Jul-2019,20.00
BUSINESS SUPPORT,Travel/Subsistence,AUTO TOP-UP ARREARS,05-Jul-2019,60.00
BUSINESS SUPPORT,Travel/Subsistence,OYSTER AUTO-TOP UP,05-Jul-2019,40.00
BUSINESS SUPPORT,Travel/Subsistence,OYSTER AUTO-TOP UP,05-Jul-2019,20.00
BUSINESS SUPPORT,Domestic Goods-Other,WWW.ARGOS.CO.UK,05-Jul-2019,427.90
EVENTS & FILMING,IT Services,PAYPAL,05-Jul-2019,50.36
FINANCIAL PLANNING AND MANAGEMENT,Financial Services,LAND REGISTRY,05-Jul-2019,3.00
FINANCIAL PLANNING AND MANAGEMENT,Education-Other,CHARTERED INSTITUTE FO,05-Jul-2019,202.00
HOUSING MANAGEMENT SERVICES,Facilities-Market Research,Amazon Prime,05-Jul-2019,7.99
HOUSING MANAGEMENT SERVICES,Domestic Goods-Other,WWW.ARGOS.CO.UK,05-Jul-2019,-302.94
LEGAL SERVICES,Legal Services-General Support,EYE NETWORK,05-Jul-2019,744.00
PARKING OPERATIONS,Domestic Goods-Other,AMZNMktplace,05-Jul-2019,88.73
PARKS & LEISURE SERVICES,Building-Timber,WWW.SELCOBW.COM,05-Jul-2019,71.82
PUBLIC HEALTH - ADULTS,Taxi Fares,UBER TRIP HELP.UBER.COM,05-Jul-2019,24.60
SPECIALIST YOUTH,Travel/Subsistence,OYSTER ONLINE,05-Jul-2019,-20.00
SPECIALIST YOUTH,Travel/Subsistence,OYSTER AUTO-TOP UP,05-Jul-2019,40.00
BUSINESS SUPPORT,Travel/Subsistence,OYSTER AUTO-TOP UP,06-Jul-2019,60.00
BUSINESS SUPPORT,Travel/Subsistence,OYSTER AUTO-TOP UP,06-Jul-2019,40.00
BUSINESS SUPPORT,Travel/Subsistence,OYSTER AUTO-TOP UP,06-Jul-2019,20.00
PROGRAMME PERFORMANCE,Facilities-Advertising,FACEBK Z2B5TLW5M2,06-Jul-2019,50.00
SPECIALIST YOUTH,Travel/Subsistence,OYSTER AUTO-TOP UP,06-Jul-2019,20.00
BUSINESS SUPPORT,Travel/Subsistence,OYSTER AUTO-TOP UP,07-Jul-2019,60.00
BUSINESS SUPPORT,Travel/Subsistence,OYSTER AUTO-TOP UP,07-Jul-2019,20.00
BUSINESS SUPPORT,Travel/Subsistence,OYSTER AUTO-TOP UP,07-Jul-2019,40.00
BUSINESS SUPPORT,Travel/Subsistence,OYSTER AUTO-TOP UP,07-Jul-2019,40.00
BUSINESS SUPPORT,Travel/Subsistence,OYSTER AUTO-TOP UP,07-Jul-2019,20.00
BUSINESS SUPPORT,Travel/Subsistence,OYSTER AUTO-TOP UP,07-Jul-2019,40.00
BUSINESS SUPPORT,Travel/Subsistence,OYSTER AUTO-TOP UP,07-Jul-2019,20.00
BUSINESS SUPPORT,Travel/Subsistence,OYSTER AUTO-TOP UP,07-Jul-2019,40.00
BUSINESS SUPPORT,Travel/Subsistence,OYSTER AUTO-TOP UP,07-Jul-2019,20.00
BUSINESS SUPPORT,Travel/Subsistence,OYSTER AUTO-TOP UP,07-Jul-2019,40.00
DAY SERVICES,Domestic Goods-Other,AMZNMktplace,07-Jul-2019,7.74
DAY SERVICES,Domestic Goods-Other,AMZNMktplace,07-Jul-2019,341.22
LIBRARIES & ARCHIVES,Domestic Goods-Other,ARGOS LTD,07-Jul-2019,-6.00
LIBRARIES & ARCHIVES,Domestic Goods-Other,ARGOS LTD,07-Jul-2019,24.00
SPECIALIST YOUTH,Travel/Subsistence,OYSTER AUTO-TOP UP,07-Jul-2019,20.00
BUSINESS SUPPORT,Taxi Fares,SE27CIVICSW9,08-Jul-2019,70.00
BUSINESS SUPPORT,Banquet & Catering,CAMEO EVENTS HIRE,08-Jul-2019,136.64
BUSINESS SUPPORT,Facilities-Advertising,FACEBK G59G4MECE2,08-Jul-2019,400.84
BUSINESS SUPPORT,Travel/Subsistence,OYSTER ONLINE,08-Jul-2019,30.00
BUSINESS SUPPORT,Travel/Subsistence,OYSTER ONLINE,08-Jul-2019,30.00
BUSINESS SUPPORT,Accommodation,VIR ATL,08-Jul-2019,"1,893.04"
BUSINESS SUPPORT,Travel/Subsistence,OYSTER AUTO-TOP UP,08-Jul-2019,20.00
BUSINESS SUPPORT,Furniture-Domestic Furniture,BRIXTON FURNITURE CENT,08-Jul-2019,255.00
BUSINESS SUPPORT,Travel/Subsistence,OYSTER AUTO-TOP UP,08-Jul-2019,20.00
BUSINESS SUPPORT,Taxi Fares,SE5 TO E4 3TIMES,08-Jul-2019,250.00
DAY SERVICES,Catering Food & Drink,TESCO STORES 5999,08-Jul-2019,86.98
DEMOCRATIC SERVICES,Education-Library Books,NBNI* 190709155931300,08-Jul-2019,74.96
DEMOCRATIC SERVICES,Clothing-Children/Adults,THE SAFETY SUPPLY,08-Jul-2019,66.52
EVENTS & FILMING,IT Services,Dropbox 6CY13Y4S3DGR,08-Jul-2019,9.99
HOUSING OPTIONS - GF,Books/Publications/Resources,WHICH,08-Jul-2019,11.75
HOUSING OPTIONS - GF,Furniture-Domestic Furniture,PAYPAL,08-Jul-2019,177.30
PARKS & LEISURE SERVICES,Travel/Subsistence,Trainline.com,08-Jul-2019,51.36
PARKS & LEISURE SERVICES,Building-Timber,SCREWFIX BRIXTON,08-Jul-2019,12.98
PUBLIC HEALTH - ADULTS,Taxi Fares,UBER TRIP HELP.UBER.COM,08-Jul-2019,8.32
RESIDENT ENGAGEMENT,Building-Tools,WWW.YAHIRE.COM,08-Jul-2019,"1,125.17"
SPECIALIST YOUTH,Travel/Subsistence,OYSTER ONLINE,08-Jul-2019,20.00
SUBSTANCE MISUSE,Catering Food & Drink,TESCO STORES 5999,08-Jul-2019,78.42
BEREAVEMENT SERVICES,Stationery,AMZNMktplace,09-Jul-2019,63.49
BEREAVEMENT SERVICES,Catering Equipment,AMZNMktplace,09-Jul-2019,54.28
BEREAVEMENT SERVICES,Stationery,AMZNMKTPLACE AMAZON.CO.UK,09-Jul-2019,7.99
BEREAVEMENT SERVICES,Financial Services,GEN REGISTER OFFICE,09-Jul-2019,14.00
BUSINESS SUPPORT,Catering Food & Drink,SAINSBURY'S SMKT,09-Jul-2019,32.70
BUSINESS SUPPORT,Travel/Subsistence,OYSTER ONLINE,09-Jul-2019,15.00
BUSINESS SUPPORT,Taxi Fares,SW9 TO FAMILY COURT,09-Jul-2019,40.00
BUSINESS SUPPORT,Facilities-Storage,WWW.SAFESTORE.CO.UK,09-Jul-2019,576.41
BUSINESS SUPPORT,Financial Services,LONDON BRGH OF LAMBETH,09-Jul-2019,169.00
BUSINESS SUPPORT,Catering Food & Drink,JS ONLINE GROCERY,09-Jul-2019,122.00
BUSINESS SUPPORT,Financial Services-Grants,ALLPAY *NOTTING HILL GENE,09-Jul-2019,553.90
BUSINESS SUPPORT,Domestic Goods-Other,WWW.ARGOS.CO.UK,09-Jul-2019,-45.00
BUSINESS SUPPORT,Taxi Fares,SE27CIVIC 4TIMES,09-Jul-2019,80.00
BUSINESS SUPPORT,Travel/Subsistence,OYSTER AUTO-TOP UP,09-Jul-2019,20.00
BUSINESS SUPPORT,Financial Services,2MAA010583049 TD E-PMT,09-Jul-2019,75.00
BUSINESS SUPPORT,Catering Food & Drink,MARKS&SPENCER PLC SACA,09-Jul-2019,123.50
BUSINESS SUPPORT,Building-General,ManomanoUK,09-Jul-2019,36.99
BUSINESS SUPPORT,Taxi Fares,SW16 TO SW4 7SEAT,09-Jul-2019,60.00
BUSINESS SUPPORT,Travel/Subsistence,TFL AUTOSETTLEMENT,09-Jul-2019,80.00
DAY SERVICES,Catering Food & Drink,ICELAND,09-Jul-2019,15.90
DEMOCRATIC SERVICES,Catering Food & Drink,TESCO STORE 2143,09-Jul-2019,13.58
DEMOCRATIC SERVICES,Conference Expenses,TOWN & COUNTRY,09-Jul-2019,420.00
DEMOCRATIC SERVICES,Catering Food & Drink,VERA CRUZ,09-Jul-2019,17.00
EVENTS & FILMING,Financial Services,LBL PARKING PHONE IVR,09-Jul-2019,65.00
HOUSING MANAGEMENT SERVICES,Travel/Subsistence,LUL TICKET MACHINE,09-Jul-2019,50.00
LIBRARIES & ARCHIVES,Domestic Goods-Other,PAYPAL,09-Jul-2019,0.00
LIBRARIES & ARCHIVES,Clothing-Children/Adults,PAYPAL,09-Jul-2019,0.00
LIBRARIES & ARCHIVES,Clothing-Children/Adults,PAYPAL,09-Jul-2019,0.00
LIBRARIES & ARCHIVES,Education-Toys,PAYPAL,09-Jul-2019,0.00
LIBRARIES & ARCHIVES,Domestic Goods-Other,PAYPAL,09-Jul-2019,0.00
LIBRARIES & ARCHIVES,Stationery,PAYPAL,09-Jul-2019,13.99
LIBRARIES & ARCHIVES,Professional & Advisory Services,PAYPAL,09-Jul-2019,0.00
LIBRARIES & ARCHIVES,Consultancy-Business,PAYPAL,09-Jul-2019,0.00
LIBRARIES & ARCHIVES,Education-Arts/Crafts,BAKER ROSS,09-Jul-2019,15.93
LIBRARIES & ARCHIVES,Cleaning-Chemical,PAYPAL,09-Jul-2019,0.00
LIBRARIES & ARCHIVES,Clothing-Children/Adults,PAYPAL,09-Jul-2019,-13.99
LIBRARIES & ARCHIVES,Education-Arts/Crafts,BAKER ROSS,09-Jul-2019,21.99
LIBRARIES & ARCHIVES,Domestic Goods-Other,PAYPAL,09-Jul-2019,6.49
LIBRARIES & ARCHIVES,Building-Others,AMZNMktplace,09-Jul-2019,145.00
LIBRARIES & ARCHIVES,Stationery,PAYPAL,09-Jul-2019,-6.49
PARKING OPERATIONS,Travel/Subsistence,OYSTER ONLINE,09-Jul-2019,200.00
PARKS & LEISURE SERVICES,Building-Timber,B & Q 1009,09-Jul-2019,26.80
PARKS & LEISURE SERVICES,Travel/Subsistence,TFL ROAD CHG - STD WEB,09-Jul-2019,24.00
PLANNING,Travel/Subsistence,LUL TICKET MACHINE,09-Jul-2019,50.00
PROGRAMME PERFORMANCE,Facilities-Design & Photography,THE PRESS ASSOCIATION,09-Jul-2019,384.00
SCHOOL & EDUCATIONAL IMPROVEMENT SERVICE,Accommodation,PREMIER INN 44537130,09-Jul-2019,83.50
SCHOOL & EDUCATIONAL IMPROVEMENT SERVICE,IT Services,PARTICIPANT UK LTD,09-Jul-2019,45.00
ADULTS WITH MENTAL HEALTH NEEDS,Works-Construction/Materials,LOCKSMITHS AT THE TOOL,10-Jul-2019,780.00
BEREAVEMENT SERVICES,Cemetery & Crematorium,AMAZON.CO.UK,10-Jul-2019,16.97
BEREAVEMENT SERVICES,Cemetery & Crematorium,AMZNMktplace,10-Jul-2019,14.29
BUSINESS SUPPORT,Travel/Subsistence,OYSTER ONLINE,10-Jul-2019,30.00
BUSINESS SUPPORT,Travel/Subsistence,OYSTER AUTO-TOP UP,10-Jul-2019,40.00
BUSINESS SUPPORT,Travel/Subsistence,OYSTER AUTO-TOP UP,10-Jul-2019,60.00
BUSINESS SUPPORT,Travel/Subsistence,OYSTER AUTO-TOP UP,10-Jul-2019,80.00
BUSINESS SUPPORT,Travel/Subsistence,OYSTER AUTO-TOP UP,10-Jul-2019,20.00
BUSINESS SUPPORT,Domestic Goods-Other,WWW.ARGOS.CO.UK,10-Jul-2019,702.92
BUSINESS SUPPORT,Travel/Subsistence,OYSTER AUTO-TOP UP,10-Jul-2019,40.00
BUSINESS SUPPORT,Travel/Subsistence,AUTO TOP-UP ARREARS,10-Jul-2019,20.00
BUSINESS SUPPORT,Travel/Subsistence,OYSTER ONLINE,10-Jul-2019,-30.00
BUSINESS SUPPORT,Travel/Subsistence,TFL AUTOSETTLEMENT,10-Jul-2019,60.00
BUSINESS SUPPORT,Travel/Subsistence,OYSTER AUTO-TOP UP,10-Jul-2019,40.00
BUSINESS SUPPORT,Domestic Goods-Other,AO RETAIL LIMITED,10-Jul-2019,149.00
BUSINESS SUPPORT,Domestic Goods-Other,WWW.ARGOS.CO.UK,10-Jul-2019,36.94
BUSINESS SUPPORT,Travel/Subsistence,OYSTER AUTO-TOP UP,10-Jul-2019,20.00
BUSINESS SUPPORT,Travel/Subsistence,AUTO TOP-UP ARREARS,10-Jul-2019,20.00
BUSINESS SUPPORT,Facilities-Advertising,WH SMITH,10-Jul-2019,30.00
BUSINESS SUPPORT,Catering Food & Drink,TESCO STORE 2143,10-Jul-2019,46.49
BUSINESS SUPPORT,Furniture-Domestic Furniture,PAYPAL,10-Jul-2019,354.00
BUSINESS SUPPORT,Facilities-Advertising,EXPRESS NEWS,10-Jul-2019,25.00
BUSINESS SUPPORT,Travel/Subsistence,OYSTER AUTO-TOP UP,10-Jul-2019,40.00
DAY SERVICES,Catering Food & Drink,TESCO STORE 2143,10-Jul-2019,9.00
DEMOCRATIC SERVICES,Couriers,WWW.ADDISONLEE.COM,10-Jul-2019,13.35
EVENTS & FILMING,Building-Electrical,AV RENTAL SERVICES,10-Jul-2019,720.00
FINANCIAL PLANNING AND MANAGEMENT,Financial Services,LAND REGISTRY,10-Jul-2019,3.00
LEGAL SERVICES,Travel/Subsistence,LUL TICKET MACHINE,10-Jul-2019,50.00
LEGAL SERVICES,Mail Services-Postage,THE POST OFFICE,10-Jul-2019,176.00
LIBRARIES & ARCHIVES,Education-Library Books,AMZNMktplace,10-Jul-2019,4.47
LIBRARIES & ARCHIVES,Education-Library Books,AMAZON.CO.UK,10-Jul-2019,67.60
LIBRARIES & ARCHIVES,Education-Library Books,AMZNMktplace,10-Jul-2019,23.49
LIBRARIES & ARCHIVES,Domestic Goods-Other,AMZNMktplace,10-Jul-2019,17.44
PARKS & LEISURE SERVICES,Building-General,WICKES BLACKHEATH,10-Jul-2019,19.50
REGISTRAR SERVICES,Domestic Goods-Other,PAYPAL,10-Jul-2019,27.03
SPECIALIST YOUTH,Travel/Subsistence,BRIXTONHILL EXPRESS,10-Jul-2019,80.00
SUBSTANCE MISUSE,Domestic Goods-Other,AMZNMktplace,10-Jul-2019,34.50
BUSINESS SUPPORT,Domestic Goods-Other,POUNDLAND LTD 1203,11-Jul-2019,5.00
BUSINESS SUPPORT,Travel/Subsistence,OYSTER AUTO-TOP UP,11-Jul-2019,60.00
BUSINESS SUPPORT,Travel/Subsistence,OYSTER AUTO-TOP UP,11-Jul-2019,20.00
BUSINESS SUPPORT,Facilities-Market Research,WAYFAIR #2721171848,11-Jul-2019,183.99
BUSINESS SUPPORT,Travel/Subsistence,AUTO TOP-UP ARREARS,11-Jul-2019,20.00
BUSINESS SUPPORT,Travel/Subsistence,OYSTER AUTO-TOP UP,11-Jul-2019,60.00
BUSINESS SUPPORT,Facilities-Market Research,GOOGLE,11-Jul-2019,190.27
BUSINESS SUPPORT,Facilities-Market Research,WAYFAIR #2721162928,11-Jul-2019,69.99
BUSINESS SUPPORT,Travel/Subsistence,OYSTER AUTO-TOP UP,11-Jul-2019,40.00
BUSINESS SUPPORT,Facilities-Market Research,GOOGLE,11-Jul-2019,192.25
BUSINESS SUPPORT,Furniture-Domestic Furniture,DFS Trading Limited,11-Jul-2019,868.00
BUSINESS SUPPORT,Domestic Goods-Other,WWW.JOHNLEWIS.COM,11-Jul-2019,59.99
BUSINESS SUPPORT,Financial Services,HM PASSPORT OFFICE,11-Jul-2019,85.00
BUSINESS SUPPORT,Catering Food & Drink,TESCO STORE 2143,11-Jul-2019,14.52
BUSINESS SUPPORT,Facilities-Printing,MIXAM UK LTD,11-Jul-2019,182.95
BUSINESS SUPPORT,Travel/Subsistence,OYSTER ONLINE,11-Jul-2019,20.00
BUSINESS SUPPORT,Travel/Subsistence,OYSTER AUTO-TOP UP,11-Jul-2019,60.00
BUSINESS SUPPORT,Travel/Subsistence,OYSTER AUTO-TOP UP,11-Jul-2019,20.00
BUSINESS SUPPORT,Catering Food & Drink,TESCO STORE 2143,11-Jul-2019,8.10
BUSINESS SUPPORT,Travel/Subsistence,OYSTER AUTO-TOP UP,11-Jul-2019,20.00
BUSINESS SUPPORT,Travel/Subsistence,LUL TICKET MACHINE,11-Jul-2019,125.00
BUSINESS SUPPORT,Travel/Subsistence,OYSTER AUTO-TOP UP,11-Jul-2019,60.00
BUSINESS SUPPORT,Domestic Goods-Other,T K MAXX,11-Jul-2019,63.98
BUSINESS SUPPORT,Travel/Subsistence,OYSTER AUTO-TOP UP,11-Jul-2019,40.00
DAY SERVICES,Catering Food & Drink,ICELAND,11-Jul-2019,34.30
DEMOCRATIC SERVICES,Catering Food & Drink,TESCO STORE 2143,11-Jul-2019,9.00
DEMOCRATIC SERVICES,Catering Food & Drink,MARKS&SPENCER PLC SACA,11-Jul-2019,17.00
EVENTS & FILMING,Domestic Goods-Other,AMZNMktplace,11-Jul-2019,29.99
EVENTS & FILMING,Facilities-Printing,WWW.SOLOPRESS.COM,11-Jul-2019,"2,125.75"
HOUSING MANAGEMENT SERVICES,Travel/Subsistence,LUL TICKET MACHINE,11-Jul-2019,50.00
HOUSING MANAGEMENT SERVICES,Building-Electrical,CRS ELECTRICAL SUPPLIE,11-Jul-2019,13.86
HOUSING MANAGEMENT SERVICES,Domestic Goods-Other,AMZNMKTPLACE AMAZON.CO.UK,11-Jul-2019,15.80
HOUSING OPTIONS - GF,Furniture-Domestic Furniture,WAYFAIR,11-Jul-2019,141.99
INTERNAL AUDIT,Travel/Subsistence,OYSTER AUTO-TOP UP,11-Jul-2019,40.00
LIBRARIES & ARCHIVES,Education-Library Books,Amazon.co.uk,11-Jul-2019,24.46
LIBRARIES & ARCHIVES,Education-Library Books,AMZNMktplace,11-Jul-2019,15.93
LIBRARIES & ARCHIVES,Education-Library Books,AMZNMKTPLACE AMAZON.CO.UK,11-Jul-2019,22.18
PARKS & LEISURE SERVICES,Building-Timber,SELCO TRADING CTR,11-Jul-2019,180.40
PARKS & LEISURE SERVICES,Travel/Subsistence,NCP LIMITED,11-Jul-2019,15.00
PROGRAMME PERFORMANCE,Education-Other,UAL SHORT COURSES LTD,11-Jul-2019,770.00
PUBLIC HEALTH - ADULTS,IT Services,Dropbox,11-Jul-2019,95.88
SCHOOL & EDUCATIONAL IMPROVEMENT SERVICE,Catering Food & Drink,TESCO STORES 5999,11-Jul-2019,60.40
SPECIALIST YOUTH,Travel/Subsistence,OYSTER AUTO-TOP UP,11-Jul-2019,20.00
SPECIALIST YOUTH,Travel/Subsistence,OYSTER ONLINE,11-Jul-2019,20.00
SPECIALIST YOUTH,Travel/Subsistence,BRIXTONHILL EXPRESS,11-Jul-2019,80.00
ADULTS WITH MENTAL HEALTH NEEDS,Works-Construction/Materials,LOCKSMITHS AT THE TOOL,12-Jul-2019,506.40
ADULTS WITH MENTAL HEALTH NEEDS,Travel/Subsistence,SE BRIXTON TO,12-Jul-2019,56.70
BUSINESS SUPPORT,Travel/Subsistence,OYSTER AUTO-TOP UP,12-Jul-2019,80.00
BUSINESS SUPPORT,Banquet & Catering,CAMEO EVENTS HIRE,12-Jul-2019,-38.95
BUSINESS SUPPORT,Domestic Goods-Other,ARGOS RETAIL GROUP,12-Jul-2019,-20.00
BUSINESS SUPPORT,Travel/Subsistence,OYSTER ONLINE,12-Jul-2019,50.00
BUSINESS SUPPORT,Travel/Subsistence,OYSTER AUTO-TOP UP,12-Jul-2019,20.00
BUSINESS SUPPORT,Travel/Subsistence,OYSTER ONLINE,12-Jul-2019,30.00
BUSINESS SUPPORT,Travel/Subsistence,OYSTER AUTO-TOP UP,12-Jul-2019,40.00
BUSINESS SUPPORT,Travel/Subsistence,OYSTER AUTO-TOP UP,12-Jul-2019,80.00
BUSINESS SUPPORT,Travel/Subsistence,OYSTER AUTO-TOP UP,12-Jul-2019,80.00
BUSINESS SUPPORT,Travel/Subsistence,Trainline.com,12-Jul-2019,123.26
BUSINESS SUPPORT,Travel/Subsistence,OYSTER AUTO-TOP UP,12-Jul-2019,40.00
BUSINESS SUPPORT,Financial Services,LONDON BRGH OF LAMBETH,12-Jul-2019,47.00
BUSINESS SUPPORT,Travel/Subsistence,OYSTER AUTO-TOP UP,12-Jul-2019,20.00
DAY SERVICES,Catering Food & Drink,WWW.ICELAND.CO.UK,12-Jul-2019,234.15
DEMOCRATIC SERVICES,Catering Food & Drink,MARKS&SPENCER PLC SACA,12-Jul-2019,25.00
DEMOCRATIC SERVICES,Domestic Goods-Other,MORLEYS,12-Jul-2019,8.25
DEMOCRATIC SERVICES,Couriers,ADDISON LEE EXTRA,12-Jul-2019,4.17
EVENTS & FILMING,Facilities-Printing,WWW.SOLOPRESS.COM,12-Jul-2019,"1,561.08"
EVENTS & FILMING,Domestic Goods-Other,AMZNMKTPLACE AMAZON.CO.UK,12-Jul-2019,276.00
FACILITIES MANAGEMENT,Domestic Goods-Other,CURRYS ONLINE,12-Jul-2019,293.00
LIBRARIES & ARCHIVES,Education-Library Books,AMZNMktplace,12-Jul-2019,12.27
PARKS & LEISURE SERVICES,Building-General,SCREWFIX DIRECT,12-Jul-2019,26.98
PARKS & LEISURE SERVICES,Books/Publications/Resources,PAYPAL,12-Jul-2019,10.00
PUBLIC HEALTH - ADULTS,Taxi Fares,UBER TRIP HELP.UBER.COM,12-Jul-2019,15.47
RESIDENT ENGAGEMENT,Clothing-Children/Adults,AMZNMktplace,12-Jul-2019,13.50
SPECIALIST YOUTH,Travel/Subsistence,OYSTER AUTO-TOP UP,12-Jul-2019,20.00
BUSINESS SUPPORT,Travel/Subsistence,OYSTER AUTO-TOP UP,13-Jul-2019,20.00
BUSINESS SUPPORT,Travel/Subsistence,OYSTER AUTO-TOP UP,13-Jul-2019,80.00
EVENTS & FILMING,Domestic Goods-Other,WWW.ALBERT-HARRISON.CO,13-Jul-2019,208.66
EVENTS & FILMING,Domestic Goods-Other,AMZNMktplace,13-Jul-2019,20.99
HOUSING BENEFIT,Travel/Subsistence,OYSTER AUTO-TOP UP,13-Jul-2019,20.00
SPECIALIST YOUTH,Travel/Subsistence,OYSTER AUTO-TOP UP,13-Jul-2019,20.00
BUSINESS SUPPORT,Travel/Subsistence,OYSTER AUTO-TOP UP,14-Jul-2019,60.00
LIBRARIES & ARCHIVES,Domestic Goods-Other,AMZNMKTPLACE AMAZON.CO.UK,14-Jul-2019,53.38
LIBRARIES & ARCHIVES,Education-Other,AMZNMKTPLACE AMAZON.CO.UK,14-Jul-2019,10.42
RESIDENT ENGAGEMENT,Clothing-Children/Adults,Amazon.co.uk,14-Jul-2019,20.69
SPECIALIST YOUTH,Travel/Subsistence,OYSTER AUTO-TOP UP,14-Jul-2019,20.00
BUSINESS SUPPORT,Accommodation,PREMIER INN 44537130,15-Jul-2019,105.50
BUSINESS SUPPORT,Consultancy-Business,AWEBER COMMUNICATIONS,15-Jul-2019,8.31
DAY SERVICES,Catering Food & Drink,ICELAND,15-Jul-2019,22.00
DEMOCRATIC SERVICES,Catering Food & Drink,TESCO STORE 2143,15-Jul-2019,8.40
EVENTS & FILMING,Building-Tools,PORTABLE TOILET HIRE,15-Jul-2019,300.00
FINANCIAL PLANNING AND MANAGEMENT,Financial Services,LAND REGISTRY,15-Jul-2019,3.00
HOUSING BENEFIT,Furniture-Domestic Furniture,SENSORY EDUCATION LTD,15-Jul-2019,"2,012.49"
HOUSING MANAGEMENT SERVICES,Domestic Goods-Other,WWW.ARGOS.CO.UK,15-Jul-2019,302.94
LIBRARIES & ARCHIVES,Education-Library Books,AMZNMktplace,15-Jul-2019,19.26
LIBRARIES & ARCHIVES,Education-Library Books,AMZN Mktp UK,15-Jul-2019,9.62
PARKS & LEISURE SERVICES,Building-Paint,S LONDON DECORTORS,15-Jul-2019,112.66
PROGRAMME PERFORMANCE,Professional & Advisory Services,GOVERNMENT EVENTS,15-Jul-2019,"1,009.80"
SCHOOL & EDUCATIONAL IMPROVEMENT SERVICE,Domestic Goods-Other,WE BRAND IT,15-Jul-2019,984.00
SUBSTANCE MISUSE,Catering Food & Drink,TESCO STORES 5999,15-Jul-2019,73.18
BEREAVEMENT SERVICES,Building-Tools,YAHIRE LTD,16-Jul-2019,-100.00
BUSINESS SUPPORT,Domestic Goods-Other,WWW.ARGOS.CO.UK,16-Jul-2019,723.92
BUSINESS SUPPORT,Travel/Subsistence,TFL AUTOSETTLEMENT,16-Jul-2019,40.00
BUSINESS SUPPORT,Catering Food & Drink,MARKS&SPENCER PLC,16-Jul-2019,114.00
BUSINESS SUPPORT,Facilities-Advertising,EXPRESS NEWS,16-Jul-2019,12.80
BUSINESS SUPPORT,Travel/Subsistence,OYSTER ONLINE,16-Jul-2019,120.00
BUSINESS SUPPORT,Travel/Subsistence,OPODO,16-Jul-2019,313.88
BUSINESS SUPPORT,Domestic Goods-Other,WWW.ARGOS.CO.UK,16-Jul-2019,"1,904.89"
BUSINESS SUPPORT,Domestic Goods-Other,ARGOS RETAIL GROUP,16-Jul-2019,45.00
DAY SERVICES,Catering Food & Drink,TESCO STORE 2143,16-Jul-2019,17.64
DAY SERVICES,Catering Food & Drink,TESCO STORE 2143,16-Jul-2019,49.74
DEMOCRATIC SERVICES,Travel/Subsistence,Trainline.com,16-Jul-2019,85.94
DEMOCRATIC SERVICES,Couriers,ADDISON LEE EXTRA,16-Jul-2019,-4.17
EVENTS & FILMING,Accommodation,PREMIER INN 44536865,16-Jul-2019,"2,071.00"
EVENTS & FILMING,Stationery,AMZNMKTPLACE AMAZON.CO.UK,16-Jul-2019,7.58
EVENTS & FILMING,Catering Food & Drink,SAINSBURYS S/MKTS,16-Jul-2019,28.89
EVENTS & FILMING,Financial Services,NATWEST BANK  /,16-Jul-2019,300.00
EVENTS & FILMING,Consultancy-Business,BLS*MONDAY.COM,16-Jul-2019,148.80
FINANCIAL TRANSACTION SERVICES,Travel/Subsistence,Trainline.com,16-Jul-2019,34.93
PARKING OPERATIONS,Facilities-Advertising,WH SMITH,16-Jul-2019,60.00
PARKING OPERATIONS,Domestic Goods-Other,AMZNMKTPLACE AMAZON.CO.UK,16-Jul-2019,7.98
PARKS & LEISURE SERVICES,Consultancy-Business,ARMOUR LOCK AND SAFE,16-Jul-2019,70.00
PARKS & LEISURE SERVICES,Building-Timber,SCREWFIX BRIXTON,16-Jul-2019,42.29
PARKS & LEISURE SERVICES,Consultancy-Business,ARMOUR LOCK AND SAFE,16-Jul-2019,3.50
SUBSTANCE MISUSE,Domestic Goods-Other,WWW.ARGOS.CO.UK,16-Jul-2019,212.44
BUSINESS SUPPORT,Travel/Subsistence,OYSTER AUTO-TOP UP,17-Jul-2019,40.00
BUSINESS SUPPORT,Consultancy-Business,EB *ELSA NETWORK CONFE,17-Jul-2019,40.00
BUSINESS SUPPORT,Facilities-Advertising,FACEBK CPFYTM6CE2,17-Jul-2019,152.36
BUSINESS SUPPORT,Travel/Subsistence,OYSTER AUTO-TOP UP,17-Jul-2019,80.00
BUSINESS SUPPORT,Travel/Subsistence,OYSTER AUTO-TOP UP,17-Jul-2019,40.00
BUSINESS SUPPORT,Travel/Subsistence,OYSTER AUTO-TOP UP,17-Jul-2019,20.00
BUSINESS SUPPORT,Travel/Subsistence,OYSTER AUTO-TOP UP,17-Jul-2019,40.00
BUSINESS SUPPORT,Travel/Subsistence,OYSTER AUTO-TOP UP,17-Jul-2019,20.00
BUSINESS SUPPORT,Catering Food & Drink,TESCO STORE 2143,17-Jul-2019,15.50
EVENTS & FILMING,Domestic Goods-Other,AMZNMktplace,17-Jul-2019,59.90
EVENTS & FILMING,Domestic Goods-Other,AMZNMKTPLACE AMAZON.CO.UK,17-Jul-2019,205.33
EVENTS & FILMING,Stationery,AMZNMKTPLACE AMAZON.CO.UK,17-Jul-2019,45.98
EVENTS & FILMING,Stationery,AMAZON.CO.UK,17-Jul-2019,7.97
EVENTS & FILMING,Arts & Leisure Services,CASH ADVANCE FEE,17-Jul-2019,8.85
EVENTS & FILMING,Domestic Goods-Other,AMZNMktplace,17-Jul-2019,16.94
PARKS & LEISURE SERVICES,Facilities-Printing,Amazon.co.uk,17-Jul-2019,22.00
PARKS & LEISURE SERVICES,Domestic Goods-Other,AMZNMktplace,17-Jul-2019,8.82
PARKS & LEISURE SERVICES,Building-Others,WWW.SAFETYFIRSTAID.CO.,17-Jul-2019,38.16
PARKS & LEISURE SERVICES,Healthcare Equipment,FIRSTAID4LESS.CO.UK,17-Jul-2019,23.88
PROGRAMME PERFORMANCE,Facilities-Design & Photography,CANVA* PRO MONTHLY,17-Jul-2019,10.77
PUBLIC HEALTH - ADULTS,Domestic Goods-Other,HIGHSTREETVOUCHERS,17-Jul-2019,206.50
SPECIALIST YOUTH,Travel/Subsistence,OYSTER AUTO-TOP UP,17-Jul-2019,40.00
SPECIALIST YOUTH,Domestic Goods-Commercial,WWW.POLICE-SUPPLIES.CO,17-Jul-2019,252.99
ADULTS WITH MENTAL HEALTH NEEDS,Legal Services-Other,HMCOURTS-SERVICE.G,18-Jul-2019,300.00
BUSINESS SUPPORT,Financial Services,LONDON BRGH OF LAMBETH,18-Jul-2019,34.00
BUSINESS SUPPORT,Horticultural-Other,WWW.PRESTIGEFLOWERS.CO.U,18-Jul-2019,31.29
BUSINESS SUPPORT,Taxi Fares,SW9 TO BR1,18-Jul-2019,50.00
BUSINESS SUPPORT,Financial Services,GEN REGISTER OFFICE,18-Jul-2019,45.25
BUSINESS SUPPORT,Travel/Subsistence,OYSTER AUTO-TOP UP,18-Jul-2019,60.00
BUSINESS SUPPORT,Domestic Goods-Other,AMZNMKTPLACE AMAZON.CO.UK,18-Jul-2019,339.98
BUSINESS SUPPORT,Catering Food & Drink,TESCO STORE 2143,18-Jul-2019,60.64
BUSINESS SUPPORT,Travel/Subsistence,Trainline.com,18-Jul-2019,24.46
BUSINESS SUPPORT,Travel/Subsistence,OYSTER AUTO-TOP UP,18-Jul-2019,40.00
BUSINESS SUPPORT,Facilities-Advertising,EXPRESS NEWS,18-Jul-2019,60.00
BUSINESS SUPPORT,Travel/Subsistence,OYSTER AUTO-TOP UP,18-Jul-2019,40.00
BUSINESS SUPPORT,Travel/Subsistence,OYSTER AUTO-TOP UP,18-Jul-2019,40.00
BUSINESS SUPPORT,Travel/Subsistence,OYSTER AUTO-TOP UP,18-Jul-2019,40.00
BUSINESS SUPPORT,Travel/Subsistence,OYSTER AUTO-TOP UP,18-Jul-2019,20.00
DAY SERVICES,Financial Services,LONDIS,18-Jul-2019,34.50
DAY SERVICES,Financial Services,LONDIS,18-Jul-2019,-34.50
DAY SERVICES,Financial Services,ROYAL BANK UK /,18-Jul-2019,400.00
DAY SERVICES,Financial Services,PO LR RD ROTHERHITHE 1275,18-Jul-2019,200.00
DAY SERVICES,Financial Services,PO LR RD ROTHERHITHE 1275,18-Jul-2019,150.00
DAY SERVICES,Financial Services,PO LR RD ROTHERHITHE 1275,18-Jul-2019,200.00
DAY SERVICES,Financial Services,PO LR RD ROTHERHITHE 1275,18-Jul-2019,50.00
DAY SERVICES,Financial Services,PO LR RD ROTHERHITHE 1275,18-Jul-2019,-600.00
EMERGENCY PLANNING,Building-Tools,PORTABLE TOILET HIRE,18-Jul-2019,150.00
EVENTS & FILMING,Cleaning-Specialist,CONCEPT PRODUCTS LTD,18-Jul-2019,360.00
EVENTS & FILMING,Domestic Goods-Other,AMZNMktplace,18-Jul-2019,129.99
EVENTS & FILMING,Catering Food & Drink,JS ONLINE GROCERY,18-Jul-2019,335.75
FINANCIAL PLANNING AND MANAGEMENT,Financial Services,LAND REGISTRY,18-Jul-2019,3.00
PUBLIC HEALTH - ADULTS,Domestic Goods-Other,WH SMITH,18-Jul-2019,52.06
PUBLIC HEALTH - ADULTS,Telecommunications,ON AIR MEDIA GROUP,18-Jul-2019,"3,000.00"
PUBLIC HEALTH - ADULTS,Domestic Goods-Other,POUNDLAND LTD 1203,18-Jul-2019,21.00
RESIDENT ENGAGEMENT,Catering Equipment,WWW.YAHIRE.COM,18-Jul-2019,-250.00
RESIDENT ENGAGEMENT,Building-Tools,550 LEWISHAM,18-Jul-2019,-207.38
SPECIALIST YOUTH,Travel/Subsistence,OYSTER AUTO-TOP UP,18-Jul-2019,20.00
BEREAVEMENT SERVICES,Domestic Goods-Other,AMAZON.CO.UK,19-Jul-2019,2.50
BUSINESS SUPPORT,Stationery,WWW.POSTOFFICESHOP.CO.UK,19-Jul-2019,20.95
BUSINESS SUPPORT,Financial Services,HM PASSPORT OFFICE,19-Jul-2019,58.50
BUSINESS SUPPORT,Organised Activities,LITTLE ANGELS CONTACT,19-Jul-2019,146.00
BUSINESS SUPPORT,Travel/Subsistence,OYSTER AUTO-TOP UP,19-Jul-2019,40.00
BUSINESS SUPPORT,Travel/Subsistence,OYSTER ONLINE,19-Jul-2019,35.30
BUSINESS SUPPORT,Travel/Subsistence,OYSTER AUTO-TOP UP,19-Jul-2019,20.00
BUSINESS SUPPORT,Domestic Goods-Other,WWW.ARGOS.CO.UK,19-Jul-2019,"1,165.85"
BUSINESS SUPPORT,Telecommunications,EE LIMITED,19-Jul-2019,40.94
BUSINESS SUPPORT,Domestic Goods-Other,AMZNMKTPLACE AMAZON.CO.UK,19-Jul-2019,94.90
BUSINESS SUPPORT,Travel/Subsistence,OYSTER AUTO-TOP UP,19-Jul-2019,40.00
BUSINESS SUPPORT,Accommodation,Hotel on Booking.com Fore,19-Jul-2019,0.00
BUSINESS SUPPORT,Travel/Subsistence,OYSTER AUTO-TOP UP,19-Jul-2019,20.00
BUSINESS SUPPORT,Catering Food & Drink,MARKS&SPENCER PLC,19-Jul-2019,37.50
BUSINESS SUPPORT,Travel/Subsistence,OYSTER AUTO-TOP UP,19-Jul-2019,80.00
BUSINESS SUPPORT,Travel/Subsistence,OYSTER AUTO-TOP UP,19-Jul-2019,20.00
BUSINESS SUPPORT,Organised Activities,LITTLE ANGELS CONTACT,19-Jul-2019,176.00
BUSINESS SUPPORT,Travel/Subsistence,AUTO TOP-UP ARREARS,19-Jul-2019,40.00
DAY SERVICES,Financial Services,CASH ADVANCE FEE,19-Jul-2019,11.80
DAY SERVICES,Facilities-Market Research,EPOCH.COM,19-Jul-2019,-17.99
DAY SERVICES,Financial Services,CASH ADVANCE FEE,19-Jul-2019,5.90
DAY SERVICES,Financial Services,CASH ADVANCE FEE,19-Jul-2019,-5.90
DAY SERVICES,Financial Services,CASH ADVANCE FEE,19-Jul-2019,2.95
DAY SERVICES,Financial Services,CASH ADVANCE FEE,19-Jul-2019,-13.28
DAY SERVICES,Financial Services,EPOCH.COM,19-Jul-2019,17.99
DAY SERVICES,Financial Services,CASH ADVANCE FEE,19-Jul-2019,5.90
DAY SERVICES,Financial Services,CASH ADVANCE FEE,19-Jul-2019,4.43
HOUSING BENEFIT,Domestic Goods-Other,AMZNMktplace,19-Jul-2019,61.56
INTERNAL AUDIT,Travel/Subsistence,OYSTER AUTO-TOP UP,19-Jul-2019,40.00
INTERNAL AUDIT,Travel/Subsistence,OYSTER AUTO-TOP UP,19-Jul-2019,40.00
LEARNING & DEVELOPMENT,Financial Services,UKBA8449853184,19-Jul-2019,"3,199.00"
PUBLIC HEALTH - ADULTS,Catering Food & Drink,MARKS&SPENCER PLC,19-Jul-2019,62.00
PUBLIC HEALTH - ADULTS,Taxi Fares,WWW.ADDISONLEE.COM,19-Jul-2019,56.10
REGISTRAR SERVICES,Domestic Goods-Other,AMZNMktplace,19-Jul-2019,17.48
BUSINESS SUPPORT,Travel/Subsistence,OYSTER AUTO-TOP UP,20-Jul-2019,20.00
BUSINESS SUPPORT,Travel/Subsistence,OYSTER AUTO-TOP UP,20-Jul-2019,20.00
BUSINESS SUPPORT,Domestic Goods-Other,WWW.ARGOS.CO.UK,20-Jul-2019,-503.94
BUSINESS SUPPORT,Travel/Subsistence,OYSTER AUTO-TOP UP,20-Jul-2019,80.00
BUSINESS SUPPORT,Travel/Subsistence,OYSTER AUTO-TOP UP,20-Jul-2019,40.00
BUSINESS SUPPORT,Healthcare Services,01273647938 HSTV VIP,20-Jul-2019,84.94
BUSINESS SUPPORT,Travel/Subsistence,OYSTER AUTO-TOP UP,20-Jul-2019,20.00
BUSINESS SUPPORT,Travel/Subsistence,OYSTER AUTO-TOP UP,20-Jul-2019,20.00
EVENTS & FILMING,Facilities-Advertising,FACEBK XNLGCMABV2,20-Jul-2019,200.00
HOUSING BENEFIT,Domestic Goods-Other,AMZNMktplace,20-Jul-2019,146.68
PROGRAMME PERFORMANCE,IT Services,UK HOSTING #694663,20-Jul-2019,14.39
PROGRAMME PERFORMANCE,IT Software,ADOBE  CREATIVE CLOUD,20-Jul-2019,141.60
SPECIALIST YOUTH,Travel/Subsistence,OYSTER AUTO-TOP UP,20-Jul-2019,20.00
SPECIALIST YOUTH,Travel/Subsistence,OYSTER AUTO-TOP UP,20-Jul-2019,20.00
BUSINESS SUPPORT,Travel/Subsistence,OYSTER AUTO-TOP UP,21-Jul-2019,40.00
BUSINESS SUPPORT,Travel/Subsistence,OYSTER AUTO-TOP UP,21-Jul-2019,20.00
BUSINESS SUPPORT,Travel/Subsistence,OYSTER AUTO-TOP UP,21-Jul-2019,20.00
BUSINESS SUPPORT,Travel/Subsistence,OYSTER AUTO-TOP UP,21-Jul-2019,20.00
BUSINESS SUPPORT,Travel/Subsistence,OYSTER AUTO-TOP UP,21-Jul-2019,40.00
BUSINESS SUPPORT,Travel/Subsistence,OYSTER AUTO-TOP UP,21-Jul-2019,20.00
BUSINESS SUPPORT,Domestic Goods-Other,AMZNMKTPLACE AMAZON.CO.UK,21-Jul-2019,41.38
EVENTS & FILMING,Building-Timber,SCREWFIX DIRECT,21-Jul-2019,109.95
INTERNAL AUDIT,Domestic Goods-Other,AMZNMktplace,21-Jul-2019,20.89
LIBRARIES & ARCHIVES,Education-Library Books,AMZNMKTPLACE AMAZON.CO.UK,21-Jul-2019,10.41
LIBRARIES & ARCHIVES,Domestic Goods-Other,AMZNMktplace,21-Jul-2019,10.88
PARKS & LEISURE SERVICES,Domestic Goods-Other,AMZNMktplace,21-Jul-2019,37.39
PARKS & LEISURE SERVICES,Domestic Goods-Other,AMZNMktplace,21-Jul-2019,19.65
SPECIALIST YOUTH,Travel/Subsistence,OYSTER AUTO-TOP UP,21-Jul-2019,60.00
BUSINESS SUPPORT,Accommodation,FOREST HOUSE HOTEL,22-Jul-2019,76.50
BUSINESS SUPPORT,Facilities-Advertising,WOODSIDE STORES,22-Jul-2019,50.00
BUSINESS SUPPORT,Financial Services,LONDON BRGH OF LAMBETH,22-Jul-2019,47.00
BUSINESS SUPPORT,Travel/Subsistence,OYSTER AUTO-TOP UP,22-Jul-2019,40.00
BUSINESS SUPPORT,Travel/Subsistence,TFL AUTOSETTLEMENT,22-Jul-2019,20.00
BUSINESS SUPPORT,Catering Food & Drink,TESCO STORE 3300,22-Jul-2019,50.00
BUSINESS SUPPORT,Financial Services,GEN REGISTER OFFICE,22-Jul-2019,45.25
BUSINESS SUPPORT,Travel/Subsistence,OYSTER ONLINE,22-Jul-2019,30.00
BUSINESS SUPPORT,Catering Food & Drink,MARKS&SPENCER PLC,22-Jul-2019,42.50
BUSINESS SUPPORT,Catering Food & Drink,TESCO STORE 2143,22-Jul-2019,29.34
BUSINESS SUPPORT,Travel/Subsistence,OYSTER ONLINE,22-Jul-2019,60.00
BUSINESS SUPPORT,Consultancy-Business,SUMUP*MARSTON (HOLDINGS),22-Jul-2019,398.80
BUSINESS SUPPORT,Domestic Goods-Other,WWW.ARGOS.CO.UK,22-Jul-2019,"1,834.87"
DAY SERVICES,Catering Food & Drink,ICELAND,22-Jul-2019,20.95
DEMOCRATIC SERVICES,Domestic Goods-Other,AMZNMktplace,22-Jul-2019,289.84
DEMOCRATIC SERVICES,Couriers,WWW.ADDISONLEE.COM,22-Jul-2019,14.70
HOUSING BENEFIT,Domestic Goods-Other,AMZNMktplace,22-Jul-2019,10.89
INTERNAL AUDIT,Travel/Subsistence,DART-CHARGE,22-Jul-2019,5.00
LEGAL SERVICES,Travel/Subsistence,LUL TICKET MACHINE,22-Jul-2019,50.00
LIBRARIES & ARCHIVES,Education-Arts/Crafts,BAKER ROSS,22-Jul-2019,79.03
LIBRARIES & ARCHIVES,Books/Publications/Resources,Sainsburys Bank CASH,22-Jul-2019,180.00
PARKS & LEISURE SERVICES,Vehicle Hire,T A H ACCESS PLATFORMS,22-Jul-2019,250.00
PARKS & LEISURE SERVICES,Building-General,SCREWFIX DIRECT,22-Jul-2019,7.99
PARKS & LEISURE SERVICES,Vehicle Hire,T A H ACCESS PLATFORMS,22-Jul-2019,250.00
PARKS & LEISURE SERVICES,Consultancy-Business,ARMOUR LOCK AND SAFE,22-Jul-2019,74.00
PROGRAMME PERFORMANCE,Facilities-Design & Photography,CANVA* 02393-4221016,22-Jul-2019,1.66
REGISTRAR SERVICES,Travel/Subsistence,OYSTER ONLINE,22-Jul-2019,55.00
SUBSTANCE MISUSE,Catering Food & Drink,TESCO STORES 5999,22-Jul-2019,53.16
ADULTS WITH MENTAL HEALTH NEEDS,Domestic Goods-Other,ARGOS RETAIL GROUP,23-Jul-2019,179.97
ADULTS WITH MENTAL HEALTH NEEDS,Legal Services-Other,HMCOURTS-SERVICE.G,23-Jul-2019,225.00
ADULTS WITH MENTAL HEALTH NEEDS,Travel/Subsistence,Trainline.com,23-Jul-2019,21.71
BEREAVEMENT SERVICES,Domestic Goods-Other,AMZNMktplace,23-Jul-2019,1.85
BUSINESS SUPPORT,Travel/Subsistence,TFL AUTOSETTLEMENT,23-Jul-2019,20.00
BUSINESS SUPPORT,Taxi Fares,SW9 TO FAMILY,23-Jul-2019,80.00
BUSINESS SUPPORT,Financial Services,HM PASSPORT OFFICE,23-Jul-2019,58.50
BUSINESS SUPPORT,Financial Services,WWW.REIGATE-BANSTEAD.G,23-Jul-2019,"3,970.56"
BUSINESS SUPPORT,Accommodation,DALLAS CHILDRENS ADVOCACY,23-Jul-2019,538.09
BUSINESS SUPPORT,Travel/Subsistence,OYSTER ONLINE,23-Jul-2019,60.00
BUSINESS SUPPORT,Building-Floors,DISCOUNT FLOORING -GBP,23-Jul-2019,445.53
BUSINESS SUPPORT,Domestic Goods-Other,WWW.JDWILLIAMS.CO.UK,23-Jul-2019,-259.00
BUSINESS SUPPORT,Accommodation,BRITISH A,23-Jul-2019,413.60
BUSINESS SUPPORT,Financial Services,GEN REGISTER OFFICE,23-Jul-2019,125.50
BUSINESS SUPPORT,Travel/Subsistence,OYSTER ONLINE,23-Jul-2019,20.00
BUSINESS SUPPORT,Travel/Subsistence,OYSTER ONLINE,23-Jul-2019,90.00
BUSINESS SUPPORT,Catering Food & Drink,MARKS&SPENCER PLC SACA,23-Jul-2019,24.30
BUSINESS SUPPORT,Catering Food & Drink,TESCO STORE 2143,23-Jul-2019,100.00
BUSINESS SUPPORT,Travel/Subsistence,OYSTER ONLINE,23-Jul-2019,-100.00
EVENTS & FILMING,Financial Services-Grants,WWW.BII.ORG,23-Jul-2019,376.80
FINANCIAL PLANNING AND MANAGEMENT,Financial Services,LAND REGISTRY,23-Jul-2019,3.00
LIBRARIES & ARCHIVES,Books/Publications/Resources,CASH ADVANCE FEE,23-Jul-2019,5.31
LIBRARIES & ARCHIVES,Domestic Goods-Other,AMZNMKTPLACE AMAZON.CO.UK,23-Jul-2019,15.18
PARKS & LEISURE SERVICES,Travel/Subsistence,TFL ROAD CHG - STD WEB,23-Jul-2019,24.00
PARKS & LEISURE SERVICES,Vehicle Hire,T A H ACCESS PLATFORMS,23-Jul-2019,124.00
PUBLIC HEALTH - ADULTS,Taxi Fares,ADDISON LEE EXTRA,23-Jul-2019,52.00
RESIDENT ENGAGEMENT,Building-Floors,CARPETRIGHT PLC,23-Jul-2019,382.77
SPECIALIST YOUTH,Facilities-Design & Photography,SOCIALIZE MEDIA,23-Jul-2019,100.00
SUBSTANCE MISUSE,Financial Services-Insurance,BALENS LTD,23-Jul-2019,107.32
SUSTAINABILITY & ROAD SAFETY,Travel/Subsistence,OYSTER AUTO-TOP UP,23-Jul-2019,40.00
ADULTS WITH MENTAL HEALTH NEEDS,Domestic Goods-Other,ARGOS RETAIL GROUP,24-Jul-2019,27.98
BUSINESS SUPPORT,Travel/Subsistence,OYSTER ONLINE,24-Jul-2019,20.00
BUSINESS SUPPORT,Travel/Subsistence,OYSTER AUTO-TOP UP,24-Jul-2019,60.00
BUSINESS SUPPORT,Travel/Subsistence,AUTO TOP-UP ARREARS,24-Jul-2019,40.00
BUSINESS SUPPORT,Healthcare Services,01273647938 HSTV VIP,24-Jul-2019,-84.94
BUSINESS SUPPORT,Taxi Fares,SE14 TO SW2 RET,24-Jul-2019,80.00
BUSINESS SUPPORT,Accommodation,PREMIER INN 44536030,24-Jul-2019,96.00
BUSINESS SUPPORT,Education-Other,HADLOW COLLEGE,24-Jul-2019,250.00
BUSINESS SUPPORT,Taxi Fares,KINGS TO SE27,24-Jul-2019,30.00
BUSINESS SUPPORT,Travel/Subsistence,OYSTER AUTO-TOP UP,24-Jul-2019,100.00
BUSINESS SUPPORT,Travel/Subsistence,OYSTER ONLINE,24-Jul-2019,65.00
BUSINESS SUPPORT,Travel/Subsistence,OYSTER AUTO-TOP UP,24-Jul-2019,80.00
BUSINESS SUPPORT,Travel/Subsistence,TFL AUTOSETTLEMENT,24-Jul-2019,20.00
BUSINESS SUPPORT,Travel/Subsistence,TFL AUTOSETTLEMENT,24-Jul-2019,20.00
BUSINESS SUPPORT,Travel/Subsistence,OYSTER AUTO-TOP UP,24-Jul-2019,20.00
BUSINESS SUPPORT,Domestic Goods-Other,WWW.ARGOS.CO.UK,24-Jul-2019,453.94
BUSINESS SUPPORT,Travel/Subsistence,AUTO TOP-UP ARREARS,24-Jul-2019,20.00
BUSINESS SUPPORT,Travel/Subsistence,OYSTER ONLINE,24-Jul-2019,30.00
DAY SERVICES,Catering Food & Drink,SAINSBURY'S,24-Jul-2019,13.80
FACILITIES MANAGEMENT,Domestic Goods-Other,CURRYS ONLINE,24-Jul-2019,298.00
FACILITIES MANAGEMENT,Domestic Goods-Other,CURRYS ONLINE,24-Jul-2019,293.00
HOUSING BENEFIT,Travel/Subsistence,Trainline.com,24-Jul-2019,95.60
INTERNAL AUDIT,Travel/Subsistence,Trainline.com,24-Jul-2019,58.99
LIBRARIES & ARCHIVES,Education-Library Books,AMZNMktplace,24-Jul-2019,12.49
LIBRARIES & ARCHIVES,Education-Arts/Crafts,AMZNMktplace,24-Jul-2019,46.45
LIBRARIES & ARCHIVES,Education-Arts/Crafts,HOBBYCRAFT,24-Jul-2019,53.95
LIBRARIES & ARCHIVES,Facilities-Advertising,WH SMITH,24-Jul-2019,7.32
PARKS & LEISURE SERVICES,Financial Services,DVLA VEHICLE TAX,24-Jul-2019,262.50
PARKS & LEISURE SERVICES,Domestic Goods-Other,AMZNMKTPLACE AMAZON.CO.UK,24-Jul-2019,8.52
PROGRAMME PERFORMANCE,IT Services,UK HOSTING #694663,24-Jul-2019,-14.39
RESIDENT ENGAGEMENT,Domestic Goods-Other,AMZNMktplace,24-Jul-2019,20.98
SPECIALIST YOUTH,Travel/Subsistence,OYSTER AUTO-TOP UP,24-Jul-2019,20.00
SPECIALIST YOUTH,Travel/Subsistence,OYSTER AUTO-TOP UP,24-Jul-2019,40.00
ADULTS WITH MENTAL HEALTH NEEDS,Legal Services-Other,HMCOURTS-SERVICE.G,25-Jul-2019,150.00
BEREAVEMENT SERVICES,Catering Food & Drink,AMZNMktplace,25-Jul-2019,28.53
BEREAVEMENT SERVICES,Cemetery & Crematorium,AMZNMKTPLACE AMAZON.CO.UK,25-Jul-2019,49.99
BEREAVEMENT SERVICES,Cemetery & Crematorium,AMZNMKTPLACE AMAZON.CO.UK,25-Jul-2019,49.99
BEREAVEMENT SERVICES,Cemetery & Crematorium,AMZNMKTPLACE AMAZON.CO.UK,25-Jul-2019,35.99
BUSINESS SUPPORT,Travel/Subsistence,OYSTER AUTO-TOP UP,25-Jul-2019,20.00
BUSINESS SUPPORT,Financial Services,SEVENOAKS TOWN COUNCIL,25-Jul-2019,36.00
BUSINESS SUPPORT,Travel/Subsistence,OYSTER AUTO-TOP UP,25-Jul-2019,20.00
BUSINESS SUPPORT,Financial Services,2MAA010873909 TD E-PMT,25-Jul-2019,75.00
BUSINESS SUPPORT,Travel/Subsistence,MARSHALLS COACHES LLP,25-Jul-2019,"1,240.00"
BUSINESS SUPPORT,Travel/Subsistence,OYSTER AUTO-TOP UP,25-Jul-2019,40.00
BUSINESS SUPPORT,Travel/Subsistence,OYSTER AUTO-TOP UP,25-Jul-2019,20.00
BUSINESS SUPPORT,Travel/Subsistence,OYSTER AUTO-TOP UP,25-Jul-2019,40.00
BUSINESS SUPPORT,Taxi Fares,SW9 TO SE5,25-Jul-2019,20.00
DAY SERVICES,Catering Food & Drink,ICELAND,25-Jul-2019,10.45
DAY SERVICES,Catering Food & Drink,SAINSBURY'S,25-Jul-2019,11.50
EMERGENCY PLANNING,Travel/Subsistence,Trainline.com,25-Jul-2019,366.63
EVENTS & FILMING,Domestic Goods-Other,AMZNMktplace,25-Jul-2019,34.99
LIBRARIES & ARCHIVES,Domestic Goods-Other,HUMANWARE LTD,25-Jul-2019,34.20
LIBRARIES & ARCHIVES,Education-Library Books,AMZNMKTPLACE AMAZON.CO.UK,25-Jul-2019,10.42
REGISTRAR SERVICES,Facilities-Printing,WWW.ROYALIMAGES.CO.UK,25-Jul-2019,155.28
RESIDENT ENGAGEMENT,Domestic Goods-Other,AMZNMktplace,25-Jul-2019,35.36
BUSINESS SUPPORT,Domestic Goods-Other,WWW.ARGOS.CO.UK,26-Jul-2019,269.99
BUSINESS SUPPORT,Travel/Subsistence,OYSTER ONLINE,26-Jul-2019,10.00
BUSINESS SUPPORT,Financial Services,HM PASSPORT OFFICE,26-Jul-2019,58.50
BUSINESS SUPPORT,Travel/Subsistence,OYSTER AUTO-TOP UP,26-Jul-2019,20.00
BUSINESS SUPPORT,Travel/Subsistence,OYSTER ONLINE,26-Jul-2019,60.00
BUSINESS SUPPORT,Legal Services-General Support,BINDMANS LLP,26-Jul-2019,"14,579.60"
BUSINESS SUPPORT,Financial Services-Grants,WWW.NYAS.NET,26-Jul-2019,745.57
BUSINESS SUPPORT,Travel/Subsistence,OYSTER ONLINE,26-Jul-2019,-30.00
BUSINESS SUPPORT,Travel/Subsistence,OYSTER AUTO-TOP UP,26-Jul-2019,20.00
BUSINESS SUPPORT,Travel/Subsistence,OYSTER AUTO-TOP UP,26-Jul-2019,40.00
BUSINESS SUPPORT,Arts & Leisure Services,WWW.FITFORSPORT.CO.UK,26-Jul-2019,371.70
BUSINESS SUPPORT,Travel/Subsistence,OYSTER AUTO-TOP UP,26-Jul-2019,80.00
BUSINESS SUPPORT,Legal Services-General Support,BINDMANS LLP,26-Jul-2019,"4,459.40"
BUSINESS SUPPORT,Travel/Subsistence,OYSTER AUTO-TOP UP,26-Jul-2019,20.00
BUSINESS SUPPORT,Building-General,ROBERT DYAS HOLDNG LTD,26-Jul-2019,-295.00
DAY SERVICES,Catering Food & Drink,M N NORWOOD HALAL BUTCHER,26-Jul-2019,108.92
DAY SERVICES,Catering Equipment,AMZNMktplace,26-Jul-2019,49.95
DAY SERVICES,Catering Food & Drink,WWW.ICELAND.CO.UK,26-Jul-2019,153.56
EVENTS & FILMING,IT Software,ADOBE  CREATIVE CLOUD,26-Jul-2019,20.81
FACILITIES MANAGEMENT,Domestic Goods-Other,CURRYS ONLINE,26-Jul-2019,249.00
LIBRARIES & ARCHIVES,Catering Food & Drink,ICELAND,26-Jul-2019,10.45
PARKS & LEISURE SERVICES,Building-General,LEYLAND SDM CLAPHAM HIGH,26-Jul-2019,42.96
PARKS & LEISURE SERVICES,Domestic Goods-Other,AMZNMKTPLACE AMAZON.CO.UK,26-Jul-2019,16.97
PARKS & LEISURE SERVICES,Building-Plumbing,WOLSELEY UK,26-Jul-2019,57.55
PARKS & LEISURE SERVICES,Building-Timber,SCREWFIX BRIXTON,26-Jul-2019,23.98
SHELTERED HOUSING,Domestic Goods-Other,AMZNMktplace,26-Jul-2019,27.99
BEREAVEMENT SERVICES,Stationery,AMAZON.CO.UK,27-Jul-2019,3.49
BUSINESS SUPPORT,Travel/Subsistence,OYSTER AUTO-TOP UP,27-Jul-2019,40.00
BUSINESS SUPPORT,Travel/Subsistence,OYSTER AUTO-TOP UP,27-Jul-2019,40.00
BUSINESS SUPPORT,Travel/Subsistence,OYSTER AUTO-TOP UP,27-Jul-2019,100.00
BUSINESS SUPPORT,Travel/Subsistence,OYSTER AUTO-TOP UP,27-Jul-2019,40.00
BUSINESS SUPPORT,Travel/Subsistence,OYSTER AUTO-TOP UP,27-Jul-2019,20.00
BUSINESS SUPPORT,Travel/Subsistence,OYSTER AUTO-TOP UP,27-Jul-2019,20.00
BUSINESS SUPPORT,Travel/Subsistence,OYSTER AUTO-TOP UP,27-Jul-2019,80.00
BUSINESS SUPPORT,Facilities-Market Research,Amazon Prime,27-Jul-2019,7.99
DAY SERVICES,Catering Equipment,AMZNMktplace,27-Jul-2019,29.82
DAY SERVICES,Clothing-Other,AMZNMktplace,27-Jul-2019,8.60
FINANCIAL TRANSACTION SERVICES,Travel/Subsistence,OYSTER AUTO-TOP UP,27-Jul-2019,20.00
INTEGRATED DISABILITY - PD,Domestic Goods-Other,COMPLETE CARE SHOP,27-Jul-2019,155.04
LIBRARIES & ARCHIVES,Education-Other,SAINSBURY'S S/MKT,27-Jul-2019,4.25
LIBRARIES & ARCHIVES,Education-Arts/Crafts,HOBBYCRAFT,27-Jul-2019,35.97
LIBRARIES & ARCHIVES,Facilities-Advertising,WH SMITH,27-Jul-2019,250.00
LIBRARIES & ARCHIVES,Facilities-Advertising,WH SMITH,27-Jul-2019,250.00
LIBRARIES & ARCHIVES,Facilities-Advertising,WH SMITH,27-Jul-2019,250.00
SPECIALIST YOUTH,Travel/Subsistence,OYSTER AUTO-TOP UP,27-Jul-2019,20.00
SPECIALIST YOUTH,Travel/Subsistence,OYSTER AUTO-TOP UP,27-Jul-2019,20.00
BUSINESS SUPPORT,Travel/Subsistence,OYSTER AUTO-TOP UP,28-Jul-2019,40.00
BUSINESS SUPPORT,Travel/Subsistence,OYSTER AUTO-TOP UP,28-Jul-2019,40.00
BUSINESS SUPPORT,Travel/Subsistence,OYSTER AUTO-TOP UP,28-Jul-2019,20.00
BUSINESS SUPPORT,Travel/Subsistence,OYSTER AUTO-TOP UP,28-Jul-2019,40.00
BUSINESS SUPPORT,Travel/Subsistence,OYSTER AUTO-TOP UP,28-Jul-2019,80.00
LIBRARIES & ARCHIVES,Education-Other,AMZNMktplace,28-Jul-2019,4.99
LIBRARIES & ARCHIVES,Education-Other,AMZNMktplace,28-Jul-2019,12.19
LIBRARIES & ARCHIVES,Education-Other,AMZNMktplace,28-Jul-2019,2.14
LIBRARIES & ARCHIVES,Domestic Goods-Other,AMZNMktplace,28-Jul-2019,14.99
LIBRARIES & ARCHIVES,Education-Other,AMZNMktplace,28-Jul-2019,3.09
LIBRARIES & ARCHIVES,Education-Other,AMZNMktplace,28-Jul-2019,4.65
SPECIALIST YOUTH,Travel/Subsistence,OYSTER AUTO-TOP UP,28-Jul-2019,60.00
BUSINESS SUPPORT,Catering Food & Drink,MARKS&SPENCER PLC,29-Jul-2019,18.50
BUSINESS SUPPORT,Travel/Subsistence,OYSTER AUTO-TOP UP,29-Jul-2019,40.00
BUSINESS SUPPORT,Catering Food & Drink,MARKS&SPENCER PLC SACA,29-Jul-2019,12.50
BUSINESS SUPPORT,Travel/Subsistence,Trainline.com,29-Jul-2019,25.48
BUSINESS SUPPORT,Travel/Subsistence,AUTO TOP-UP ARREARS,29-Jul-2019,20.00
BUSINESS SUPPORT,Travel/Subsistence,AUTO TOP-UP ARREARS,29-Jul-2019,20.00
BUSINESS SUPPORT,Catering Food & Drink,PRET A MANGER,29-Jul-2019,52.84
BUSINESS SUPPORT,Travel/Subsistence,TFL AUTOSETTLEMENT,29-Jul-2019,20.00
BUSINESS SUPPORT,Travel/Subsistence,AUTO TOP-UP ARREARS,29-Jul-2019,300.00
BUSINESS SUPPORT,Facilities-Advertising,EXPRESS NEWS,29-Jul-2019,15.00
DAY SERVICES,Catering Food & Drink,ICELAND,29-Jul-2019,16.97
DAY SERVICES,Education-Supplies,AMZNMktplace,29-Jul-2019,29.16
DEMOCRATIC SERVICES,Domestic Goods-Other,WWW.ARGOS.CO.UK,29-Jul-2019,80.92
EVENTS & FILMING,Domestic Goods-Other,AMZ*Crampton And Moore,29-Jul-2019,-129.99
LIBRARIES & ARCHIVES,Education-Other,AMZNMktplace,29-Jul-2019,9.73
LIBRARIES & ARCHIVES,Catering Food & Drink,ICELAND,29-Jul-2019,11.45
LIBRARIES & ARCHIVES,Education-Other,AMZNMktplace,29-Jul-2019,5.49
LIBRARIES & ARCHIVES,Education-Other,AMZNMktplace,29-Jul-2019,7.99
LIBRARIES & ARCHIVES,Education-Other,AMZNMktplace,29-Jul-2019,6.60
LIBRARIES & ARCHIVES,Education-Other,AMZNMktplace,29-Jul-2019,6.35
LIBRARIES & ARCHIVES,Education-Other,AMZNMktplace,29-Jul-2019,4.80
LIBRARIES & ARCHIVES,Education-Other,LONDONEMBLE,29-Jul-2019,783.42
LIBRARIES & ARCHIVES,Education-Other,AMZNMktplace,29-Jul-2019,16.46
LIBRARIES & ARCHIVES,Education-Other,AMZNMktplace,29-Jul-2019,6.54
LIBRARIES & ARCHIVES,Education-Arts/Crafts,POUNDLAND LTD 1203,29-Jul-2019,8.00
LIBRARIES & ARCHIVES,Education-Other,AMZNMktplace,29-Jul-2019,4.47
LIBRARIES & ARCHIVES,Education-Other,AMZNMktplace,29-Jul-2019,4.42
LIBRARIES & ARCHIVES,Education-Other,AMZNMktplace,29-Jul-2019,9.20
PARKS & LEISURE SERVICES,Building-General,HOMEBASE LTD 313,29-Jul-2019,55.90
PROGRAMME PERFORMANCE,IT Services,BUZZSUMO.COM PRO,29-Jul-2019,100.16
SUBSTANCE MISUSE,Financial Services,LAMBETH INTERNET PAYM,29-Jul-2019,-100.00
SUBSTANCE MISUSE,Catering Food & Drink,TESCO STORES 5999,29-Jul-2019,68.59
BUSINESS SUPPORT,Accommodation,PREMIER INN44013620,30-Jul-2019,118.50
BUSINESS SUPPORT,Catering Food & Drink,MARKS&SPENCER PLC SACA,30-Jul-2019,49.10
BUSINESS SUPPORT,Travel/Subsistence,OYSTER AUTO-TOP UP,30-Jul-2019,20.00
BUSINESS SUPPORT,Travel/Subsistence,OYSTER ONLINE,30-Jul-2019,20.00
BUSINESS SUPPORT,Catering Food & Drink,TESCO STORE 2143,30-Jul-2019,50.00
BUSINESS SUPPORT,Facilities-Advertising,EXPRESS NEWS,30-Jul-2019,15.00
DAY SERVICES,Education-Arts/Crafts,AMZNMktplace,30-Jul-2019,34.75
DAY SERVICES,Catering Food & Drink,ASDA STORES LTD 5871,30-Jul-2019,165.00
DAY SERVICES,Building-Others,AMZNMktplace,30-Jul-2019,4.02
DAY SERVICES,Catering Food & Drink,TESCO STORES 4857,30-Jul-2019,19.47
DAY SERVICES,Catering Equipment,COMPLETE CARE SHOP,30-Jul-2019,49.55
DAY SERVICES,Domestic Goods-Other,AMZNMktplace,30-Jul-2019,20.26
DAY SERVICES,Domestic Goods-Other,AMZNMktplace,30-Jul-2019,41.76
DIRECTOR OF FINANCE,Financial Services-Accountancy,WWW.PWC.COM,30-Jul-2019,108.00
EVENTS & FILMING,Accommodation,HIGHSTREETVOUCHERS,30-Jul-2019,454.25
